Workbook

Sheet INTRODUCTION
B2: Ce logiciel permet d'éditer les courriers d'avancements d'échelons à envoyer aux
B3: agents directement concernés en notant qu'une seule fois :
B4: l'identité de l'agent et la date d'effet de son avancement d'échelon.
B6: C'est donc un gain de temps non négligeable dans la préparation très chronophage
B7: des CAP et également une uniformisation de toutes les informations transmises
B8: aux agents par tous les représentants SUD Santé des CAPL et CAPD.
B10: 1) ACTIVATION DES MACROS
B12: Pour fonctionner, ce logiciel nécéssite que les " macros " soient activées.
B13: Les " macros " permettent à partir d'un bouton (apparition de la petite main),
B14: l'exécution d'une application donnée.
B16: Pour vérifier si elles sont bien activées,
B17: appuyez sur le bouton ci-contre :
B19: Cette page doit apparaître :
B22: Appuyez alors dans cette page
B23: sur ce bouton pour revenir
B24: à l'INTRODUCTION :
B26: Si la page n'apparait pas, cela implique que les " macros " ne sont pas activées.
B27: Appuyez sur " F1 " de votre clavier pour accéder à la rubrique " AIDE "
B28: Notez : MACROS dans le moteur de recherche
B29: Selectionnez : Activer ou désactiver les Macros
B30: Suivez les recommandations pour les activer
B32: 2) PARAMETRAGE DU LOGICIEL
B34: Pour votre 1ère utilisation de ce logiciel, vous devez
B35: le paramatrer en cliquant sur ce bouton :
B37: 3) COMMENTAIRES DIVERS …
B39: N'hésitez pas à nous faire parvenir vos commentaires sur ce Logiciel à l'adresse ci-jointe : sudsante@ch-stmalo.fr

Sheet PARAMETRAGE
B2: PARAMETRAGE
B4: Première utilisation :
B6: 1) Téléchargez la dernière version mise à jour pour les grilles salariales sur notre site.
B7: http://www.sudsantesociaux35.org
B9: 2) Personnalisez votre Logiciel en renseignant:
B11: * Nom de l'Etablissement.
B12: * Nom des représentants SUD Santé aux CAP.
B13: * Renseignez "Locale" ou "Départementale"
B14: * Renseignez "vos numéros de téléphone".
B15: * Renseignez "votre département".
B16: * Renseignez "votre adresse mél" et celle de "votre site départemental".
B17: * Renseignez "l'année" et "la date de la CAP".

Sheet TEST MACROS
A1: Les " macros " sont activées
A3: Pour retourner à l'introduction, appuyez sur le bouton ci-dessous :

Sheet ACCUEIL

Sheet ETABLISSEMENT
B8: Centre Hospitalier de Saint Malo

Sheet CAPL ou CAPD

Sheet VALEUR du POINT
E3: 4.686 €
E11: 2019-01-01

Sheet TELEPHONE
E3: 2886
E10: 02 99 21 28 86

Sheet DEPARTEMENT
E4: 35

Sheet MEL
E4: sudsante@ch-stmalo.fr

Sheet SITE DEPART

Sheet HTTP DEPART
B13: http://www.sudsantesociaux35.org

Sheet REPRESENTANT
B8: Madame FERET Isabelle, Madame Anne PICHON et Monsieur Patrick GAUTIER

Sheet CAP
E3: 2019
E11: 2019-04-16

Sheet CAP 2 SG 2

Sheet CAT A ISG IS
B2: Selectionnez le Grade concerné par l'avancement d'échelon

Sheet CAT A EXTINCTION
B2: Selectionnez le Grade concerné par l'avancement d'échelon

Sheet END

Sheet RECAPITULATIF
B2: =ETABLISSEMENT!B8 -> Centre Hospitalier de Saint Malo
B4: Nom du de la ou des Représentant-e-s
B5: =REPRESENTANT!B8 -> Madame FERET Isabelle, Madame Anne PICHON et Monsieur Patrick GAUTIER
B7: CAP | D7: Locale
B9: Année | D9: =CAP!E3 -> 2019
B11: Date de la CAP | D11: =CAP!E11 -> 2019-04-16
B13: Valeur du Point | D13: ='VALEUR du POINT'!$E$3 -> 4.686 €
B15: Date de la valeur du Point | D15: ='VALEUR du POINT'!E11 -> 2019-01-01
B17: Poste | D17: =TELEPHONE!$E$3 -> 2886
B19: Téléphone | D19: =TELEPHONE!$E$10 -> 02 99 21 28 86
B21: Sud Santé Sociaux | D21: =DEPARTEMENT!E4 -> 35
B23: Mél | C23: =MEL!E4 -> sudsante@ch-stmalo.fr
B25: Site Départemental Sud | D25: ='HTTP DEPART'!B13 -> http://www.sudsantesociaux35.org

Sheet GRILLE ISG IS G1
B2: Catégorie A GRADE 1 Infirmier D.E., Manipulateur d'Electroradiologie Médicale, Masseur-Kinésithérapeute, Ergothérapeute, Psychomotricien, Orthophoniste, Pédicure-Podologue
B7: Echelon | C7: Durée (en mois) | D7: Indice Majoré
B9: 1 | C9: 24 | D9: 388
B11: 2 | C11: 36 | D11: 397
B13: 3 | C13: 36 | D13: 416
B15: 4 | C15: 36 | D15: 437
B17: 5 | C17: 36 | D17: 469
B19: 6 | C19: 42 | D19: 500
B21: 7 | C21: 48 | D21: 521
B23: 8 | C23: 48 | D23: 541
B25: 9 | C25: 48 | D25: 565
B27: 10 | D27: 591

Sheet IMP GRILLE ISG IS G1
B2: 1) Imprimez autant de feuilles que d'agents concernés.
B4: 2) Pliez en 3 au niveau du repère, deux petits traits noirs.
B6: 3) Inserrez ce courrier dans une enveloppe 110 X 220 à fenêtre.

Sheet ISG IS G1 Echelon 2
G2: Commission Administrative
G3: Paritaire | M3: =RECAPITULATIF!D7 -> Locale
M9: Mme, Mr :
M11: Grade :
M13: Service :
A16: Votre ou vos représentant-e-s du personnel
A18: =RECAPITULATIF!B5 -> Madame FERET Isabelle, Madame Anne PICHON et Monsieur Patrick GAUTIER
A20: SUD Santé Sociaux | E20: =RECAPITULATIF!D21 -> 35 | F20: du:
A22: =RECAPITULATIF!B2 -> Centre Hospitalier de Saint Malo
A24: siégeant auprès de la CAP | F24: =RECAPITULATIF!D7 -> Locale | J24: du : | K24: =RECAPITULATIF!D11 -> 2019-04-16 | N24: vous informe de votre :
F27: AVANCEMENT D’ECHELON
A33: Vous passez à l’échelon : | F33: ='GRILLE ISG IS G1'!B11 -> 2 | H33: Indice Majoré : | L33: ='GRILLE ISG IS G1'!D11 -> 397
A36: Date d'effet : | F36: / | H36: / | I36: =RECAPITULATIF!D9 -> 2019 | R36: ='GRILLE ISG IS G1'!B2 -> Catégorie A GRADE 1 Infirmier D.E., Manipulateur d'Electroradiologie Médicale, Masseur-Kinésithérapeute, Ergothérapeute, Psychomotricien, Orthophoniste, Pédicure-Podologue
A40: Ce qui représente un gain mensuel de : | I40: ='GRILLE ISG IS G1'!D11-'GRILLE ISG IS G1'!D9 -> 9 | K40: points d'indice.
R41: ='GRILLE ISG IS G1'!B7 -> Echelon | S41: ='GRILLE ISG IS G1'!C7 -> Durée (en mois) | T41: ='GRILLE ISG IS G1'!D7 -> Indice Majoré
A43: Pour information, la valeur brute du point d'indice | R43: ='GRILLE ISG IS G1'!B9 -> 1 | S43: ='GRILLE ISG IS G1'!C9 -> 24 | T43: ='GRILLE ISG IS G1'!D9 -> 388
R45: ='GRILLE ISG IS G1'!B11 -> 2 | S45: ='GRILLE ISG IS G1'!C11 -> 36 | T45: ='GRILLE ISG IS G1'!D11 -> 397
A46: est de | C46: =RECAPITULATIF!D13 -> 4.686 € | E46: au | F46: =RECAPITULATIF!D15 -> 2019-01-01
R47: ='GRILLE ISG IS G1'!B13 -> 3 | S47: ='GRILLE ISG IS G1'!C13 -> 36 | T47: ='GRILLE ISG IS G1'!D13 -> 416
A49: Soit un gain net mensuel de : | G49: =I40*C46*0.8315 -> 35.07 € | R49: ='GRILLE ISG IS G1'!B15 -> 4 | S49: ='GRILLE ISG IS G1'!C15 -> 36 | T49: ='GRILLE ISG IS G1'!D15 -> 437
R51: ='GRILLE ISG IS G1'!B17 -> 5 | S51: ='GRILLE ISG IS G1'!C17 -> 36 | T51: ='GRILLE ISG IS G1'!D17 -> 469
R53: ='GRILLE ISG IS G1'!B19 -> 6 | S53: ='GRILLE ISG IS G1'!C19 -> 42 | T53: ='GRILLE ISG IS G1'!D19 -> 500
A54: Vos représentant-e-s SUD Santé Sociaux | I54: =RECAPITULATIF!D21 -> 35 | K54: sont à votre disposition
A55: pour tous renseignements complémentaires au poste : | M55: =RECAPITULATIF!D17 -> 2886 | R55: ='GRILLE ISG IS G1'!B21 -> 7 | S55: ='GRILLE ISG IS G1'!C21 -> 48 | T55: ='GRILLE ISG IS G1'!D21 -> 521
R57: ='GRILLE ISG IS G1'!B23 -> 8 | S57: ='GRILLE ISG IS G1'!C23 -> 48 | T57: ='GRILLE ISG IS G1'!D23 -> 541
R59: ='GRILLE ISG IS G1'!B25 -> 9 | S59: ='GRILLE ISG IS G1'!C25 -> 48 | T59: ='GRILLE ISG IS G1'!D25 -> 565
A60: Recevez toutes nos salutations.
R61: ='GRILLE ISG IS G1'!B27 -> 10 | S61: ='GRILLE ISG IS G1'!C27 -> 0 | T61: ='GRILLE ISG IS G1'!D27 -> 591
A63: =RECAPITULATIF!B5 -> Madame FERET Isabelle, Madame Anne PICHON et Monsieur Patrick GAUTIER
A65: SUD Santé Sociaux | E65: =RECAPITULATIF!D21 -> 35
A70: Tél : | B70: =RECAPITULATIF!D19 -> 02 99 21 28 86
A71: Mél : | C71: =RECAPITULATIF!C23 -> sudsante@ch-stmalo.fr
A72: =RECAPITULATIF!B25 -> Site Départemental Sud | F72: =RECAPITULATIF!D25 -> http://www.sudsantesociaux35.org

Sheet ISG IS G1 Echelon 3
G2: Commission Administrative
G3: Paritaire | M3: =RECAPITULATIF!D7 -> Locale
M9: Mme, Mr :
M11: Grade :
M13: Service :
A16: Votre ou vos représentant-e-s du personnel
A18: =RECAPITULATIF!B5 -> Madame FERET Isabelle, Madame Anne PICHON et Monsieur Patrick GAUTIER
A20: SUD Santé Sociaux | E20: =RECAPITULATIF!D21 -> 35 | F20: du:
A22: =RECAPITULATIF!B2 -> Centre Hospitalier de Saint Malo
A24: siégeant auprès de la CAP | F24: =RECAPITULATIF!D7 -> Locale | J24: du : | K24: =RECAPITULATIF!D11 -> 2019-04-16 | N24: vous informe de votre :
F27: AVANCEMENT D’ECHELON
A33: Vous passez à l’échelon : | F33: ='GRILLE ISG IS G1'!B13 -> 3 | H33: Indice Majoré : | L33: ='GRILLE ISG IS G1'!D13 -> 416
A36: Date d'effet : | F36: / | H36: / | I36: =RECAPITULATIF!D9 -> 2019 | R36: ='GRILLE ISG IS G1'!B2 -> Catégorie A GRADE 1 Infirmier D.E., Manipulateur d'Electroradiologie Médicale, Masseur-Kinésithérapeute, Ergothérapeute, Psychomotricien, Orthophoniste, Pédicure-Podologue
A40: Ce qui représente un gain mensuel de : | I40: ='GRILLE ISG IS G1'!D13-'GRILLE ISG IS G1'!D11 -> 19 | K40: points d'indice.
R41: ='GRILLE ISG IS G1'!B7 -> Echelon | S41: ='GRILLE ISG IS G1'!C7 -> Durée (en mois) | T41: ='GRILLE ISG IS G1'!D7 -> Indice Majoré
A43: Pour information, la valeur brute du point d'indice | R43: ='GRILLE ISG IS G1'!B9 -> 1 | S43: ='GRILLE ISG IS G1'!C9 -> 24 | T43: ='GRILLE ISG IS G1'!D9 -> 388
R45: ='GRILLE ISG IS G1'!B11 -> 2 | S45: ='GRILLE ISG IS G1'!C11 -> 36 | T45: ='GRILLE ISG IS G1'!D11 -> 397
A46: est de | C46: =RECAPITULATIF!D13 -> 4.686 € | E46: au | F46: =RECAPITULATIF!D15 -> 2019-01-01
R47: ='GRILLE ISG IS G1'!B13 -> 3 | S47: ='GRILLE ISG IS G1'!C13 -> 36 | T47: ='GRILLE ISG IS G1'!D13 -> 416
A49: Soit un gain net mensuel de : | G49: =I40*C46*0.8315 -> 74.03 € | R49: ='GRILLE ISG IS G1'!B15 -> 4 | S49: ='GRILLE ISG IS G1'!C15 -> 36 | T49: ='GRILLE ISG IS G1'!D15 -> 437
R51: ='GRILLE ISG IS G1'!B17 -> 5 | S51: ='GRILLE ISG IS G1'!C17 -> 36 | T51: ='GRILLE ISG IS G1'!D17 -> 469
R53: ='GRILLE ISG IS G1'!B19 -> 6 | S53: ='GRILLE ISG IS G1'!C19 -> 42 | T53: ='GRILLE ISG IS G1'!D19 -> 500
A54: Vos représentant-e-s SUD Santé Sociaux | I54: =RECAPITULATIF!D21 -> 35 | K54: sont à votre disposition
A55: pour tous renseignements complémentaires au poste : | M55: =RECAPITULATIF!D17 -> 2886 | R55: ='GRILLE ISG IS G1'!B21 -> 7 | S55: ='GRILLE ISG IS G1'!C21 -> 48 | T55: ='GRILLE ISG IS G1'!D21 -> 521
R57: ='GRILLE ISG IS G1'!B23 -> 8 | S57: ='GRILLE ISG IS G1'!C23 -> 48 | T57: ='GRILLE ISG IS G1'!D23 -> 541
R59: ='GRILLE ISG IS G1'!B25 -> 9 | S59: ='GRILLE ISG IS G1'!C25 -> 48 | T59: ='GRILLE ISG IS G1'!D25 -> 565
A60: Recevez toutes nos salutations.
R61: ='GRILLE ISG IS G1'!B27 -> 10 | S61: ='GRILLE ISG IS G1'!C27 -> 0 | T61: ='GRILLE ISG IS G1'!D27 -> 591
A63: =RECAPITULATIF!B5 -> Madame FERET Isabelle, Madame Anne PICHON et Monsieur Patrick GAUTIER
A65: SUD Santé Sociaux | E65: =RECAPITULATIF!D21 -> 35
A70: Tél : | B70: =RECAPITULATIF!D19 -> 02 99 21 28 86
A71: Mél : | C71: =RECAPITULATIF!C23 -> sudsante@ch-stmalo.fr
A72: =RECAPITULATIF!B25 -> Site Départemental Sud | F72: =RECAPITULATIF!D25 -> http://www.sudsantesociaux35.org

Sheet ISG IS G1 Echelon 4
G2: Commission Administrative
G3: Paritaire | M3: =RECAPITULATIF!D7 -> Locale
M9: Mme, Mr :
M11: Grade :
M13: Service :
A16: Votre ou vos représentant-e-s du personnel
A18: =RECAPITULATIF!B5 -> Madame FERET Isabelle, Madame Anne PICHON et Monsieur Patrick GAUTIER
A20: SUD Santé Sociaux | E20: =RECAPITULATIF!D21 -> 35 | F20: du:
A22: =RECAPITULATIF!B2 -> Centre Hospitalier de Saint Malo
A24: siégeant auprès de la CAP | F24: =RECAPITULATIF!D7 -> Locale | J24: du : | K24: =RECAPITULATIF!D11 -> 2019-04-16 | N24: vous informe de votre :
F27: AVANCEMENT D’ECHELON
A33: Vous passez à l’échelon : | F33: ='GRILLE ISG IS G1'!B15 -> 4 | H33: Indice Majoré : | L33: ='GRILLE ISG IS G1'!D15 -> 437
A36: Date d'effet : | F36: / | H36: / | I36: =RECAPITULATIF!D9 -> 2019 | R36: ='GRILLE ISG IS G1'!B2 -> Catégorie A GRADE 1 Infirmier D.E., Manipulateur d'Electroradiologie Médicale, Masseur-Kinésithérapeute, Ergothérapeute, Psychomotricien, Orthophoniste, Pédicure-Podologue
A40: Ce qui représente un gain mensuel de : | I40: ='GRILLE ISG IS G1'!D15-'GRILLE ISG IS G1'!D13 -> 21 | K40: points d'indice.
R41: ='GRILLE ISG IS G1'!B7 -> Echelon | S41: ='GRILLE ISG IS G1'!C7 -> Durée (en mois) | T41: ='GRILLE ISG IS G1'!D7 -> Indice Majoré
A43: Pour information, la valeur brute du point d'indice | R43: ='GRILLE ISG IS G1'!B9 -> 1 | S43: ='GRILLE ISG IS G1'!C9 -> 24 | T43: ='GRILLE ISG IS G1'!D9 -> 388
R45: ='GRILLE ISG IS G1'!B11 -> 2 | S45: ='GRILLE ISG IS G1'!C11 -> 36 | T45: ='GRILLE ISG IS G1'!D11 -> 397
A46: est de | C46: =RECAPITULATIF!D13 -> 4.686 € | E46: au | F46: =RECAPITULATIF!D15 -> 2019-01-01
R47: ='GRILLE ISG IS G1'!B13 -> 3 | S47: ='GRILLE ISG IS G1'!C13 -> 36 | T47: ='GRILLE ISG IS G1'!D13 -> 416
A49: Soit un gain net mensuel de : | G49: =I40*C46*0.8315 -> 81.82 € | R49: ='GRILLE ISG IS G1'!B15 -> 4 | S49: ='GRILLE ISG IS G1'!C15 -> 36 | T49: ='GRILLE ISG IS G1'!D15 -> 437
R51: ='GRILLE ISG IS G1'!B17 -> 5 | S51: ='GRILLE ISG IS G1'!C17 -> 36 | T51: ='GRILLE ISG IS G1'!D17 -> 469
R53: ='GRILLE ISG IS G1'!B19 -> 6 | S53: ='GRILLE ISG IS G1'!C19 -> 42 | T53: ='GRILLE ISG IS G1'!D19 -> 500
A54: Vos représentant-e-s SUD Santé Sociaux | I54: =RECAPITULATIF!D21 -> 35 | K54: sont à votre disposition
A55: pour tous renseignements complémentaires au poste : | M55: =RECAPITULATIF!D17 -> 2886 | R55: ='GRILLE ISG IS G1'!B21 -> 7 | S55: ='GRILLE ISG IS G1'!C21 -> 48 | T55: ='GRILLE ISG IS G1'!D21 -> 521
R57: ='GRILLE ISG IS G1'!B23 -> 8 | S57: ='GRILLE ISG IS G1'!C23 -> 48 | T57: ='GRILLE ISG IS G1'!D23 -> 541
R59: ='GRILLE ISG IS G1'!B25 -> 9 | S59: ='GRILLE ISG IS G1'!C25 -> 48 | T59: ='GRILLE ISG IS G1'!D25 -> 565
A60: Recevez toutes nos salutations.
R61: ='GRILLE ISG IS G1'!B27 -> 10 | S61: ='GRILLE ISG IS G1'!C27 -> 0 | T61: ='GRILLE ISG IS G1'!D27 -> 591
A63: =RECAPITULATIF!B5 -> Madame FERET Isabelle, Madame Anne PICHON et Monsieur Patrick GAUTIER
A65: SUD Santé Sociaux | E65: =RECAPITULATIF!D21 -> 35
A70: Tél : | B70: =RECAPITULATIF!D19 -> 02 99 21 28 86
A71: Mél : | C71: =RECAPITULATIF!C23 -> sudsante@ch-stmalo.fr
A72: =RECAPITULATIF!B25 -> Site Départemental Sud | F72: =RECAPITULATIF!D25 -> http://www.sudsantesociaux35.org

Sheet ISG IS G1 Echelon 5
G2: Commission Administrative
G3: Paritaire | M3: =RECAPITULATIF!D7 -> Locale
M9: Mme, Mr :
M11: Grade :
M13: Service :
A16: Votre ou vos représentant-e-s du personnel
A18: =RECAPITULATIF!B5 -> Madame FERET Isabelle, Madame Anne PICHON et Monsieur Patrick GAUTIER
A20: SUD Santé Sociaux | E20: =RECAPITULATIF!D21 -> 35 | F20: du:
A22: =RECAPITULATIF!B2 -> Centre Hospitalier de Saint Malo
A24: siégeant auprès de la CAP | F24: =RECAPITULATIF!D7 -> Locale | J24: du : | K24: =RECAPITULATIF!D11 -> 2019-04-16 | N24: vous informe de votre :
F27: AVANCEMENT D’ECHELON
A33: Vous passez à l’échelon : | F33: ='GRILLE ISG IS G2'!B17 -> 5 | H33: Indice Majoré : | L33: ='GRILLE ISG IS G1'!D17 -> 469
A36: Date d'effet : | F36: / | H36: / | I36: =RECAPITULATIF!D9 -> 2019 | R36: ='GRILLE ISG IS G1'!B2 -> Catégorie A GRADE 1 Infirmier D.E., Manipulateur d'Electroradiologie Médicale, Masseur-Kinésithérapeute, Ergothérapeute, Psychomotricien, Orthophoniste, Pédicure-Podologue
A40: Ce qui représente un gain mensuel de : | I40: ='GRILLE ISG IS G2'!D17-'GRILLE ISG IS G2'!D15 -> 23 | K40: points d'indice.
R41: ='GRILLE ISG IS G2'!B7 -> Echelon | S41: ='GRILLE ISG IS G2'!C7 -> Durée (en mois) | T41: ='GRILLE ISG IS G2'!D7 -> Indice Majoré
A43: Pour information, la valeur brute du point d'indice | R43: ='GRILLE ISG IS G1'!B9 -> 1 | S43: ='GRILLE ISG IS G1'!C9 -> 24 | T43: ='GRILLE ISG IS G1'!D9 -> 388
R45: ='GRILLE ISG IS G1'!B11 -> 2 | S45: ='GRILLE ISG IS G1'!C11 -> 36 | T45: ='GRILLE ISG IS G1'!D11 -> 397
A46: est de | C46: =RECAPITULATIF!D13 -> 4.686 € | E46: au | F46: =RECAPITULATIF!D15 -> 2019-01-01
R47: ='GRILLE ISG IS G1'!B13 -> 3 | S47: ='GRILLE ISG IS G1'!C13 -> 36 | T47: ='GRILLE ISG IS G1'!D13 -> 416
A49: Soit un gain net mensuel de : | G49: =I40*C46*0.8315 -> 89.62 € | R49: ='GRILLE ISG IS G1'!B15 -> 4 | S49: ='GRILLE ISG IS G1'!C15 -> 36 | T49: ='GRILLE ISG IS G1'!D15 -> 437
R51: ='GRILLE ISG IS G1'!B17 -> 5 | S51: ='GRILLE ISG IS G1'!C17 -> 36 | T51: ='GRILLE ISG IS G1'!D17 -> 469
R53: ='GRILLE ISG IS G1'!B19 -> 6 | S53: ='GRILLE ISG IS G1'!C19 -> 42 | T53: ='GRILLE ISG IS G1'!D19 -> 500
A54: Vos représentant-e-s SUD Santé Sociaux | I54: =RECAPITULATIF!D21 -> 35 | K54: sont à votre disposition
A55: pour tous renseignements complémentaires au poste : | M55: =RECAPITULATIF!D17 -> 2886 | R55: ='GRILLE ISG IS G1'!B21 -> 7 | S55: ='GRILLE ISG IS G1'!C21 -> 48 | T55: ='GRILLE ISG IS G1'!D21 -> 521
R57: ='GRILLE ISG IS G1'!B23 -> 8 | S57: ='GRILLE ISG IS G1'!C23 -> 48 | T57: ='GRILLE ISG IS G1'!D23 -> 541
R59: ='GRILLE ISG IS G1'!B25 -> 9 | S59: ='GRILLE ISG IS G1'!C25 -> 48 | T59: ='GRILLE ISG IS G1'!D25 -> 565
A60: Recevez toutes nos salutations.
R61: ='GRILLE ISG IS G1'!B27 -> 10 | S61: ='GRILLE ISG IS G1'!C27 -> 0 | T61: ='GRILLE ISG IS G1'!D27 -> 591
A63: =RECAPITULATIF!B5 -> Madame FERET Isabelle, Madame Anne PICHON et Monsieur Patrick GAUTIER
A65: SUD Santé Sociaux | E65: =RECAPITULATIF!D21 -> 35
A70: Tél : | B70: =RECAPITULATIF!D19 -> 02 99 21 28 86
A71: Mél : | C71: =RECAPITULATIF!C23 -> sudsante@ch-stmalo.fr
A72: =RECAPITULATIF!B25 -> Site Départemental Sud | F72: =RECAPITULATIF!D25 -> http://www.sudsantesociaux35.org

Sheet ISG IS G1 Echelon 6
G2: Commission Administrative
G3: Paritaire | M3: =RECAPITULATIF!D7 -> Locale
M9: Mme, Mr :
M11: Grade :
M13: Service :
A16: Votre ou vos représentant-e-s du personnel
A18: =RECAPITULATIF!B5 -> Madame FERET Isabelle, Madame Anne PICHON et Monsieur Patrick GAUTIER
A20: SUD Santé Sociaux | E20: =RECAPITULATIF!D21 -> 35 | F20: du:
A22: =RECAPITULATIF!B2 -> Centre Hospitalier de Saint Malo
A24: siégeant auprès de la CAP | F24: =RECAPITULATIF!D7 -> Locale | J24: du : | K24: =RECAPITULATIF!D11 -> 2019-04-16 | N24: vous informe de votre :
F27: AVANCEMENT D’ECHELON
A33: Vous passez à l’échelon : | F33: ='GRILLE ISG IS G1'!B19 -> 6 | H33: Indice Majoré : | L33: ='GRILLE ISG IS G1'!D19 -> 500
A36: Date d'effet : | F36: / | H36: / | I36: =RECAPITULATIF!D9 -> 2019 | R36: ='GRILLE ISG IS G1'!B2 -> Catégorie A GRADE 1 Infirmier D.E., Manipulateur d'Electroradiologie Médicale, Masseur-Kinésithérapeute, Ergothérapeute, Psychomotricien, Orthophoniste, Pédicure-Podologue
A40: Ce qui représente un gain mensuel de : | I40: ='GRILLE ISG IS G1'!D19-'GRILLE ISG IS G1'!D17 -> 31 | K40: points d'indice.
R41: ='GRILLE ISG IS G1'!B7 -> Echelon | S41: ='GRILLE ISG IS G1'!C7 -> Durée (en mois) | T41: ='GRILLE ISG IS G1'!D7 -> Indice Majoré
A43: Pour information, la valeur brute du point d'indice | R43: ='GRILLE ISG IS G1'!B9 -> 1 | S43: ='GRILLE ISG IS G1'!C9 -> 24 | T43: ='GRILLE ISG IS G1'!D9 -> 388
R45: ='GRILLE ISG IS G1'!B11 -> 2 | S45: ='GRILLE ISG IS G1'!C11 -> 36 | T45: ='GRILLE ISG IS G1'!D11 -> 397
A46: est de | C46: =RECAPITULATIF!D13 -> 4.686 € | E46: au | F46: =RECAPITULATIF!D15 -> 2019-01-01
R47: ='GRILLE ISG IS G1'!B13 -> 3 | S47: ='GRILLE ISG IS G1'!C13 -> 36 | T47: ='GRILLE ISG IS G1'!D13 -> 416
A49: Soit un gain net mensuel de : | G49: =I40*C46*0.8315 -> 120.79 € | R49: ='GRILLE ISG IS G1'!B15 -> 4 | S49: ='GRILLE ISG IS G1'!C15 -> 36 | T49: ='GRILLE ISG IS G1'!D15 -> 437
R51: ='GRILLE ISG IS G1'!B17 -> 5 | S51: ='GRILLE ISG IS G1'!C17 -> 36 | T51: ='GRILLE ISG IS G1'!D17 -> 469
R53: ='GRILLE ISG IS G1'!B19 -> 6 | S53: ='GRILLE ISG IS G1'!C19 -> 42 | T53: ='GRILLE ISG IS G1'!D19 -> 500
A54: Vos représentant-e-s SUD Santé Sociaux | I54: =RECAPITULATIF!D21 -> 35 | K54: sont à votre disposition
A55: pour tous renseignements complémentaires au poste : | M55: =RECAPITULATIF!D17 -> 2886 | R55: ='GRILLE ISG IS G1'!B21 -> 7 | S55: ='GRILLE ISG IS G1'!C21 -> 48 | T55: ='GRILLE ISG IS G1'!D21 -> 521
R57: ='GRILLE ISG IS G1'!B23 -> 8 | S57: ='GRILLE ISG IS G1'!C23 -> 48 | T57: ='GRILLE ISG IS G1'!D23 -> 541
R59: ='GRILLE ISG IS G1'!B25 -> 9 | S59: ='GRILLE ISG IS G1'!C25 -> 48 | T59: ='GRILLE ISG IS G1'!D25 -> 565
A60: Recevez toutes nos salutations.
R61: ='GRILLE ISG IS G1'!B27 -> 10 | S61: ='GRILLE ISG IS G1'!C27 -> 0 | T61: ='GRILLE ISG IS G1'!D27 -> 591
A63: =RECAPITULATIF!B5 -> Madame FERET Isabelle, Madame Anne PICHON et Monsieur Patrick GAUTIER
A65: SUD Santé Sociaux | E65: =RECAPITULATIF!D21 -> 35
A70: Tél : | B70: =RECAPITULATIF!D19 -> 02 99 21 28 86
A71: Mél : | C71: =RECAPITULATIF!C23 -> sudsante@ch-stmalo.fr
A72: =RECAPITULATIF!B25 -> Site Départemental Sud | F72: =RECAPITULATIF!D25 -> http://www.sudsantesociaux35.org

Sheet ISG IS G1 Echelon 7
G2: Commission Administrative
G3: Paritaire | M3: =RECAPITULATIF!D7 -> Locale
M9: Mme, Mr :
M11: Grade :
M13: Service :
A16: Votre ou vos représentant-e-s du personnel
A18: =RECAPITULATIF!B5 -> Madame FERET Isabelle, Madame Anne PICHON et Monsieur Patrick GAUTIER
A20: SUD Santé Sociaux | E20: =RECAPITULATIF!D21 -> 35 | F20: du:
A22: =RECAPITULATIF!B2 -> Centre Hospitalier de Saint Malo
A24: siégeant auprès de la CAP | F24: =RECAPITULATIF!D7 -> Locale | J24: du : | K24: =RECAPITULATIF!D11 -> 2019-04-16 | N24: vous informe de votre :
F27: AVANCEMENT D’ECHELON
A33: Vous passez à l’échelon : | F33: ='GRILLE ISG IS G1'!B21 -> 7 | H33: Indice Majoré : | L33: ='GRILLE ISG IS G1'!D21 -> 521
A36: Date d'effet : | F36: / | H36: / | I36: =RECAPITULATIF!D9 -> 2019 | R36: ='GRILLE ISG IS G1'!B2 -> Catégorie A GRADE 1 Infirmier D.E., Manipulateur d'Electroradiologie Médicale, Masseur-Kinésithérapeute, Ergothérapeute, Psychomotricien, Orthophoniste, Pédicure-Podologue
A40: Ce qui représente un gain mensuel de : | I40: ='GRILLE ISG IS G1'!D21-'GRILLE ISG IS G1'!D19 -> 21 | K40: points d'indice.
R41: ='GRILLE ISG IS G1'!B7 -> Echelon | S41: ='GRILLE ISG IS G1'!C7 -> Durée (en mois) | T41: ='GRILLE ISG IS G1'!D7 -> Indice Majoré
A43: Pour information, la valeur brute du point d'indice | R43: ='GRILLE ISG IS G1'!B9 -> 1 | S43: ='GRILLE ISG IS G1'!C9 -> 24 | T43: ='GRILLE ISG IS G1'!D9 -> 388
R45: ='GRILLE ISG IS G1'!B11 -> 2 | S45: ='GRILLE ISG IS G1'!C11 -> 36 | T45: ='GRILLE ISG IS G1'!D11 -> 397
A46: est de | C46: =RECAPITULATIF!D13 -> 4.686 € | E46: au | F46: =RECAPITULATIF!D15 -> 2019-01-01
R47: ='GRILLE ISG IS G1'!B13 -> 3 | S47: ='GRILLE ISG IS G1'!C13 -> 36 | T47: ='GRILLE ISG IS G1'!D13 -> 416
A49: Soit un gain net mensuel de : | G49: =I40*C46*0.8315 -> 81.82 € | R49: ='GRILLE ISG IS G1'!B15 -> 4 | S49: ='GRILLE ISG IS G1'!C15 -> 36 | T49: ='GRILLE ISG IS G1'!D15 -> 437
R51: ='GRILLE ISG IS G1'!B17 -> 5 | S51: ='GRILLE ISG IS G1'!C17 -> 36 | T51: ='GRILLE ISG IS G1'!D17 -> 469
R53: ='GRILLE ISG IS G1'!B19 -> 6 | S53: ='GRILLE ISG IS G1'!C19 -> 42 | T53: ='GRILLE ISG IS G1'!D19 -> 500
A54: Vos représentant-e-s SUD Santé Sociaux | I54: =RECAPITULATIF!D21 -> 35 | K54: sont à votre disposition
A55: pour tous renseignements complémentaires au poste : | M55: =RECAPITULATIF!D17 -> 2886 | R55: ='GRILLE ISG IS G1'!B21 -> 7 | S55: ='GRILLE ISG IS G1'!C21 -> 48 | T55: ='GRILLE ISG IS G1'!D21 -> 521
R57: ='GRILLE ISG IS G1'!B23 -> 8 | S57: ='GRILLE ISG IS G1'!C23 -> 48 | T57: ='GRILLE ISG IS G1'!D23 -> 541
R59: ='GRILLE ISG IS G1'!B25 -> 9 | S59: ='GRILLE ISG IS G1'!C25 -> 48 | T59: ='GRILLE ISG IS G1'!D25 -> 565
A60: Recevez toutes nos salutations.
R61: ='GRILLE ISG IS G1'!B27 -> 10 | S61: ='GRILLE ISG IS G1'!C27 -> 0 | T61: ='GRILLE ISG IS G1'!D27 -> 591
A63: =RECAPITULATIF!B5 -> Madame FERET Isabelle, Madame Anne PICHON et Monsieur Patrick GAUTIER
A65: SUD Santé Sociaux | E65: =RECAPITULATIF!D21 -> 35
A70: Tél : | B70: =RECAPITULATIF!D19 -> 02 99 21 28 86
A71: Mél : | C71: =RECAPITULATIF!C23 -> sudsante@ch-stmalo.fr
A72: =RECAPITULATIF!B25 -> Site Départemental Sud | F72: =RECAPITULATIF!D25 -> http://www.sudsantesociaux35.org

Sheet ISG IS G1 Echelon 8
G2: Commission Administrative
G3: Paritaire | M3: =RECAPITULATIF!D7 -> Locale
M9: Mme, Mr :
M11: Grade :
M13: Service :
A16: Votre ou vos représentant-e-s du personnel
A18: =RECAPITULATIF!B5 -> Madame FERET Isabelle, Madame Anne PICHON et Monsieur Patrick GAUTIER
A20: SUD Santé Sociaux | E20: =RECAPITULATIF!D21 -> 35 | F20: du:
A22: =RECAPITULATIF!B2 -> Centre Hospitalier de Saint Malo
A24: siégeant auprès de la CAP | F24: =RECAPITULATIF!D7 -> Locale | J24: du : | K24: =RECAPITULATIF!D11 -> 2019-04-16 | N24: vous informe de votre :
F27: AVANCEMENT D’ECHELON
A33: Vous passez à l’échelon : | F33: ='GRILLE ISG IS G1'!B23 -> 8 | H33: Indice Majoré : | L33: ='GRILLE ISG IS G1'!D23 -> 541
A36: Date d'effet : | F36: / | H36: / | I36: =RECAPITULATIF!D9 -> 2019 | R36: ='GRILLE ISG IS G1'!B2 -> Catégorie A GRADE 1 Infirmier D.E., Manipulateur d'Electroradiologie Médicale, Masseur-Kinésithérapeute, Ergothérapeute, Psychomotricien, Orthophoniste, Pédicure-Podologue
A40: Ce qui représente un gain mensuel de : | I40: ='GRILLE ISG IS G1'!D23-'GRILLE ISG IS G1'!D21 -> 20 | K40: points d'indice.
R41: ='GRILLE ISG IS G1'!B7 -> Echelon | S41: ='GRILLE ISG IS G1'!C7 -> Durée (en mois) | T41: ='GRILLE ISG IS G1'!D7 -> Indice Majoré
A43: Pour information, la valeur brute du point d'indice | R43: ='GRILLE ISG IS G1'!B9 -> 1 | S43: ='GRILLE ISG IS G1'!C9 -> 24 | T43: ='GRILLE ISG IS G1'!D9 -> 388
R45: ='GRILLE ISG IS G1'!B11 -> 2 | S45: ='GRILLE ISG IS G1'!C11 -> 36 | T45: ='GRILLE ISG IS G1'!D11 -> 397
A46: est de | C46: =RECAPITULATIF!D13 -> 4.686 € | E46: au | F46: =RECAPITULATIF!D15 -> 2019-01-01
R47: ='GRILLE ISG IS G1'!B13 -> 3 | S47: ='GRILLE ISG IS G1'!C13 -> 36 | T47: ='GRILLE ISG IS G1'!D13 -> 416
A49: Soit un gain net mensuel de : | G49: =I40*C46*0.8315 -> 77.93 € | R49: ='GRILLE ISG IS G1'!B15 -> 4 | S49: ='GRILLE ISG IS G1'!C15 -> 36 | T49: ='GRILLE ISG IS G1'!D15 -> 437
R51: ='GRILLE ISG IS G1'!B17 -> 5 | S51: ='GRILLE ISG IS G1'!C17 -> 36 | T51: ='GRILLE ISG IS G1'!D17 -> 469
R53: ='GRILLE ISG IS G1'!B19 -> 6 | S53: ='GRILLE ISG IS G1'!C19 -> 42 | T53: ='GRILLE ISG IS G1'!D19 -> 500
A54: Vos représentant-e-s SUD Santé Sociaux | I54: =RECAPITULATIF!D21 -> 35 | K54: sont à votre disposition
A55: pour tous renseignements complémentaires au poste : | M55: =RECAPITULATIF!D17 -> 2886 | R55: ='GRILLE ISG IS G1'!B21 -> 7 | S55: ='GRILLE ISG IS G1'!C21 -> 48 | T55: ='GRILLE ISG IS G1'!D21 -> 521
R57: ='GRILLE ISG IS G1'!B23 -> 8 | S57: ='GRILLE ISG IS G1'!C23 -> 48 | T57: ='GRILLE ISG IS G1'!D23 -> 541
R59: ='GRILLE ISG IS G1'!B25 -> 9 | S59: ='GRILLE ISG IS G1'!C25 -> 48 | T59: ='GRILLE ISG IS G1'!D25 -> 565
A60: Recevez toutes nos salutations.
R61: ='GRILLE ISG IS G1'!B27 -> 10 | S61: ='GRILLE ISG IS G1'!C27 -> 0 | T61: ='GRILLE ISG IS G1'!D27 -> 591
A63: =RECAPITULATIF!B5 -> Madame FERET Isabelle, Madame Anne PICHON et Monsieur Patrick GAUTIER
A65: SUD Santé Sociaux | E65: =RECAPITULATIF!D21 -> 35
A70: Tél : | B70: =RECAPITULATIF!D19 -> 02 99 21 28 86
A71: Mél : | C71: =RECAPITULATIF!C23 -> sudsante@ch-stmalo.fr
A72: =RECAPITULATIF!B25 -> Site Départemental Sud | F72: =RECAPITULATIF!D25 -> http://www.sudsantesociaux35.org

Sheet ISG IS G1 Echelon 9
G2: Commission Administrative
G3: Paritaire | M3: =RECAPITULATIF!D7 -> Locale
M9: Mme, Mr :
M11: Grade :
M13: Service :
A16: Votre ou vos représentant-e-s du personnel
A18: =RECAPITULATIF!B5 -> Madame FERET Isabelle, Madame Anne PICHON et Monsieur Patrick GAUTIER
A20: SUD Santé Sociaux | E20: =RECAPITULATIF!D21 -> 35 | F20: du:
A22: =RECAPITULATIF!B2 -> Centre Hospitalier de Saint Malo
A24: siégeant auprès de la CAP | F24: =RECAPITULATIF!D7 -> Locale | J24: du : | K24: =RECAPITULATIF!D11 -> 2019-04-16 | N24: vous informe de votre :
F27: AVANCEMENT D’ECHELON
A33: Vous passez à l’échelon : | F33: ='GRILLE ISG IS G1'!B25 -> 9 | H33: Indice Majoré : | L33: ='GRILLE ISG IS G1'!D25 -> 565
A36: Date d'effet : | F36: / | H36: / | I36: =RECAPITULATIF!D9 -> 2019 | R36: ='GRILLE ISG IS G1'!B2 -> Catégorie A GRADE 1 Infirmier D.E., Manipulateur d'Electroradiologie Médicale, Masseur-Kinésithérapeute, Ergothérapeute, Psychomotricien, Orthophoniste, Pédicure-Podologue
A40: Ce qui représente un gain mensuel de : | I40: ='GRILLE ISG IS G1'!D25-'GRILLE ISG IS G1'!D23 -> 24 | K40: points d'indice.
R41: ='GRILLE ISG IS G1'!B7 -> Echelon | S41: ='GRILLE ISG IS G1'!C7 -> Durée (en mois) | T41: ='GRILLE ISG IS G1'!D7 -> Indice Majoré
A43: Pour information, la valeur brute du point d'indice | R43: ='GRILLE ISG IS G1'!B9 -> 1 | S43: ='GRILLE ISG IS G1'!C9 -> 24 | T43: ='GRILLE ISG IS G1'!D9 -> 388
R45: ='GRILLE ISG IS G1'!B11 -> 2 | S45: ='GRILLE ISG IS G1'!C11 -> 36 | T45: ='GRILLE ISG IS G1'!D11 -> 397
A46: est de | C46: =RECAPITULATIF!D13 -> 4.686 € | E46: au | F46: =RECAPITULATIF!D15 -> 2019-01-01
R47: ='GRILLE ISG IS G1'!B13 -> 3 | S47: ='GRILLE ISG IS G1'!C13 -> 36 | T47: ='GRILLE ISG IS G1'!D13 -> 416
A49: Soit un gain net mensuel de : | G49: =I40*C46*0.8315 -> 93.51 € | R49: ='GRILLE ISG IS G1'!B15 -> 4 | S49: ='GRILLE ISG IS G1'!C15 -> 36 | T49: ='GRILLE ISG IS G1'!D15 -> 437
R51: ='GRILLE ISG IS G1'!B17 -> 5 | S51: ='GRILLE ISG IS G1'!C17 -> 36 | T51: ='GRILLE ISG IS G1'!D17 -> 469
R53: ='GRILLE ISG IS G1'!B19 -> 6 | S53: ='GRILLE ISG IS G1'!C19 -> 42 | T53: ='GRILLE ISG IS G1'!D19 -> 500
A54: Vos représentant-e-s SUD Santé Sociaux | I54: =RECAPITULATIF!D21 -> 35 | K54: sont à votre disposition
A55: pour tous renseignements complémentaires au poste : | M55: =RECAPITULATIF!D17 -> 2886 | R55: ='GRILLE ISG IS G1'!B21 -> 7 | S55: ='GRILLE ISG IS G1'!C21 -> 48 | T55: ='GRILLE ISG IS G1'!D21 -> 521
R57: ='GRILLE ISG IS G1'!B23 -> 8 | S57: ='GRILLE ISG IS G1'!C23 -> 48 | T57: ='GRILLE ISG IS G1'!D23 -> 541
R59: ='GRILLE ISG IS G1'!B25 -> 9 | S59: ='GRILLE ISG IS G1'!C25 -> 48 | T59: ='GRILLE ISG IS G1'!D25 -> 565
A60: Recevez toutes nos salutations.
R61: ='GRILLE ISG IS G1'!B27 -> 10 | S61: ='GRILLE ISG IS G1'!C27 -> 0 | T61: ='GRILLE ISG IS G1'!D27 -> 591
A63: =RECAPITULATIF!B5 -> Madame FERET Isabelle, Madame Anne PICHON et Monsieur Patrick GAUTIER
A65: SUD Santé Sociaux | E65: =RECAPITULATIF!D21 -> 35
A70: Tél : | B70: =RECAPITULATIF!D19 -> 02 99 21 28 86
A71: Mél : | C71: =RECAPITULATIF!C23 -> sudsante@ch-stmalo.fr
A72: =RECAPITULATIF!B25 -> Site Départemental Sud | F72: =RECAPITULATIF!D25 -> http://www.sudsantesociaux35.org

Sheet ISG IS G1 Echelon 10
G2: Commission Administrative
G3: Paritaire | M3: =RECAPITULATIF!D7 -> Locale
M9: Mme, Mr :
M11: Grade :
M13: Service :
A16: Votre ou vos représentant-e-s du personnel
A18: =RECAPITULATIF!B5 -> Madame FERET Isabelle, Madame Anne PICHON et Monsieur Patrick GAUTIER
A20: SUD Santé Sociaux | E20: =RECAPITULATIF!D21 -> 35 | F20: du:
A22: =RECAPITULATIF!B2 -> Centre Hospitalier de Saint Malo
A24: siégeant auprès de la CAP | F24: =RECAPITULATIF!D7 -> Locale | J24: du : | K24: =RECAPITULATIF!D11 -> 2019-04-16 | N24: vous informe de votre :
F27: AVANCEMENT D’ECHELON
A33: Vous passez à l’échelon : | F33: ='GRILLE ISG IS G2'!B27 -> 10 | H33: Indice Majoré : | L33: ='GRILLE ISG IS G1'!D27 -> 591
A36: Date d'effet : | F36: / | H36: / | I36: =RECAPITULATIF!D9 -> 2019 | R36: ='GRILLE ISG IS G1'!B2 -> Catégorie A GRADE 1 Infirmier D.E., Manipulateur d'Electroradiologie Médicale, Masseur-Kinésithérapeute, Ergothérapeute, Psychomotricien, Orthophoniste, Pédicure-Podologue
A40: Ce qui représente un gain mensuel de : | I40: ='GRILLE ISG IS G1'!D27-'GRILLE ISG IS G1'!D25 -> 26 | K40: points d'indice.
R41: ='GRILLE ISG IS G2'!B7 -> Echelon | S41: ='GRILLE ISG IS G2'!C7 -> Durée (en mois) | T41: ='GRILLE ISG IS G2'!D7 -> Indice Majoré
A43: Pour information, la valeur brute du point d'indice | R43: ='GRILLE ISG IS G1'!B9 -> 1 | S43: ='GRILLE ISG IS G1'!C9 -> 24 | T43: ='GRILLE ISG IS G1'!D9 -> 388
R45: ='GRILLE ISG IS G1'!B11 -> 2 | S45: ='GRILLE ISG IS G1'!C11 -> 36 | T45: ='GRILLE ISG IS G1'!D11 -> 397
A46: est de | C46: =RECAPITULATIF!D13 -> 4.686 € | E46: au | F46: =RECAPITULATIF!D15 -> 2019-01-01
R47: ='GRILLE ISG IS G1'!B13 -> 3 | S47: ='GRILLE ISG IS G1'!C13 -> 36 | T47: ='GRILLE ISG IS G1'!D13 -> 416
A49: Soit un gain net mensuel de : | G49: =I40*C46*0.8315 -> 101.31 € | R49: ='GRILLE ISG IS G1'!B15 -> 4 | S49: ='GRILLE ISG IS G1'!C15 -> 36 | T49: ='GRILLE ISG IS G1'!D15 -> 437
R51: ='GRILLE ISG IS G1'!B17 -> 5 | S51: ='GRILLE ISG IS G1'!C17 -> 36 | T51: ='GRILLE ISG IS G1'!D17 -> 469
R53: ='GRILLE ISG IS G1'!B19 -> 6 | S53: ='GRILLE ISG IS G1'!C19 -> 42 | T53: ='GRILLE ISG IS G1'!D19 -> 500
A54: Vos représentant-e-s SUD Santé Sociaux | I54: =RECAPITULATIF!D21 -> 35 | K54: sont à votre disposition
A55: pour tous renseignements complémentaires au poste : | M55: =RECAPITULATIF!D17 -> 2886 | R55: ='GRILLE ISG IS G1'!B21 -> 7 | S55: ='GRILLE ISG IS G1'!C21 -> 48 | T55: ='GRILLE ISG IS G1'!D21 -> 521
R57: ='GRILLE ISG IS G1'!B23 -> 8 | S57: ='GRILLE ISG IS G1'!C23 -> 48 | T57: ='GRILLE ISG IS G1'!D23 -> 541
R59: ='GRILLE ISG IS G1'!B25 -> 9 | S59: ='GRILLE ISG IS G1'!C25 -> 48 | T59: ='GRILLE ISG IS G1'!D25 -> 565
A60: Recevez toutes nos salutations.
R61: ='GRILLE ISG IS G1'!B27 -> 10 | S61: ='GRILLE ISG IS G1'!C27 -> 0 | T61: ='GRILLE ISG IS G1'!D27 -> 591
A63: =RECAPITULATIF!B5 -> Madame FERET Isabelle, Madame Anne PICHON et Monsieur Patrick GAUTIER
A65: SUD Santé Sociaux | E65: =RECAPITULATIF!D21 -> 35
A70: Tél : | B70: =RECAPITULATIF!D19 -> 02 99 21 28 86
A71: Mél : | C71: =RECAPITULATIF!C23 -> sudsante@ch-stmalo.fr
A72: =RECAPITULATIF!B25 -> Site Départemental Sud | F72: =RECAPITULATIF!D25 -> http://www.sudsantesociaux35.org

Sheet GRILLE ISG IS G2
B2: Grade 2 Manipulateur d'Electroradiologie Médicale, Ergothérapeute, Masseur-Kinésithérapeute, Psychomotricien, Orthophoniste, Pédicure-Podologue Infirmiers D.E. I.B.O.D.E. et Puericultrice
B7: Echelon | C7: Durée (en mois) | D7: Indice Majoré
B9: 1 | C9: 24 | D9: 416
B11: 2 | C11: 24 | D11: 432
B13: 3 | C13: 24 | D13: 452
B15: 4 | C15: 24 | D15: 472
B17: 5 | C17: 36 | D17: 495
B19: 6 | C19: 42 | D19: 518
B21: 7 | C21: 48 | D21: 542
B23: 8 | C23: 48 | D23: 565
B25: 9 | C25: 48 | D25: 592
B27: 10 | D27: 617

Sheet IMP GRILLE ISG IS G2
B2: 1) Imprimez autant de feuilles que d'agents concernés.
B4: 2) Pliez en 3 au niveau du repère, deux petits traits noirs.
B6: 3) Inserrez ce courrier dans une enveloppe 110 X 220 à fenêtre.

Sheet ISG IS G2 Echelon 2
G2: Commission Administrative
G3: Paritaire | M3: =RECAPITULATIF!D7 -> Locale
M9: Mme, Mr :
M11: Grade :
M13: Service :
A16: Votre ou vos représentant-e-s du personnel
A18: =RECAPITULATIF!B5 -> Madame FERET Isabelle, Madame Anne PICHON et Monsieur Patrick GAUTIER
A20: SUD Santé Sociaux | E20: =RECAPITULATIF!D21 -> 35 | F20: du:
A22: =RECAPITULATIF!B2 -> Centre Hospitalier de Saint Malo
A24: siégeant auprès de la CAP | F24: =RECAPITULATIF!D7 -> Locale | J24: du : | K24: =RECAPITULATIF!D11 -> 2019-04-16 | N24: vous informe de votre :
F27: AVANCEMENT D’ECHELON
A33: Vous passez à l’échelon : | F33: ='GRILLE ISG IS G2'!B11 -> 2 | H33: Indice Majoré : | L33: ='GRILLE ISG IS G2'!D11 -> 432
A36: Date d'effet : | F36: / | H36: / | I36: =RECAPITULATIF!D9 -> 2019 | R36: ='GRILLE ISG IS G2'!B2 -> Grade 2 Manipulateur d'Electroradiologie Médicale, Ergothérapeute, Masseur-Kinésithérapeute, Psychomotricien, Orthophoniste, Pédicure-Podologue Infirmiers D.E. I.B.O.D.E. et Puericultrice
A40: Ce qui représente un gain mensuel de : | I40: ='GRILLE ISG IS G2'!D11-'GRILLE ISG IS G2'!D9 -> 16 | K40: points d'indice.
R41: ='GRILLE ISG IS G2'!B7 -> Echelon | S41: ='GRILLE ISG IS G2'!C7 -> Durée (en mois) | T41: ='GRILLE ISG IS G2'!D7 -> Indice Majoré
A43: Pour information, la valeur brute du point d'indice | R43: ='GRILLE ISG IS G2'!B9 -> 1 | S43: ='GRILLE ISG IS G2'!C9 -> 24 | T43: ='GRILLE ISG IS G2'!D9 -> 416
R45: ='GRILLE ISG IS G2'!B11 -> 2 | S45: ='GRILLE ISG IS G2'!C11 -> 24 | T45: ='GRILLE ISG IS G2'!D11 -> 432
A46: est de | C46: =RECAPITULATIF!D13 -> 4.686 € | E46: au | F46: =RECAPITULATIF!D15 -> 2019-01-01
R47: ='GRILLE ISG IS G2'!B13 -> 3 | S47: ='GRILLE ISG IS G2'!C13 -> 24 | T47: ='GRILLE ISG IS G2'!D13 -> 452
A49: Soit un gain net mensuel de : | G49: =I40*C46*0.8315 -> 62.34 € | R49: ='GRILLE ISG IS G2'!B15 -> 4 | S49: ='GRILLE ISG IS G2'!C15 -> 24 | T49: ='GRILLE ISG IS G2'!D15 -> 472
R51: ='GRILLE ISG IS G2'!B17 -> 5 | S51: ='GRILLE ISG IS G2'!C17 -> 36 | T51: ='GRILLE ISG IS G2'!D17 -> 495
R53: ='GRILLE ISG IS G2'!B19 -> 6 | S53: ='GRILLE ISG IS G2'!C19 -> 42 | T53: ='GRILLE ISG IS G2'!D19 -> 518
A54: Vos représentant-e-s SUD Santé Sociaux | I54: =RECAPITULATIF!D21 -> 35 | K54: sont à votre disposition
A55: pour tous renseignements complémentaires au poste : | M55: =RECAPITULATIF!D17 -> 2886 | R55: ='GRILLE ISG IS G2'!B21 -> 7 | S55: ='GRILLE ISG IS G2'!C21 -> 48 | T55: ='GRILLE ISG IS G2'!D21 -> 542
R57: ='GRILLE ISG IS G2'!B23 -> 8 | S57: ='GRILLE ISG IS G2'!C23 -> 48 | T57: ='GRILLE ISG IS G2'!D23 -> 565
R59: ='GRILLE ISG IS G2'!B25 -> 9 | S59: ='GRILLE ISG IS G2'!C25 -> 48 | T59: ='GRILLE ISG IS G2'!D25 -> 592
A60: Recevez toutes nos salutations.
R61: ='GRILLE ISG IS G2'!B27 -> 10 | S61: ='GRILLE ISG IS G2'!C27 -> 0 | T61: ='GRILLE ISG IS G2'!D27 -> 617
A63: =RECAPITULATIF!B5 -> Madame FERET Isabelle, Madame Anne PICHON et Monsieur Patrick GAUTIER
A65: SUD Santé Sociaux | E65: =RECAPITULATIF!D21 -> 35
A70: Tél : | B70: =RECAPITULATIF!D19 -> 02 99 21 28 86
A71: Mél : | C71: =RECAPITULATIF!C23 -> sudsante@ch-stmalo.fr
A72: =RECAPITULATIF!B25 -> Site Départemental Sud | F72: =RECAPITULATIF!D25 -> http://www.sudsantesociaux35.org

Sheet ISG IS G2 Echelon 3
G2: Commission Administrative
G3: Paritaire | M3: =RECAPITULATIF!D7 -> Locale
M9: Mme, Mr :
M11: Grade :
M13: Service :
A16: Votre ou vos représentant-e-s du personnel
A18: =RECAPITULATIF!B5 -> Madame FERET Isabelle, Madame Anne PICHON et Monsieur Patrick GAUTIER
A20: SUD Santé Sociaux | E20: =RECAPITULATIF!D21 -> 35 | F20: du:
A22: =RECAPITULATIF!B2 -> Centre Hospitalier de Saint Malo
A24: siégeant auprès de la CAP | F24: =RECAPITULATIF!D7 -> Locale | J24: du : | K24: =RECAPITULATIF!D11 -> 2019-04-16 | N24: vous informe de votre :
F27: AVANCEMENT D’ECHELON
A33: Vous passez à l’échelon : | F33: ='GRILLE ISG IS G2'!B13 -> 3 | H33: Indice Majoré : | L33: ='GRILLE ISG IS G2'!D13 -> 452
A36: Date d'effet : | F36: / | H36: / | I36: =RECAPITULATIF!D9 -> 2019 | R36: ='GRILLE ISG IS G2'!B2 -> Grade 2 Manipulateur d'Electroradiologie Médicale, Ergothérapeute, Masseur-Kinésithérapeute, Psychomotricien, Orthophoniste, Pédicure-Podologue Infirmiers D.E. I.B.O.D.E. et Puericultrice
A40: Ce qui représente un gain mensuel de : | I40: ='GRILLE ISG IS G2'!D13-'GRILLE ISG IS G2'!D11 -> 20 | K40: points d'indice.
R41: ='GRILLE ISG IS G2'!B7 -> Echelon | S41: ='GRILLE ISG IS G2'!C7 -> Durée (en mois) | T41: ='GRILLE ISG IS G2'!D7 -> Indice Majoré
A43: Pour information, la valeur brute du point d'indice | R43: ='GRILLE ISG IS G2'!B9 -> 1 | S43: ='GRILLE ISG IS G2'!C9 -> 24 | T43: ='GRILLE ISG IS G2'!D9 -> 416
R45: ='GRILLE ISG IS G2'!B11 -> 2 | S45: ='GRILLE ISG IS G2'!C11 -> 24 | T45: ='GRILLE ISG IS G2'!D11 -> 432
A46: est de | C46: =RECAPITULATIF!D13 -> 4.686 € | E46: au | F46: =RECAPITULATIF!D15 -> 2019-01-01
R47: ='GRILLE ISG IS G2'!B13 -> 3 | S47: ='GRILLE ISG IS G2'!C13 -> 24 | T47: ='GRILLE ISG IS G2'!D13 -> 452
A49: Soit un gain net mensuel de : | G49: =I40*C46*0.8315 -> 77.93 € | R49: ='GRILLE ISG IS G2'!B15 -> 4 | S49: ='GRILLE ISG IS G2'!C15 -> 24 | T49: ='GRILLE ISG IS G2'!D15 -> 472
R51: ='GRILLE ISG IS G2'!B17 -> 5 | S51: ='GRILLE ISG IS G2'!C17 -> 36 | T51: ='GRILLE ISG IS G2'!D17 -> 495
R53: ='GRILLE ISG IS G2'!B19 -> 6 | S53: ='GRILLE ISG IS G2'!C19 -> 42 | T53: ='GRILLE ISG IS G2'!D19 -> 518
A54: Vos représentant-e-s SUD Santé Sociaux | I54: =RECAPITULATIF!D21 -> 35 | K54: sont à votre disposition
A55: pour tous renseignements complémentaires au poste : | M55: =RECAPITULATIF!D17 -> 2886 | R55: ='GRILLE ISG IS G2'!B21 -> 7 | S55: ='GRILLE ISG IS G2'!C21 -> 48 | T55: ='GRILLE ISG IS G2'!D21 -> 542
R57: ='GRILLE ISG IS G2'!B23 -> 8 | S57: ='GRILLE ISG IS G2'!C23 -> 48 | T57: ='GRILLE ISG IS G2'!D23 -> 565
R59: ='GRILLE ISG IS G2'!B25 -> 9 | S59: ='GRILLE ISG IS G2'!C25 -> 48 | T59: ='GRILLE ISG IS G2'!D25 -> 592
A60: Recevez toutes nos salutations.
R61: ='GRILLE ISG IS G2'!B27 -> 10 | S61: ='GRILLE ISG IS G2'!C27 -> 0 | T61: ='GRILLE ISG IS G2'!D27 -> 617
A63: =RECAPITULATIF!B5 -> Madame FERET Isabelle, Madame Anne PICHON et Monsieur Patrick GAUTIER
A65: SUD Santé Sociaux | E65: =RECAPITULATIF!D21 -> 35
A70: Tél : | B70: =RECAPITULATIF!D19 -> 02 99 21 28 86
A71: Mél : | C71: =RECAPITULATIF!C23 -> sudsante@ch-stmalo.fr
A72: =RECAPITULATIF!B25 -> Site Départemental Sud | F72: =RECAPITULATIF!D25 -> http://www.sudsantesociaux35.org

Sheet ISG IS G2 Echelon 4
G2: Commission Administrative
G3: Paritaire | M3: =RECAPITULATIF!D7 -> Locale
M9: Mme, Mr :
M11: Grade :
M13: Service :
A16: Votre ou vos représentant-e-s du personnel
A18: =RECAPITULATIF!B5 -> Madame FERET Isabelle, Madame Anne PICHON et Monsieur Patrick GAUTIER
A20: SUD Santé Sociaux | E20: =RECAPITULATIF!D21 -> 35 | F20: du:
A22: =RECAPITULATIF!B2 -> Centre Hospitalier de Saint Malo
A24: siégeant auprès de la CAP | F24: =RECAPITULATIF!D7 -> Locale | J24: du : | K24: =RECAPITULATIF!D11 -> 2019-04-16 | N24: vous informe de votre :
F27: AVANCEMENT D’ECHELON
A33: Vous passez à l’échelon : | F33: ='GRILLE ISG IS G2'!B15 -> 4 | H33: Indice Majoré : | L33: ='GRILLE ISG IS G2'!D15 -> 472
A36: Date d'effet : | F36: / | H36: / | I36: =RECAPITULATIF!D9 -> 2019 | R36: ='GRILLE ISG IS G2'!B2 -> Grade 2 Manipulateur d'Electroradiologie Médicale, Ergothérapeute, Masseur-Kinésithérapeute, Psychomotricien, Orthophoniste, Pédicure-Podologue Infirmiers D.E. I.B.O.D.E. et Puericultrice
A40: Ce qui représente un gain mensuel de : | I40: ='GRILLE ISG IS G2'!D15-'GRILLE ISG IS G2'!D13 -> 20 | K40: points d'indice.
R41: ='GRILLE ISG IS G2'!B7 -> Echelon | S41: ='GRILLE ISG IS G2'!C7 -> Durée (en mois) | T41: ='GRILLE ISG IS G2'!D7 -> Indice Majoré
A43: Pour information, la valeur brute du point d'indice | R43: ='GRILLE ISG IS G2'!B9 -> 1 | S43: ='GRILLE ISG IS G2'!C9 -> 24 | T43: ='GRILLE ISG IS G2'!D9 -> 416
R45: ='GRILLE ISG IS G2'!B11 -> 2 | S45: ='GRILLE ISG IS G2'!C11 -> 24 | T45: ='GRILLE ISG IS G2'!D11 -> 432
A46: est de | C46: =RECAPITULATIF!D13 -> 4.686 € | E46: au | F46: =RECAPITULATIF!D15 -> 2019-01-01
R47: ='GRILLE ISG IS G2'!B13 -> 3 | S47: ='GRILLE ISG IS G2'!C13 -> 24 | T47: ='GRILLE ISG IS G2'!D13 -> 452
A49: Soit un gain net mensuel de : | G49: =I40*C46*0.8315 -> 77.93 € | R49: ='GRILLE ISG IS G2'!B15 -> 4 | S49: ='GRILLE ISG IS G2'!C15 -> 24 | T49: ='GRILLE ISG IS G2'!D15 -> 472
R51: ='GRILLE ISG IS G2'!B17 -> 5 | S51: ='GRILLE ISG IS G2'!C17 -> 36 | T51: ='GRILLE ISG IS G2'!D17 -> 495
R53: ='GRILLE ISG IS G2'!B19 -> 6 | S53: ='GRILLE ISG IS G2'!C19 -> 42 | T53: ='GRILLE ISG IS G2'!D19 -> 518
A54: Vos représentant-e-s SUD Santé Sociaux | I54: =RECAPITULATIF!D21 -> 35 | K54: sont à votre disposition
A55: pour tous renseignements complémentaires au poste : | M55: =RECAPITULATIF!D17 -> 2886 | R55: ='GRILLE ISG IS G2'!B21 -> 7 | S55: ='GRILLE ISG IS G2'!C21 -> 48 | T55: ='GRILLE ISG IS G2'!D21 -> 542
R57: ='GRILLE ISG IS G2'!B23 -> 8 | S57: ='GRILLE ISG IS G2'!C23 -> 48 | T57: ='GRILLE ISG IS G2'!D23 -> 565
R59: ='GRILLE ISG IS G2'!B25 -> 9 | S59: ='GRILLE ISG IS G2'!C25 -> 48 | T59: ='GRILLE ISG IS G2'!D25 -> 592
A60: Recevez toutes nos salutations.
R61: ='GRILLE ISG IS G2'!B27 -> 10 | S61: ='GRILLE ISG IS G2'!C27 -> 0 | T61: ='GRILLE ISG IS G2'!D27 -> 617
A63: =RECAPITULATIF!B5 -> Madame FERET Isabelle, Madame Anne PICHON et Monsieur Patrick GAUTIER
A65: SUD Santé Sociaux | E65: =RECAPITULATIF!D21 -> 35
A70: Tél : | B70: =RECAPITULATIF!D19 -> 02 99 21 28 86
A71: Mél : | C71: =RECAPITULATIF!C23 -> sudsante@ch-stmalo.fr
A72: =RECAPITULATIF!B25 -> Site Départemental Sud | F72: =RECAPITULATIF!D25 -> http://www.sudsantesociaux35.org

Sheet ISG IS G2 Echelon 5
G2: Commission Administrative
G3: Paritaire | M3: =RECAPITULATIF!D7 -> Locale
M9: Mme, Mr :
M11: Grade :
M13: Service :
A16: Votre ou vos représentant-e-s du personnel
A18: =RECAPITULATIF!B5 -> Madame FERET Isabelle, Madame Anne PICHON et Monsieur Patrick GAUTIER
A20: SUD Santé Sociaux | E20: =RECAPITULATIF!D21 -> 35 | F20: du:
A22: =RECAPITULATIF!B2 -> Centre Hospitalier de Saint Malo
A24: siégeant auprès de la CAP | F24: =RECAPITULATIF!D7 -> Locale | J24: du : | K24: =RECAPITULATIF!D11 -> 2019-04-16 | N24: vous informe de votre :
F27: AVANCEMENT D’ECHELON
A33: Vous passez à l’échelon : | F33: ='GRILLE ISG IS G2'!B17 -> 5 | H33: Indice Majoré : | L33: ='GRILLE ISG IS G2'!D17 -> 495
A36: Date d'effet : | F36: / | H36: / | I36: =RECAPITULATIF!D9 -> 2019 | R36: ='GRILLE ISG IS G2'!B2 -> Grade 2 Manipulateur d'Electroradiologie Médicale, Ergothérapeute, Masseur-Kinésithérapeute, Psychomotricien, Orthophoniste, Pédicure-Podologue Infirmiers D.E. I.B.O.D.E. et Puericultrice
A40: Ce qui représente un gain mensuel de : | I40: ='GRILLE ISG IS G2'!D17-'GRILLE ISG IS G2'!D15 -> 23 | K40: points d'indice.
R41: ='GRILLE ISG IS G2'!B7 -> Echelon | S41: ='GRILLE ISG IS G2'!C7 -> Durée (en mois) | T41: ='GRILLE ISG IS G2'!D7 -> Indice Majoré
A43: Pour information, la valeur brute du point d'indice | R43: ='GRILLE ISG IS G2'!B9 -> 1 | S43: ='GRILLE ISG IS G2'!C9 -> 24 | T43: ='GRILLE ISG IS G2'!D9 -> 416
R45: ='GRILLE ISG IS G2'!B11 -> 2 | S45: ='GRILLE ISG IS G2'!C11 -> 24 | T45: ='GRILLE ISG IS G2'!D11 -> 432
A46: est de | C46: =RECAPITULATIF!D13 -> 4.686 € | E46: au | F46: =RECAPITULATIF!D15 -> 2019-01-01
R47: ='GRILLE ISG IS G2'!B13 -> 3 | S47: ='GRILLE ISG IS G2'!C13 -> 24 | T47: ='GRILLE ISG IS G2'!D13 -> 452
A49: Soit un gain net mensuel de : | G49: =I40*C46*0.8315 -> 89.62 € | R49: ='GRILLE ISG IS G2'!B15 -> 4 | S49: ='GRILLE ISG IS G2'!C15 -> 24 | T49: ='GRILLE ISG IS G2'!D15 -> 472
R51: ='GRILLE ISG IS G2'!B17 -> 5 | S51: ='GRILLE ISG IS G2'!C17 -> 36 | T51: ='GRILLE ISG IS G2'!D17 -> 495
R53: ='GRILLE ISG IS G2'!B19 -> 6 | S53: ='GRILLE ISG IS G2'!C19 -> 42 | T53: ='GRILLE ISG IS G2'!D19 -> 518
A54: Vos représentant-e-s SUD Santé Sociaux | I54: =RECAPITULATIF!D21 -> 35 | K54: sont à votre disposition
A55: pour tous renseignements complémentaires au poste : | M55: =RECAPITULATIF!D17 -> 2886 | R55: ='GRILLE ISG IS G2'!B21 -> 7 | S55: ='GRILLE ISG IS G2'!C21 -> 48 | T55: ='GRILLE ISG IS G2'!D21 -> 542
R57: ='GRILLE ISG IS G2'!B23 -> 8 | S57: ='GRILLE ISG IS G2'!C23 -> 48 | T57: ='GRILLE ISG IS G2'!D23 -> 565
R59: ='GRILLE ISG IS G2'!B25 -> 9 | S59: ='GRILLE ISG IS G2'!C25 -> 48 | T59: ='GRILLE ISG IS G2'!D25 -> 592
A60: Recevez toutes nos salutations.
R61: ='GRILLE ISG IS G2'!B27 -> 10 | S61: ='GRILLE ISG IS G2'!C27 -> 0 | T61: ='GRILLE ISG IS G2'!D27 -> 617
A63: =RECAPITULATIF!B5 -> Madame FERET Isabelle, Madame Anne PICHON et Monsieur Patrick GAUTIER
A65: SUD Santé Sociaux | E65: =RECAPITULATIF!D21 -> 35
A70: Tél : | B70: =RECAPITULATIF!D19 -> 02 99 21 28 86
A71: Mél : | C71: =RECAPITULATIF!C23 -> sudsante@ch-stmalo.fr
A72: =RECAPITULATIF!B25 -> Site Départemental Sud | F72: =RECAPITULATIF!D25 -> http://www.sudsantesociaux35.org

Sheet ISG IS G2 Echelon 6
G2: Commission Administrative
G3: Paritaire | M3: =RECAPITULATIF!D7 -> Locale
M9: Mme, Mr :
M11: Grade :
M13: Service :
A16: Votre ou vos représentant-e-s du personnel
A18: =RECAPITULATIF!B5 -> Madame FERET Isabelle, Madame Anne PICHON et Monsieur Patrick GAUTIER
A20: SUD Santé Sociaux | E20: =RECAPITULATIF!D21 -> 35 | F20: du:
A22: =RECAPITULATIF!B2 -> Centre Hospitalier de Saint Malo
A24: siégeant auprès de la CAP | F24: =RECAPITULATIF!D7 -> Locale | J24: du : | K24: =RECAPITULATIF!D11 -> 2019-04-16 | N24: vous informe de votre :
F27: AVANCEMENT D’ECHELON
A33: Vous passez à l’échelon : | F33: ='GRILLE ISG IS G2'!B19 -> 6 | H33: Indice Majoré : | L33: ='GRILLE ISG IS G2'!D19 -> 518
A36: Date d'effet : | F36: / | H36: / | I36: =RECAPITULATIF!D9 -> 2019 | R36: ='GRILLE ISG IS G2'!B2 -> Grade 2 Manipulateur d'Electroradiologie Médicale, Ergothérapeute, Masseur-Kinésithérapeute, Psychomotricien, Orthophoniste, Pédicure-Podologue Infirmiers D.E. I.B.O.D.E. et Puericultrice
A40: Ce qui représente un gain mensuel de : | I40: ='GRILLE ISG IS G2'!D19-'GRILLE ISG IS G2'!D17 -> 23 | K40: points d'indice.
R41: ='GRILLE ISG IS G2'!B7 -> Echelon | S41: ='GRILLE ISG IS G2'!C7 -> Durée (en mois) | T41: ='GRILLE ISG IS G2'!D7 -> Indice Majoré
A43: Pour information, la valeur brute du point d'indice | R43: ='GRILLE ISG IS G2'!B9 -> 1 | S43: ='GRILLE ISG IS G2'!C9 -> 24 | T43: ='GRILLE ISG IS G2'!D9 -> 416
R45: ='GRILLE ISG IS G2'!B11 -> 2 | S45: ='GRILLE ISG IS G2'!C11 -> 24 | T45: ='GRILLE ISG IS G2'!D11 -> 432
A46: est de | C46: =RECAPITULATIF!D13 -> 4.686 € | E46: au | F46: =RECAPITULATIF!D15 -> 2019-01-01
R47: ='GRILLE ISG IS G2'!B13 -> 3 | S47: ='GRILLE ISG IS G2'!C13 -> 24 | T47: ='GRILLE ISG IS G2'!D13 -> 452
A49: Soit un gain net mensuel de : | G49: =I40*C46*0.8315 -> 89.62 € | R49: ='GRILLE ISG IS G2'!B15 -> 4 | S49: ='GRILLE ISG IS G2'!C15 -> 24 | T49: ='GRILLE ISG IS G2'!D15 -> 472
R51: ='GRILLE ISG IS G2'!B17 -> 5 | S51: ='GRILLE ISG IS G2'!C17 -> 36 | T51: ='GRILLE ISG IS G2'!D17 -> 495
R53: ='GRILLE ISG IS G2'!B19 -> 6 | S53: ='GRILLE ISG IS G2'!C19 -> 42 | T53: ='GRILLE ISG IS G2'!D19 -> 518
A54: Vos représentant-e-s SUD Santé Sociaux | I54: =RECAPITULATIF!D21 -> 35 | K54: sont à votre disposition
A55: pour tous renseignements complémentaires au poste : | M55: =RECAPITULATIF!D17 -> 2886 | R55: ='GRILLE ISG IS G2'!B21 -> 7 | S55: ='GRILLE ISG IS G2'!C21 -> 48 | T55: ='GRILLE ISG IS G2'!D21 -> 542
R57: ='GRILLE ISG IS G2'!B23 -> 8 | S57: ='GRILLE ISG IS G2'!C23 -> 48 | T57: ='GRILLE ISG IS G2'!D23 -> 565
R59: ='GRILLE ISG IS G2'!B25 -> 9 | S59: ='GRILLE ISG IS G2'!C25 -> 48 | T59: ='GRILLE ISG IS G2'!D25 -> 592
A60: Recevez toutes nos salutations.
R61: ='GRILLE ISG IS G2'!B27 -> 10 | S61: ='GRILLE ISG IS G2'!C27 -> 0 | T61: ='GRILLE ISG IS G2'!D27 -> 617
A63: =RECAPITULATIF!B5 -> Madame FERET Isabelle, Madame Anne PICHON et Monsieur Patrick GAUTIER
A65: SUD Santé Sociaux | E65: =RECAPITULATIF!D21 -> 35
A70: Tél : | B70: =RECAPITULATIF!D19 -> 02 99 21 28 86
A71: Mél : | C71: =RECAPITULATIF!C23 -> sudsante@ch-stmalo.fr
A72: =RECAPITULATIF!B25 -> Site Départemental Sud | F72: =RECAPITULATIF!D25 -> http://www.sudsantesociaux35.org

Sheet ISG IS G2 Echelon 7
G2: Commission Administrative
G3: Paritaire | M3: =RECAPITULATIF!D7 -> Locale
M9: Mme, Mr :
M11: Grade :
M13: Service :
A16: Votre ou vos représentant-e-s du personnel
A18: =RECAPITULATIF!B5 -> Madame FERET Isabelle, Madame Anne PICHON et Monsieur Patrick GAUTIER
A20: SUD Santé Sociaux | E20: =RECAPITULATIF!D21 -> 35 | F20: du:
A22: =RECAPITULATIF!B2 -> Centre Hospitalier de Saint Malo
A24: siégeant auprès de la CAP | F24: =RECAPITULATIF!D7 -> Locale | J24: du : | K24: =RECAPITULATIF!D11 -> 2019-04-16 | N24: vous informe de votre :
F27: AVANCEMENT D’ECHELON
A33: Vous passez à l’échelon : | F33: ='GRILLE ISG IS G2'!B21 -> 7 | H33: Indice Majoré : | L33: ='GRILLE ISG IS G2'!D21 -> 542
A36: Date d'effet : | F36: / | H36: / | I36: =RECAPITULATIF!D9 -> 2019 | R36: ='GRILLE ISG IS G2'!B2 -> Grade 2 Manipulateur d'Electroradiologie Médicale, Ergothérapeute, Masseur-Kinésithérapeute, Psychomotricien, Orthophoniste, Pédicure-Podologue Infirmiers D.E. I.B.O.D.E. et Puericultrice
A40: Ce qui représente un gain mensuel de : | I40: ='GRILLE ISG IS G2'!D21-'GRILLE ISG IS G2'!D19 -> 24 | K40: points d'indice.
R41: ='GRILLE ISG IS G2'!B7 -> Echelon | S41: ='GRILLE ISG IS G2'!C7 -> Durée (en mois) | T41: ='GRILLE ISG IS G2'!D7 -> Indice Majoré
A43: Pour information, la valeur brute du point d'indice | R43: ='GRILLE ISG IS G2'!B9 -> 1 | S43: ='GRILLE ISG IS G2'!C9 -> 24 | T43: ='GRILLE ISG IS G2'!D9 -> 416
R45: ='GRILLE ISG IS G2'!B11 -> 2 | S45: ='GRILLE ISG IS G2'!C11 -> 24 | T45: ='GRILLE ISG IS G2'!D11 -> 432
A46: est de | C46: =RECAPITULATIF!D13 -> 4.686 € | E46: au | F46: =RECAPITULATIF!D15 -> 2019-01-01
R47: ='GRILLE ISG IS G2'!B13 -> 3 | S47: ='GRILLE ISG IS G2'!C13 -> 24 | T47: ='GRILLE ISG IS G2'!D13 -> 452
A49: Soit un gain net mensuel de : | G49: =I40*C46*0.8315 -> 93.51 € | R49: ='GRILLE ISG IS G2'!B15 -> 4 | S49: ='GRILLE ISG IS G2'!C15 -> 24 | T49: ='GRILLE ISG IS G2'!D15 -> 472
R51: ='GRILLE ISG IS G2'!B17 -> 5 | S51: ='GRILLE ISG IS G2'!C17 -> 36 | T51: ='GRILLE ISG IS G2'!D17 -> 495
R53: ='GRILLE ISG IS G2'!B19 -> 6 | S53: ='GRILLE ISG IS G2'!C19 -> 42 | T53: ='GRILLE ISG IS G2'!D19 -> 518
A54: Vos représentant-e-s SUD Santé Sociaux | I54: =RECAPITULATIF!D21 -> 35 | K54: sont à votre disposition
A55: pour tous renseignements complémentaires au poste : | M55: =RECAPITULATIF!D17 -> 2886 | R55: ='GRILLE ISG IS G2'!B21 -> 7 | S55: ='GRILLE ISG IS G2'!C21 -> 48 | T55: ='GRILLE ISG IS G2'!D21 -> 542
R57: ='GRILLE ISG IS G2'!B23 -> 8 | S57: ='GRILLE ISG IS G2'!C23 -> 48 | T57: ='GRILLE ISG IS G2'!D23 -> 565
R59: ='GRILLE ISG IS G2'!B25 -> 9 | S59: ='GRILLE ISG IS G2'!C25 -> 48 | T59: ='GRILLE ISG IS G2'!D25 -> 592
A60: Recevez toutes nos salutations.
R61: ='GRILLE ISG IS G2'!B27 -> 10 | S61: ='GRILLE ISG IS G2'!C27 -> 0 | T61: ='GRILLE ISG IS G2'!D27 -> 617
A63: =RECAPITULATIF!B5 -> Madame FERET Isabelle, Madame Anne PICHON et Monsieur Patrick GAUTIER
A65: SUD Santé Sociaux | E65: =RECAPITULATIF!D21 -> 35
A70: Tél : | B70: =RECAPITULATIF!D19 -> 02 99 21 28 86
A71: Mél : | C71: =RECAPITULATIF!C23 -> sudsante@ch-stmalo.fr
A72: =RECAPITULATIF!B25 -> Site Départemental Sud | F72: =RECAPITULATIF!D25 -> http://www.sudsantesociaux35.org

Sheet ISG IS G2 Echelon 8
G2: Commission Administrative
G3: Paritaire | M3: =RECAPITULATIF!D7 -> Locale
M9: Mme, Mr :
M11: Grade :
M13: Service :
A16: Votre ou vos représentant-e-s du personnel
A18: =RECAPITULATIF!B5 -> Madame FERET Isabelle, Madame Anne PICHON et Monsieur Patrick GAUTIER
A20: SUD Santé Sociaux | E20: =RECAPITULATIF!D21 -> 35 | F20: du:
A22: =RECAPITULATIF!B2 -> Centre Hospitalier de Saint Malo
A24: siégeant auprès de la CAP | F24: =RECAPITULATIF!D7 -> Locale | J24: du : | K24: =RECAPITULATIF!D11 -> 2019-04-16 | N24: vous informe de votre :
F27: AVANCEMENT D’ECHELON
A33: Vous passez à l’échelon : | F33: ='GRILLE ISG IS G2'!B23 -> 8 | H33: Indice Majoré : | L33: ='GRILLE ISG IS G2'!D23 -> 565
A36: Date d'effet : | F36: / | H36: / | I36: =RECAPITULATIF!D9 -> 2019 | R36: ='GRILLE ISG IS G2'!B2 -> Grade 2 Manipulateur d'Electroradiologie Médicale, Ergothérapeute, Masseur-Kinésithérapeute, Psychomotricien, Orthophoniste, Pédicure-Podologue Infirmiers D.E. I.B.O.D.E. et Puericultrice
A40: Ce qui représente un gain mensuel de : | I40: ='GRILLE ISG IS G2'!D23-'GRILLE ISG IS G2'!D21 -> 23 | K40: points d'indice.
R41: ='GRILLE ISG IS G2'!B7 -> Echelon | S41: ='GRILLE ISG IS G2'!C7 -> Durée (en mois) | T41: ='GRILLE ISG IS G2'!D7 -> Indice Majoré
A43: Pour information, la valeur brute du point d'indice | R43: ='GRILLE ISG IS G2'!B9 -> 1 | S43: ='GRILLE ISG IS G2'!C9 -> 24 | T43: ='GRILLE ISG IS G2'!D9 -> 416
R45: ='GRILLE ISG IS G2'!B11 -> 2 | S45: ='GRILLE ISG IS G2'!C11 -> 24 | T45: ='GRILLE ISG IS G2'!D11 -> 432
A46: est de | C46: =RECAPITULATIF!D13 -> 4.686 € | E46: au | F46: =RECAPITULATIF!D15 -> 2019-01-01
R47: ='GRILLE ISG IS G2'!B13 -> 3 | S47: ='GRILLE ISG IS G2'!C13 -> 24 | T47: ='GRILLE ISG IS G2'!D13 -> 452
A49: Soit un gain net mensuel de : | G49: =I40*C46*0.8315 -> 89.62 € | R49: ='GRILLE ISG IS G2'!B15 -> 4 | S49: ='GRILLE ISG IS G2'!C15 -> 24 | T49: ='GRILLE ISG IS G2'!D15 -> 472
R51: ='GRILLE ISG IS G2'!B17 -> 5 | S51: ='GRILLE ISG IS G2'!C17 -> 36 | T51: ='GRILLE ISG IS G2'!D17 -> 495
R53: ='GRILLE ISG IS G2'!B19 -> 6 | S53: ='GRILLE ISG IS G2'!C19 -> 42 | T53: ='GRILLE ISG IS G2'!D19 -> 518
A54: Vos représentant-e-s SUD Santé Sociaux | I54: =RECAPITULATIF!D21 -> 35 | K54: sont à votre disposition
A55: pour tous renseignements complémentaires au poste : | M55: =RECAPITULATIF!D17 -> 2886 | R55: ='GRILLE ISG IS G2'!B21 -> 7 | S55: ='GRILLE ISG IS G2'!C21 -> 48 | T55: ='GRILLE ISG IS G2'!D21 -> 542
R57: ='GRILLE ISG IS G2'!B23 -> 8 | S57: ='GRILLE ISG IS G2'!C23 -> 48 | T57: ='GRILLE ISG IS G2'!D23 -> 565
R59: ='GRILLE ISG IS G2'!B25 -> 9 | S59: ='GRILLE ISG IS G2'!C25 -> 48 | T59: ='GRILLE ISG IS G2'!D25 -> 592
A60: Recevez toutes nos salutations.
R61: ='GRILLE ISG IS G2'!B27 -> 10 | S61: ='GRILLE ISG IS G2'!C27 -> 0 | T61: ='GRILLE ISG IS G2'!D27 -> 617
A63: =RECAPITULATIF!B5 -> Madame FERET Isabelle, Madame Anne PICHON et Monsieur Patrick GAUTIER
A65: SUD Santé Sociaux | E65: =RECAPITULATIF!D21 -> 35
A70: Tél : | B70: =RECAPITULATIF!D19 -> 02 99 21 28 86
A71: Mél : | C71: =RECAPITULATIF!C23 -> sudsante@ch-stmalo.fr
A72: =RECAPITULATIF!B25 -> Site Départemental Sud | F72: =RECAPITULATIF!D25 -> http://www.sudsantesociaux35.org

Sheet ISG IS G2 Echelon 9
G2: Commission Administrative
G3: Paritaire | M3: =RECAPITULATIF!D7 -> Locale
M9: Mme, Mr :
M11: Grade :
M13: Service :
A16: Votre ou vos représentant-e-s du personnel
A18: =RECAPITULATIF!B5 -> Madame FERET Isabelle, Madame Anne PICHON et Monsieur Patrick GAUTIER
A20: SUD Santé Sociaux | E20: =RECAPITULATIF!D21 -> 35 | F20: du:
A22: =RECAPITULATIF!B2 -> Centre Hospitalier de Saint Malo
A24: siégeant auprès de la CAP | F24: =RECAPITULATIF!D7 -> Locale | J24: du : | K24: =RECAPITULATIF!D11 -> 2019-04-16 | N24: vous informe de votre :
F27: AVANCEMENT D’ECHELON
A33: Vous passez à l’échelon : | F33: ='GRILLE ISG IS G2'!B25 -> 9 | H33: Indice Majoré : | L33: ='GRILLE ISG IS G2'!D25 -> 592
A36: Date d'effet : | F36: / | H36: / | I36: =RECAPITULATIF!D9 -> 2019 | R36: ='GRILLE ISG IS G2'!B2 -> Grade 2 Manipulateur d'Electroradiologie Médicale, Ergothérapeute, Masseur-Kinésithérapeute, Psychomotricien, Orthophoniste, Pédicure-Podologue Infirmiers D.E. I.B.O.D.E. et Puericultrice
A40: Ce qui représente un gain mensuel de : | I40: ='GRILLE ISG IS G2'!D25-'GRILLE ISG IS G2'!D23 -> 27 | K40: points d'indice.
R41: ='GRILLE ISG IS G2'!B7 -> Echelon | S41: ='GRILLE ISG IS G2'!C7 -> Durée (en mois) | T41: ='GRILLE ISG IS G2'!D7 -> Indice Majoré
A43: Pour information, la valeur brute du point d'indice | R43: ='GRILLE ISG IS G2'!B9 -> 1 | S43: ='GRILLE ISG IS G2'!C9 -> 24 | T43: ='GRILLE ISG IS G2'!D9 -> 416
R45: ='GRILLE ISG IS G2'!B11 -> 2 | S45: ='GRILLE ISG IS G2'!C11 -> 24 | T45: ='GRILLE ISG IS G2'!D11 -> 432
A46: est de | C46: =RECAPITULATIF!D13 -> 4.686 € | E46: au | F46: =RECAPITULATIF!D15 -> 2019-01-01
R47: ='GRILLE ISG IS G2'!B13 -> 3 | S47: ='GRILLE ISG IS G2'!C13 -> 24 | T47: ='GRILLE ISG IS G2'!D13 -> 452
A49: Soit un gain net mensuel de : | G49: =I40*C46*0.8315 -> 105.20 € | R49: ='GRILLE ISG IS G2'!B15 -> 4 | S49: ='GRILLE ISG IS G2'!C15 -> 24 | T49: ='GRILLE ISG IS G2'!D15 -> 472
R51: ='GRILLE ISG IS G2'!B17 -> 5 | S51: ='GRILLE ISG IS G2'!C17 -> 36 | T51: ='GRILLE ISG IS G2'!D17 -> 495
R53: ='GRILLE ISG IS G2'!B19 -> 6 | S53: ='GRILLE ISG IS G2'!C19 -> 42 | T53: ='GRILLE ISG IS G2'!D19 -> 518
A54: Vos représentant-e-s SUD Santé Sociaux | I54: =RECAPITULATIF!D21 -> 35 | K54: sont à votre disposition
A55: pour tous renseignements complémentaires au poste : | M55: =RECAPITULATIF!D17 -> 2886 | R55: ='GRILLE ISG IS G2'!B21 -> 7 | S55: ='GRILLE ISG IS G2'!C21 -> 48 | T55: ='GRILLE ISG IS G2'!D21 -> 542
R57: ='GRILLE ISG IS G2'!B23 -> 8 | S57: ='GRILLE ISG IS G2'!C23 -> 48 | T57: ='GRILLE ISG IS G2'!D23 -> 565
R59: ='GRILLE ISG IS G2'!B25 -> 9 | S59: ='GRILLE ISG IS G2'!C25 -> 48 | T59: ='GRILLE ISG IS G2'!D25 -> 592
A60: Recevez toutes nos salutations.
R61: ='GRILLE ISG IS G2'!B27 -> 10 | S61: ='GRILLE ISG IS G2'!C27 -> 0 | T61: ='GRILLE ISG IS G2'!D27 -> 617
A63: =RECAPITULATIF!B5 -> Madame FERET Isabelle, Madame Anne PICHON et Monsieur Patrick GAUTIER
A65: SUD Santé Sociaux | E65: =RECAPITULATIF!D21 -> 35
A70: Tél : | B70: =RECAPITULATIF!D19 -> 02 99 21 28 86
A71: Mél : | C71: =RECAPITULATIF!C23 -> sudsante@ch-stmalo.fr
A72: =RECAPITULATIF!B25 -> Site Départemental Sud | F72: =RECAPITULATIF!D25 -> http://www.sudsantesociaux35.org

Sheet ISG IS G2 Echelon 10
G2: Commission Administrative
G3: Paritaire | M3: =RECAPITULATIF!D7 -> Locale
M9: Mme, Mr :
M11: Grade :
M13: Service :
A16: Votre ou vos représentant-e-s du personnel
A18: =RECAPITULATIF!B5 -> Madame FERET Isabelle, Madame Anne PICHON et Monsieur Patrick GAUTIER
A20: SUD Santé Sociaux | E20: =RECAPITULATIF!D21 -> 35 | F20: du:
A22: =RECAPITULATIF!B2 -> Centre Hospitalier de Saint Malo
A24: siégeant auprès de la CAP | F24: =RECAPITULATIF!D7 -> Locale | J24: du : | K24: =RECAPITULATIF!D11 -> 2019-04-16 | N24: vous informe de votre :
F27: AVANCEMENT D’ECHELON
A33: Vous passez à l’échelon : | F33: ='GRILLE ISG IS G2'!B27 -> 10 | H33: Indice Majoré : | L33: ='GRILLE ISG IS G2'!D27 -> 617
A36: Date d'effet : | F36: / | H36: / | I36: =RECAPITULATIF!D9 -> 2019 | R36: ='GRILLE ISG IS G2'!B2 -> Grade 2 Manipulateur d'Electroradiologie Médicale, Ergothérapeute, Masseur-Kinésithérapeute, Psychomotricien, Orthophoniste, Pédicure-Podologue Infirmiers D.E. I.B.O.D.E. et Puericultrice
A40: Ce qui représente un gain mensuel de : | I40: ='GRILLE ISG IS G2'!D27-'GRILLE ISG IS G2'!D25 -> 25 | K40: points d'indice.
R41: ='GRILLE ISG IS G2'!B7 -> Echelon | S41: ='GRILLE ISG IS G2'!C7 -> Durée (en mois) | T41: ='GRILLE ISG IS G2'!D7 -> Indice Majoré
A43: Pour information, la valeur brute du point d'indice | R43: ='GRILLE ISG IS G2'!B9 -> 1 | S43: ='GRILLE ISG IS G2'!C9 -> 24 | T43: ='GRILLE ISG IS G2'!D9 -> 416
R45: ='GRILLE ISG IS G2'!B11 -> 2 | S45: ='GRILLE ISG IS G2'!C11 -> 24 | T45: ='GRILLE ISG IS G2'!D11 -> 432
A46: est de | C46: =RECAPITULATIF!D13 -> 4.686 € | E46: au | F46: =RECAPITULATIF!D15 -> 2019-01-01
R47: ='GRILLE ISG IS G2'!B13 -> 3 | S47: ='GRILLE ISG IS G2'!C13 -> 24 | T47: ='GRILLE ISG IS G2'!D13 -> 452
A49: Soit un gain net mensuel de : | G49: =I40*C46*0.8315 -> 97.41 € | R49: ='GRILLE ISG IS G2'!B15 -> 4 | S49: ='GRILLE ISG IS G2'!C15 -> 24 | T49: ='GRILLE ISG IS G2'!D15 -> 472
R51: ='GRILLE ISG IS G2'!B17 -> 5 | S51: ='GRILLE ISG IS G2'!C17 -> 36 | T51: ='GRILLE ISG IS G2'!D17 -> 495
R53: ='GRILLE ISG IS G2'!B19 -> 6 | S53: ='GRILLE ISG IS G2'!C19 -> 42 | T53: ='GRILLE ISG IS G2'!D19 -> 518
A54: Vos représentant-e-s SUD Santé Sociaux | I54: =RECAPITULATIF!D21 -> 35 | K54: sont à votre disposition
A55: pour tous renseignements complémentaires au poste : | M55: =RECAPITULATIF!D17 -> 2886 | R55: ='GRILLE ISG IS G2'!B21 -> 7 | S55: ='GRILLE ISG IS G2'!C21 -> 48 | T55: ='GRILLE ISG IS G2'!D21 -> 542
R57: ='GRILLE ISG IS G2'!B23 -> 8 | S57: ='GRILLE ISG IS G2'!C23 -> 48 | T57: ='GRILLE ISG IS G2'!D23 -> 565
R59: ='GRILLE ISG IS G2'!B25 -> 9 | S59: ='GRILLE ISG IS G2'!C25 -> 48 | T59: ='GRILLE ISG IS G2'!D25 -> 592
A60: Recevez toutes nos salutations.
R61: ='GRILLE ISG IS G2'!B27 -> 10 | S61: ='GRILLE ISG IS G2'!C27 -> 0 | T61: ='GRILLE ISG IS G2'!D27 -> 617
A63: =RECAPITULATIF!B5 -> Madame FERET Isabelle, Madame Anne PICHON et Monsieur Patrick GAUTIER
A65: SUD Santé Sociaux | E65: =RECAPITULATIF!D21 -> 35
A70: Tél : | B70: =RECAPITULATIF!D19 -> 02 99 21 28 86
A71: Mél : | C71: =RECAPITULATIF!C23 -> sudsante@ch-stmalo.fr
A72: =RECAPITULATIF!B25 -> Site Départemental Sud | F72: =RECAPITULATIF!D25 -> http://www.sudsantesociaux35.org

Sheet GRILLE ISG IS G3
B2: I.B.O.D.E. / Puéricultrice et I.A.D.E. Grade 3
B7: Echelon | C7: Durée (en mois) | D7: Indice Majoré
B9: 1 | C9: 24 | D9: 433
B11: 2 | C11: 24 | D11: 452
B13: 3 | C13: 24 | D13: 473
B15: 4 | C15: 24 | D15: 498
B17: 5 | C17: 24 | D17: 522
B19: 6 | C19: 42 | D19: 546
B21: 7 | C21: 48 | D21: 573
B23: 8 | C23: 48 | D23: 598
B25: 9 | C25: 48 | D25: 621
B27: 10 | D27: 650

Sheet IMP GRILLE ISG IS G3
B2: 1) Imprimez autant de feuilles que d'agents concernés.
B4: 2) Pliez en 3 au niveau du repère, deux petits traits noirs.
B6: 3) Inserrez ce courrier dans une enveloppe 110 X 220 à fenêtre.

Sheet ISG IS G3 Echelon 2
G2: Commission Administrative
G3: Paritaire | M3: =RECAPITULATIF!D7 -> Locale
M9: Mme, Mr :
M11: Grade :
M13: Service :
A16: Votre ou vos représentant-e-s du personnel
A18: =RECAPITULATIF!B5 -> Madame FERET Isabelle, Madame Anne PICHON et Monsieur Patrick GAUTIER
A20: SUD Santé Sociaux | E20: =RECAPITULATIF!D21 -> 35 | F20: du:
A22: =RECAPITULATIF!B2 -> Centre Hospitalier de Saint Malo
A24: siégeant auprès de la CAP | F24: =RECAPITULATIF!D7 -> Locale | J24: du : | K24: =RECAPITULATIF!D11 -> 2019-04-16 | N24: vous informe de votre :
F27: AVANCEMENT D’ECHELON
A33: Vous passez à l’échelon : | F33: ='GRILLE ISG IS G3'!B11 -> 2 | H33: Indice Majoré : | L33: ='GRILLE ISG IS G3'!D11 -> 452
A36: Date d'effet : | F36: / | H36: / | I36: =RECAPITULATIF!D9 -> 2019 | R36: ='GRILLE ISG IS G3'!B2 -> I.B.O.D.E. / Puéricultrice et I.A.D.E. Grade 3
A40: Ce qui représente un gain mensuel de : | I40: ='GRILLE ISG IS G3'!D11-'GRILLE ISG IS G3'!D9 -> 19 | K40: points d'indice.
R41: ='GRILLE ISG IS G3'!B7 -> Echelon | S41: ='GRILLE ISG IS G3'!C7 -> Durée (en mois) | T41: ='GRILLE ISG IS G3'!D7 -> Indice Majoré
A43: Pour information, la valeur brute du point d'indice | R43: ='GRILLE ISG IS G3'!B9 -> 1 | S43: ='GRILLE ISG IS G3'!C9 -> 24 | T43: ='GRILLE ISG IS G3'!D9 -> 433
R45: ='GRILLE ISG IS G3'!B11 -> 2 | S45: ='GRILLE ISG IS G3'!C11 -> 24 | T45: ='GRILLE ISG IS G3'!D11 -> 452
A46: est de | C46: =RECAPITULATIF!D13 -> 4.686 € | E46: au | F46: =RECAPITULATIF!D15 -> 2019-01-01
R47: ='GRILLE ISG IS G3'!B13 -> 3 | S47: ='GRILLE ISG IS G3'!C13 -> 24 | T47: ='GRILLE ISG IS G3'!D13 -> 473
A49: Soit un gain net mensuel de : | G49: =I40*C46*0.8315 -> 74.03 € | R49: ='GRILLE ISG IS G3'!B15 -> 4 | S49: ='GRILLE ISG IS G3'!C15 -> 24 | T49: ='GRILLE ISG IS G3'!D15 -> 498
R51: ='GRILLE ISG IS G3'!B17 -> 5 | S51: ='GRILLE ISG IS G3'!C17 -> 24 | T51: ='GRILLE ISG IS G3'!D17 -> 522
R53: ='GRILLE ISG IS G3'!B19 -> 6 | S53: ='GRILLE ISG IS G3'!C19 -> 42 | T53: ='GRILLE ISG IS G3'!D19 -> 546
A54: Vos représentant-e-s SUD Santé Sociaux | I54: =RECAPITULATIF!D21 -> 35 | K54: sont à votre disposition
A55: pour tous renseignements complémentaires au poste : | M55: =RECAPITULATIF!D17 -> 2886 | R55: ='GRILLE ISG IS G3'!B21 -> 7 | S55: ='GRILLE ISG IS G3'!C21 -> 48 | T55: ='GRILLE ISG IS G3'!D21 -> 573
R57: ='GRILLE ISG IS G3'!B23 -> 8 | S57: ='GRILLE ISG IS G3'!C23 -> 48 | T57: ='GRILLE ISG IS G3'!D23 -> 598
R59: ='GRILLE ISG IS G3'!B25 -> 9 | S59: ='GRILLE ISG IS G3'!C25 -> 48 | T59: ='GRILLE ISG IS G3'!D25 -> 621
A60: Recevez toutes nos salutations.
R61: ='GRILLE ISG IS G3'!B27 -> 10 | S61: ='GRILLE ISG IS G3'!C27 -> 0 | T61: ='GRILLE ISG IS G3'!D27 -> 650
A63: =RECAPITULATIF!B5 -> Madame FERET Isabelle, Madame Anne PICHON et Monsieur Patrick GAUTIER
A65: SUD Santé Sociaux | E65: =RECAPITULATIF!D21 -> 35
A70: Tél : | B70: =RECAPITULATIF!D19 -> 02 99 21 28 86
A71: Mél : | C71: =RECAPITULATIF!C23 -> sudsante@ch-stmalo.fr
A72: =RECAPITULATIF!B25 -> Site Départemental Sud | F72: =RECAPITULATIF!D25 -> http://www.sudsantesociaux35.org

Sheet ISG IS G3 Echelon 3
G2: Commission Administrative
G3: Paritaire | M3: =RECAPITULATIF!D7 -> Locale
M9: Mme, Mr :
M11: Grade :
M13: Service :
A16: Votre ou vos représentant-e-s du personnel
A18: =RECAPITULATIF!B5 -> Madame FERET Isabelle, Madame Anne PICHON et Monsieur Patrick GAUTIER
A20: SUD Santé Sociaux | E20: =RECAPITULATIF!D21 -> 35 | F20: du:
A22: =RECAPITULATIF!B2 -> Centre Hospitalier de Saint Malo
A24: siégeant auprès de la CAP | F24: =RECAPITULATIF!D7 -> Locale | J24: du : | K24: =RECAPITULATIF!D11 -> 2019-04-16 | N24: vous informe de votre :
F27: AVANCEMENT D’ECHELON
A33: Vous passez à l’échelon : | F33: ='GRILLE ISG IS G3'!B13 -> 3 | H33: Indice Majoré : | L33: ='GRILLE ISG IS G3'!D13 -> 473
A36: Date d'effet : | F36: / | H36: / | I36: =RECAPITULATIF!D9 -> 2019 | R36: ='GRILLE ISG IS G3'!B2 -> I.B.O.D.E. / Puéricultrice et I.A.D.E. Grade 3
A40: Ce qui représente un gain mensuel de : | I40: ='GRILLE ISG IS G3'!D13-'GRILLE ISG IS G3'!D11 -> 21 | K40: points d'indice.
R41: ='GRILLE ISG IS G3'!B7 -> Echelon | S41: ='GRILLE ISG IS G3'!C7 -> Durée (en mois) | T41: ='GRILLE ISG IS G3'!D7 -> Indice Majoré
A43: Pour information, la valeur brute du point d'indice | R43: ='GRILLE ISG IS G3'!B9 -> 1 | S43: ='GRILLE ISG IS G3'!C9 -> 24 | T43: ='GRILLE ISG IS G3'!D9 -> 433
R45: ='GRILLE ISG IS G3'!B11 -> 2 | S45: ='GRILLE ISG IS G3'!C11 -> 24 | T45: ='GRILLE ISG IS G3'!D11 -> 452
A46: est de | C46: =RECAPITULATIF!D13 -> 4.686 € | E46: au | F46: =RECAPITULATIF!D15 -> 2019-01-01
R47: ='GRILLE ISG IS G3'!B13 -> 3 | S47: ='GRILLE ISG IS G3'!C13 -> 24 | T47: ='GRILLE ISG IS G3'!D13 -> 473
A49: Soit un gain net mensuel de : | G49: =I40*C46*0.8315 -> 81.82 € | R49: ='GRILLE ISG IS G3'!B15 -> 4 | S49: ='GRILLE ISG IS G3'!C15 -> 24 | T49: ='GRILLE ISG IS G3'!D15 -> 498
R51: ='GRILLE ISG IS G3'!B17 -> 5 | S51: ='GRILLE ISG IS G3'!C17 -> 24 | T51: ='GRILLE ISG IS G3'!D17 -> 522
R53: ='GRILLE ISG IS G3'!B19 -> 6 | S53: ='GRILLE ISG IS G3'!C19 -> 42 | T53: ='GRILLE ISG IS G3'!D19 -> 546
A54: Vos représentant-e-s SUD Santé Sociaux | I54: =RECAPITULATIF!D21 -> 35 | K54: sont à votre disposition
A55: pour tous renseignements complémentaires au poste : | M55: =RECAPITULATIF!D17 -> 2886 | R55: ='GRILLE ISG IS G3'!B21 -> 7 | S55: ='GRILLE ISG IS G3'!C21 -> 48 | T55: ='GRILLE ISG IS G3'!D21 -> 573
R57: ='GRILLE ISG IS G3'!B23 -> 8 | S57: ='GRILLE ISG IS G3'!C23 -> 48 | T57: ='GRILLE ISG IS G3'!D23 -> 598
R59: ='GRILLE ISG IS G3'!B25 -> 9 | S59: ='GRILLE ISG IS G3'!C25 -> 48 | T59: ='GRILLE ISG IS G3'!D25 -> 621
A60: Recevez toutes nos salutations.
R61: ='GRILLE ISG IS G3'!B27 -> 10 | S61: ='GRILLE ISG IS G3'!C27 -> 0 | T61: ='GRILLE ISG IS G3'!D27 -> 650
A63: =RECAPITULATIF!B5 -> Madame FERET Isabelle, Madame Anne PICHON et Monsieur Patrick GAUTIER
A65: SUD Santé Sociaux | E65: =RECAPITULATIF!D21 -> 35
A70: Tél : | B70: =RECAPITULATIF!D19 -> 02 99 21 28 86
A71: Mél : | C71: =RECAPITULATIF!C23 -> sudsante@ch-stmalo.fr
A72: =RECAPITULATIF!B25 -> Site Départemental Sud | F72: =RECAPITULATIF!D25 -> http://www.sudsantesociaux35.org

Sheet ISG IS G3 Echelon 4
G2: Commission Administrative
G3: Paritaire | M3: =RECAPITULATIF!D7 -> Locale
M9: Mme, Mr :
M11: Grade :
M13: Service :
A16: Votre ou vos représentant-e-s du personnel
A18: =RECAPITULATIF!B5 -> Madame FERET Isabelle, Madame Anne PICHON et Monsieur Patrick GAUTIER
A20: SUD Santé Sociaux | E20: =RECAPITULATIF!D21 -> 35 | F20: du:
A22: =RECAPITULATIF!B2 -> Centre Hospitalier de Saint Malo
A24: siégeant auprès de la CAP | F24: =RECAPITULATIF!D7 -> Locale | J24: du : | K24: =RECAPITULATIF!D11 -> 2019-04-16 | N24: vous informe de votre :
F27: AVANCEMENT D’ECHELON
A33: Vous passez à l’échelon : | F33: ='GRILLE ISG IS G3'!B15 -> 4 | H33: Indice Majoré : | L33: ='GRILLE ISG IS G3'!D15 -> 498
A36: Date d'effet : | F36: / | H36: / | I36: =RECAPITULATIF!D9 -> 2019 | R36: ='GRILLE ISG IS G3'!B2 -> I.B.O.D.E. / Puéricultrice et I.A.D.E. Grade 3
A40: Ce qui représente un gain mensuel de : | I40: ='GRILLE ISG IS G3'!D15-'GRILLE ISG IS G3'!D13 -> 25 | K40: points d'indice.
R41: ='GRILLE ISG IS G3'!B7 -> Echelon | S41: ='GRILLE ISG IS G3'!C7 -> Durée (en mois) | T41: ='GRILLE ISG IS G3'!D7 -> Indice Majoré
A43: Pour information, la valeur brute du point d'indice | R43: ='GRILLE ISG IS G3'!B9 -> 1 | S43: ='GRILLE ISG IS G3'!C9 -> 24 | T43: ='GRILLE ISG IS G3'!D9 -> 433
R45: ='GRILLE ISG IS G3'!B11 -> 2 | S45: ='GRILLE ISG IS G3'!C11 -> 24 | T45: ='GRILLE ISG IS G3'!D11 -> 452
A46: est de | C46: =RECAPITULATIF!D13 -> 4.686 € | E46: au | F46: =RECAPITULATIF!D15 -> 2019-01-01
R47: ='GRILLE ISG IS G3'!B13 -> 3 | S47: ='GRILLE ISG IS G3'!C13 -> 24 | T47: ='GRILLE ISG IS G3'!D13 -> 473
A49: Soit un gain net mensuel de : | G49: =I40*C46*0.8315 -> 97.41 € | R49: ='GRILLE ISG IS G3'!B15 -> 4 | S49: ='GRILLE ISG IS G3'!C15 -> 24 | T49: ='GRILLE ISG IS G3'!D15 -> 498
R51: ='GRILLE ISG IS G3'!B17 -> 5 | S51: ='GRILLE ISG IS G3'!C17 -> 24 | T51: ='GRILLE ISG IS G3'!D17 -> 522
R53: ='GRILLE ISG IS G3'!B19 -> 6 | S53: ='GRILLE ISG IS G3'!C19 -> 42 | T53: ='GRILLE ISG IS G3'!D19 -> 546
A54: Vos représentant-e-s SUD Santé Sociaux | I54: =RECAPITULATIF!D21 -> 35 | K54: sont à votre disposition
A55: pour tous renseignements complémentaires au poste : | M55: =RECAPITULATIF!D17 -> 2886 | R55: ='GRILLE ISG IS G3'!B21 -> 7 | S55: ='GRILLE ISG IS G3'!C21 -> 48 | T55: ='GRILLE ISG IS G3'!D21 -> 573
R57: ='GRILLE ISG IS G3'!B23 -> 8 | S57: ='GRILLE ISG IS G3'!C23 -> 48 | T57: ='GRILLE ISG IS G3'!D23 -> 598
R59: ='GRILLE ISG IS G3'!B25 -> 9 | S59: ='GRILLE ISG IS G3'!C25 -> 48 | T59: ='GRILLE ISG IS G3'!D25 -> 621
A60: Recevez toutes nos salutations.
R61: ='GRILLE ISG IS G3'!B27 -> 10 | S61: ='GRILLE ISG IS G3'!C27 -> 0 | T61: ='GRILLE ISG IS G3'!D27 -> 650
A63: =RECAPITULATIF!B5 -> Madame FERET Isabelle, Madame Anne PICHON et Monsieur Patrick GAUTIER
A65: SUD Santé Sociaux | E65: =RECAPITULATIF!D21 -> 35
A70: Tél : | B70: =RECAPITULATIF!D19 -> 02 99 21 28 86
A71: Mél : | C71: =RECAPITULATIF!C23 -> sudsante@ch-stmalo.fr
A72: =RECAPITULATIF!B25 -> Site Départemental Sud | F72: =RECAPITULATIF!D25 -> http://www.sudsantesociaux35.org

Sheet ISG IS G3 Echelon 5
G2: Commission Administrative
G3: Paritaire | M3: =RECAPITULATIF!D7 -> Locale
M9: Mme, Mr :
M11: Grade :
M13: Service :
A16: Votre ou vos représentant-e-s du personnel
A18: =RECAPITULATIF!B5 -> Madame FERET Isabelle, Madame Anne PICHON et Monsieur Patrick GAUTIER
A20: SUD Santé Sociaux | E20: =RECAPITULATIF!D21 -> 35 | F20: du:
A22: =RECAPITULATIF!B2 -> Centre Hospitalier de Saint Malo
A24: siégeant auprès de la CAP | F24: =RECAPITULATIF!D7 -> Locale | J24: du : | K24: =RECAPITULATIF!D11 -> 2019-04-16 | N24: vous informe de votre :
F27: AVANCEMENT D’ECHELON
A33: Vous passez à l’échelon : | F33: ='GRILLE ISG IS G3'!B17 -> 5 | H33: Indice Majoré : | L33: ='GRILLE ISG IS G3'!D17 -> 522
A36: Date d'effet : | F36: / | H36: / | I36: =RECAPITULATIF!D9 -> 2019 | R36: ='GRILLE ISG IS G3'!B2 -> I.B.O.D.E. / Puéricultrice et I.A.D.E. Grade 3
A40: Ce qui représente un gain mensuel de : | I40: ='GRILLE ISG IS G3'!D17-'GRILLE ISG IS G3'!D15 -> 24 | K40: points d'indice.
R41: ='GRILLE ISG IS G3'!B7 -> Echelon | S41: ='GRILLE ISG IS G3'!C7 -> Durée (en mois) | T41: ='GRILLE ISG IS G3'!D7 -> Indice Majoré
A43: Pour information, la valeur brute du point d'indice | R43: ='GRILLE ISG IS G3'!B9 -> 1 | S43: ='GRILLE ISG IS G3'!C9 -> 24 | T43: ='GRILLE ISG IS G3'!D9 -> 433
R45: ='GRILLE ISG IS G3'!B11 -> 2 | S45: ='GRILLE ISG IS G3'!C11 -> 24 | T45: ='GRILLE ISG IS G3'!D11 -> 452
A46: est de | C46: =RECAPITULATIF!D13 -> 4.686 € | E46: au | F46: =RECAPITULATIF!D15 -> 2019-01-01
R47: ='GRILLE ISG IS G3'!B13 -> 3 | S47: ='GRILLE ISG IS G3'!C13 -> 24 | T47: ='GRILLE ISG IS G3'!D13 -> 473
A49: Soit un gain net mensuel de : | G49: =I40*C46*0.8315 -> 93.51 € | R49: ='GRILLE ISG IS G3'!B15 -> 4 | S49: ='GRILLE ISG IS G3'!C15 -> 24 | T49: ='GRILLE ISG IS G3'!D15 -> 498
R51: ='GRILLE ISG IS G3'!B17 -> 5 | S51: ='GRILLE ISG IS G3'!C17 -> 24 | T51: ='GRILLE ISG IS G3'!D17 -> 522
R53: ='GRILLE ISG IS G3'!B19 -> 6 | S53: ='GRILLE ISG IS G3'!C19 -> 42 | T53: ='GRILLE ISG IS G3'!D19 -> 546
A54: Vos représentant-e-s SUD Santé Sociaux | I54: =RECAPITULATIF!D21 -> 35 | K54: sont à votre disposition
A55: pour tous renseignements complémentaires au poste : | M55: =RECAPITULATIF!D17 -> 2886 | R55: ='GRILLE ISG IS G3'!B21 -> 7 | S55: ='GRILLE ISG IS G3'!C21 -> 48 | T55: ='GRILLE ISG IS G3'!D21 -> 573
R57: ='GRILLE ISG IS G3'!B23 -> 8 | S57: ='GRILLE ISG IS G3'!C23 -> 48 | T57: ='GRILLE ISG IS G3'!D23 -> 598
R59: ='GRILLE ISG IS G3'!B25 -> 9 | S59: ='GRILLE ISG IS G3'!C25 -> 48 | T59: ='GRILLE ISG IS G3'!D25 -> 621
A60: Recevez toutes nos salutations.
R61: ='GRILLE ISG IS G3'!B27 -> 10 | S61: ='GRILLE ISG IS G3'!C27 -> 0 | T61: ='GRILLE ISG IS G3'!D27 -> 650
A63: =RECAPITULATIF!B5 -> Madame FERET Isabelle, Madame Anne PICHON et Monsieur Patrick GAUTIER
A65: SUD Santé Sociaux | E65: =RECAPITULATIF!D21 -> 35
A70: Tél : | B70: =RECAPITULATIF!D19 -> 02 99 21 28 86
A71: Mél : | C71: =RECAPITULATIF!C23 -> sudsante@ch-stmalo.fr
A72: =RECAPITULATIF!B25 -> Site Départemental Sud | F72: =RECAPITULATIF!D25 -> http://www.sudsantesociaux35.org

Sheet ISG IS G3 Echelon 6
G2: Commission Administrative
G3: Paritaire | M3: =RECAPITULATIF!D7 -> Locale
M9: Mme, Mr :
M11: Grade :
M13: Service :
A16: Votre ou vos représentant-e-s du personnel
A18: =RECAPITULATIF!B5 -> Madame FERET Isabelle, Madame Anne PICHON et Monsieur Patrick GAUTIER
A20: SUD Santé Sociaux | E20: =RECAPITULATIF!D21 -> 35 | F20: du:
A22: =RECAPITULATIF!B2 -> Centre Hospitalier de Saint Malo
A24: siégeant auprès de la CAP | F24: =RECAPITULATIF!D7 -> Locale | J24: du : | K24: =RECAPITULATIF!D11 -> 2019-04-16 | N24: vous informe de votre :
F27: AVANCEMENT D’ECHELON
A33: Vous passez à l’échelon : | F33: ='GRILLE ISG IS G3'!B19 -> 6 | H33: Indice Majoré : | L33: ='GRILLE ISG IS G3'!D19 -> 546
A36: Date d'effet : | F36: / | H36: / | I36: =RECAPITULATIF!D9 -> 2019 | R36: ='GRILLE ISG IS G3'!B2 -> I.B.O.D.E. / Puéricultrice et I.A.D.E. Grade 3
A40: Ce qui représente un gain mensuel de : | I40: ='GRILLE ISG IS G3'!D19-'GRILLE ISG IS G3'!D17 -> 24 | K40: points d'indice.
R41: ='GRILLE ISG IS G3'!B7 -> Echelon | S41: ='GRILLE ISG IS G3'!C7 -> Durée (en mois) | T41: ='GRILLE ISG IS G3'!D7 -> Indice Majoré
A43: Pour information, la valeur brute du point d'indice | R43: ='GRILLE ISG IS G3'!B9 -> 1 | S43: ='GRILLE ISG IS G3'!C9 -> 24 | T43: ='GRILLE ISG IS G3'!D9 -> 433
R45: ='GRILLE ISG IS G3'!B11 -> 2 | S45: ='GRILLE ISG IS G3'!C11 -> 24 | T45: ='GRILLE ISG IS G3'!D11 -> 452
A46: est de | C46: =RECAPITULATIF!D13 -> 4.686 € | E46: au | F46: =RECAPITULATIF!D15 -> 2019-01-01
R47: ='GRILLE ISG IS G3'!B13 -> 3 | S47: ='GRILLE ISG IS G3'!C13 -> 24 | T47: ='GRILLE ISG IS G3'!D13 -> 473
A49: Soit un gain net mensuel de : | G49: =I40*C46*0.8315 -> 93.51 € | R49: ='GRILLE ISG IS G3'!B15 -> 4 | S49: ='GRILLE ISG IS G3'!C15 -> 24 | T49: ='GRILLE ISG IS G3'!D15 -> 498
R51: ='GRILLE ISG IS G3'!B17 -> 5 | S51: ='GRILLE ISG IS G3'!C17 -> 24 | T51: ='GRILLE ISG IS G3'!D17 -> 522
R53: ='GRILLE ISG IS G3'!B19 -> 6 | S53: ='GRILLE ISG IS G3'!C19 -> 42 | T53: ='GRILLE ISG IS G3'!D19 -> 546
A54: Vos représentant-e-s SUD Santé Sociaux | I54: =RECAPITULATIF!D21 -> 35 | K54: sont à votre disposition
A55: pour tous renseignements complémentaires au poste : | M55: =RECAPITULATIF!D17 -> 2886 | R55: ='GRILLE ISG IS G3'!B21 -> 7 | S55: ='GRILLE ISG IS G3'!C21 -> 48 | T55: ='GRILLE ISG IS G3'!D21 -> 573
R57: ='GRILLE ISG IS G3'!B23 -> 8 | S57: ='GRILLE ISG IS G3'!C23 -> 48 | T57: ='GRILLE ISG IS G3'!D23 -> 598
R59: ='GRILLE ISG IS G3'!B25 -> 9 | S59: ='GRILLE ISG IS G3'!C25 -> 48 | T59: ='GRILLE ISG IS G3'!D25 -> 621
A60: Recevez toutes nos salutations.
R61: ='GRILLE ISG IS G3'!B27 -> 10 | S61: ='GRILLE ISG IS G3'!C27 -> 0 | T61: ='GRILLE ISG IS G3'!D27 -> 650
A63: =RECAPITULATIF!B5 -> Madame FERET Isabelle, Madame Anne PICHON et Monsieur Patrick GAUTIER
A65: SUD Santé Sociaux | E65: =RECAPITULATIF!D21 -> 35
A70: Tél : | B70: =RECAPITULATIF!D19 -> 02 99 21 28 86
A71: Mél : | C71: =RECAPITULATIF!C23 -> sudsante@ch-stmalo.fr
A72: =RECAPITULATIF!B25 -> Site Départemental Sud | F72: =RECAPITULATIF!D25 -> http://www.sudsantesociaux35.org

Sheet ISG IS G3 Echelon 7
G2: Commission Administrative
G3: Paritaire | M3: =RECAPITULATIF!D7 -> Locale
M9: Mme, Mr :
M11: Grade :
M13: Service :
A16: Votre ou vos représentant-e-s du personnel
A18: =RECAPITULATIF!B5 -> Madame FERET Isabelle, Madame Anne PICHON et Monsieur Patrick GAUTIER
A20: SUD Santé Sociaux | E20: =RECAPITULATIF!D21 -> 35 | F20: du:
A22: =RECAPITULATIF!B2 -> Centre Hospitalier de Saint Malo
A24: siégeant auprès de la CAP | F24: =RECAPITULATIF!D7 -> Locale | J24: du : | K24: =RECAPITULATIF!D11 -> 2019-04-16 | N24: vous informe de votre :
F27: AVANCEMENT D’ECHELON
A33: Vous passez à l’échelon : | F33: ='GRILLE ISG IS G3'!B21 -> 7 | H33: Indice Majoré : | L33: ='GRILLE ISG IS G3'!D21 -> 573
A36: Date d'effet : | F36: / | H36: / | I36: =RECAPITULATIF!D9 -> 2019 | R36: ='GRILLE ISG IS G3'!B2 -> I.B.O.D.E. / Puéricultrice et I.A.D.E. Grade 3
A40: Ce qui représente un gain mensuel de : | I40: ='GRILLE ISG IS G3'!D21-'GRILLE ISG IS G3'!D19 -> 27 | K40: points d'indice.
R41: ='GRILLE ISG IS G3'!B7 -> Echelon | S41: ='GRILLE ISG IS G3'!C7 -> Durée (en mois) | T41: ='GRILLE ISG IS G3'!D7 -> Indice Majoré
A43: Pour information, la valeur brute du point d'indice | R43: ='GRILLE ISG IS G3'!B9 -> 1 | S43: ='GRILLE ISG IS G3'!C9 -> 24 | T43: ='GRILLE ISG IS G3'!D9 -> 433
R45: ='GRILLE ISG IS G3'!B11 -> 2 | S45: ='GRILLE ISG IS G3'!C11 -> 24 | T45: ='GRILLE ISG IS G3'!D11 -> 452
A46: est de | C46: =RECAPITULATIF!D13 -> 4.686 € | E46: au | F46: =RECAPITULATIF!D15 -> 2019-01-01
R47: ='GRILLE ISG IS G3'!B13 -> 3 | S47: ='GRILLE ISG IS G3'!C13 -> 24 | T47: ='GRILLE ISG IS G3'!D13 -> 473
A49: Soit un gain net mensuel de : | G49: =I40*C46*0.8315 -> 105.20 € | R49: ='GRILLE ISG IS G3'!B15 -> 4 | S49: ='GRILLE ISG IS G3'!C15 -> 24 | T49: ='GRILLE ISG IS G3'!D15 -> 498
R51: ='GRILLE ISG IS G3'!B17 -> 5 | S51: ='GRILLE ISG IS G3'!C17 -> 24 | T51: ='GRILLE ISG IS G3'!D17 -> 522
R53: ='GRILLE ISG IS G3'!B19 -> 6 | S53: ='GRILLE ISG IS G3'!C19 -> 42 | T53: ='GRILLE ISG IS G3'!D19 -> 546
A54: Vos représentant-e-s SUD Santé Sociaux | I54: =RECAPITULATIF!D21 -> 35 | K54: sont à votre disposition
A55: pour tous renseignements complémentaires au poste : | M55: =RECAPITULATIF!D17 -> 2886 | R55: ='GRILLE ISG IS G3'!B21 -> 7 | S55: ='GRILLE ISG IS G3'!C21 -> 48 | T55: ='GRILLE ISG IS G3'!D21 -> 573
R57: ='GRILLE ISG IS G3'!B23 -> 8 | S57: ='GRILLE ISG IS G3'!C23 -> 48 | T57: ='GRILLE ISG IS G3'!D23 -> 598
R59: ='GRILLE ISG IS G3'!B25 -> 9 | S59: ='GRILLE ISG IS G3'!C25 -> 48 | T59: ='GRILLE ISG IS G3'!D25 -> 621
A60: Recevez toutes nos salutations.
R61: ='GRILLE ISG IS G3'!B27 -> 10 | S61: ='GRILLE ISG IS G3'!C27 -> 0 | T61: ='GRILLE ISG IS G3'!D27 -> 650
A63: =RECAPITULATIF!B5 -> Madame FERET Isabelle, Madame Anne PICHON et Monsieur Patrick GAUTIER
A65: SUD Santé Sociaux | E65: =RECAPITULATIF!D21 -> 35
A70: Tél : | B70: =RECAPITULATIF!D19 -> 02 99 21 28 86
A71: Mél : | C71: =RECAPITULATIF!C23 -> sudsante@ch-stmalo.fr
A72: =RECAPITULATIF!B25 -> Site Départemental Sud | F72: =RECAPITULATIF!D25 -> http://www.sudsantesociaux35.org

Sheet ISG IS G3 Echelon 8
G2: Commission Administrative
G3: Paritaire | M3: =RECAPITULATIF!D7 -> Locale
M9: Mme, Mr :
M11: Grade :
M13: Service :
A16: Votre ou vos représentant-e-s du personnel
A18: =RECAPITULATIF!B5 -> Madame FERET Isabelle, Madame Anne PICHON et Monsieur Patrick GAUTIER
A20: SUD Santé Sociaux | E20: =RECAPITULATIF!D21 -> 35 | F20: du:
A22: =RECAPITULATIF!B2 -> Centre Hospitalier de Saint Malo
A24: siégeant auprès de la CAP | F24: =RECAPITULATIF!D7 -> Locale | J24: du : | K24: =RECAPITULATIF!D11 -> 2019-04-16 | N24: vous informe de votre :
F27: AVANCEMENT D’ECHELON
A33: Vous passez à l’échelon : | F33: ='GRILLE ISG IS G3'!B23 -> 8 | H33: Indice Majoré : | L33: ='GRILLE ISG IS G3'!D23 -> 598
A36: Date d'effet : | F36: / | H36: / | I36: =RECAPITULATIF!D9 -> 2019 | R36: ='GRILLE ISG IS G3'!B2 -> I.B.O.D.E. / Puéricultrice et I.A.D.E. Grade 3
A40: Ce qui représente un gain mensuel de : | I40: ='GRILLE ISG IS G3'!D23-'GRILLE ISG IS G3'!D21 -> 25 | K40: points d'indice.
R41: ='GRILLE ISG IS G3'!B7 -> Echelon | S41: ='GRILLE ISG IS G3'!C7 -> Durée (en mois) | T41: ='GRILLE ISG IS G3'!D7 -> Indice Majoré
A43: Pour information, la valeur brute du point d'indice | R43: ='GRILLE ISG IS G3'!B9 -> 1 | S43: ='GRILLE ISG IS G3'!C9 -> 24 | T43: ='GRILLE ISG IS G3'!D9 -> 433
R45: ='GRILLE ISG IS G3'!B11 -> 2 | S45: ='GRILLE ISG IS G3'!C11 -> 24 | T45: ='GRILLE ISG IS G3'!D11 -> 452
A46: est de | C46: =RECAPITULATIF!D13 -> 4.686 € | E46: au | F46: =RECAPITULATIF!D15 -> 2019-01-01
R47: ='GRILLE ISG IS G3'!B13 -> 3 | S47: ='GRILLE ISG IS G3'!C13 -> 24 | T47: ='GRILLE ISG IS G3'!D13 -> 473
A49: Soit un gain net mensuel de : | G49: =I40*C46*0.8315 -> 97.41 € | R49: ='GRILLE ISG IS G3'!B15 -> 4 | S49: ='GRILLE ISG IS G3'!C15 -> 24 | T49: ='GRILLE ISG IS G3'!D15 -> 498
R51: ='GRILLE ISG IS G3'!B17 -> 5 | S51: ='GRILLE ISG IS G3'!C17 -> 24 | T51: ='GRILLE ISG IS G3'!D17 -> 522
R53: ='GRILLE ISG IS G3'!B19 -> 6 | S53: ='GRILLE ISG IS G3'!C19 -> 42 | T53: ='GRILLE ISG IS G3'!D19 -> 546
A54: Vos représentant-e-s SUD Santé Sociaux | I54: =RECAPITULATIF!D21 -> 35 | K54: sont à votre disposition
A55: pour tous renseignements complémentaires au poste : | M55: =RECAPITULATIF!D17 -> 2886 | R55: ='GRILLE ISG IS G3'!B21 -> 7 | S55: ='GRILLE ISG IS G3'!C21 -> 48 | T55: ='GRILLE ISG IS G3'!D21 -> 573
R57: ='GRILLE ISG IS G3'!B23 -> 8 | S57: ='GRILLE ISG IS G3'!C23 -> 48 | T57: ='GRILLE ISG IS G3'!D23 -> 598
R59: ='GRILLE ISG IS G3'!B25 -> 9 | S59: ='GRILLE ISG IS G3'!C25 -> 48 | T59: ='GRILLE ISG IS G3'!D25 -> 621
A60: Recevez toutes nos salutations.
R61: ='GRILLE ISG IS G3'!B27 -> 10 | S61: ='GRILLE ISG IS G3'!C27 -> 0 | T61: ='GRILLE ISG IS G3'!D27 -> 650
A63: =RECAPITULATIF!B5 -> Madame FERET Isabelle, Madame Anne PICHON et Monsieur Patrick GAUTIER
A65: SUD Santé Sociaux | E65: =RECAPITULATIF!D21 -> 35
A70: Tél : | B70: =RECAPITULATIF!D19 -> 02 99 21 28 86
A71: Mél : | C71: =RECAPITULATIF!C23 -> sudsante@ch-stmalo.fr
A72: =RECAPITULATIF!B25 -> Site Départemental Sud | F72: =RECAPITULATIF!D25 -> http://www.sudsantesociaux35.org

Sheet ISG IS G3 Echelon 9
G2: Commission Administrative
G3: Paritaire | M3: =RECAPITULATIF!D7 -> Locale
M9: Mme, Mr :
M11: Grade :
M13: Service :
A16: Votre ou vos représentant-e-s du personnel
A18: =RECAPITULATIF!B5 -> Madame FERET Isabelle, Madame Anne PICHON et Monsieur Patrick GAUTIER
A20: SUD Santé Sociaux | E20: =RECAPITULATIF!D21 -> 35 | F20: du:
A22: =RECAPITULATIF!B2 -> Centre Hospitalier de Saint Malo
A24: siégeant auprès de la CAP | F24: =RECAPITULATIF!D7 -> Locale | J24: du : | K24: =RECAPITULATIF!D11 -> 2019-04-16 | N24: vous informe de votre :
F27: AVANCEMENT D’ECHELON
A33: Vous passez à l’échelon : | F33: ='GRILLE ISG IS G3'!B25 -> 9 | H33: Indice Majoré : | L33: ='GRILLE ISG IS G3'!D25 -> 621
A36: Date d'effet : | F36: / | H36: / | I36: =RECAPITULATIF!D9 -> 2019 | R36: ='GRILLE ISG IS G3'!B2 -> I.B.O.D.E. / Puéricultrice et I.A.D.E. Grade 3
A40: Ce qui représente un gain mensuel de : | I40: ='GRILLE ISG IS G3'!D25-'GRILLE ISG IS G3'!D23 -> 23 | K40: points d'indice.
R41: ='GRILLE ISG IS G3'!B7 -> Echelon | S41: ='GRILLE ISG IS G3'!C7 -> Durée (en mois) | T41: ='GRILLE ISG IS G3'!D7 -> Indice Majoré
A43: Pour information, la valeur brute du point d'indice | R43: ='GRILLE ISG IS G3'!B9 -> 1 | S43: ='GRILLE ISG IS G3'!C9 -> 24 | T43: ='GRILLE ISG IS G3'!D9 -> 433
R45: ='GRILLE ISG IS G3'!B11 -> 2 | S45: ='GRILLE ISG IS G3'!C11 -> 24 | T45: ='GRILLE ISG IS G3'!D11 -> 452
A46: est de | C46: =RECAPITULATIF!D13 -> 4.686 € | E46: au | F46: =RECAPITULATIF!D15 -> 2019-01-01
R47: ='GRILLE ISG IS G3'!B13 -> 3 | S47: ='GRILLE ISG IS G3'!C13 -> 24 | T47: ='GRILLE ISG IS G3'!D13 -> 473
A49: Soit un gain net mensuel de : | G49: =I40*C46*0.8315 -> 89.62 € | R49: ='GRILLE ISG IS G3'!B15 -> 4 | S49: ='GRILLE ISG IS G3'!C15 -> 24 | T49: ='GRILLE ISG IS G3'!D15 -> 498
R51: ='GRILLE ISG IS G3'!B17 -> 5 | S51: ='GRILLE ISG IS G3'!C17 -> 24 | T51: ='GRILLE ISG IS G3'!D17 -> 522
R53: ='GRILLE ISG IS G3'!B19 -> 6 | S53: ='GRILLE ISG IS G3'!C19 -> 42 | T53: ='GRILLE ISG IS G3'!D19 -> 546
A54: Vos représentant-e-s SUD Santé Sociaux | I54: =RECAPITULATIF!D21 -> 35 | K54: sont à votre disposition
A55: pour tous renseignements complémentaires au poste : | M55: =RECAPITULATIF!D17 -> 2886 | R55: ='GRILLE ISG IS G3'!B21 -> 7 | S55: ='GRILLE ISG IS G3'!C21 -> 48 | T55: ='GRILLE ISG IS G3'!D21 -> 573
R57: ='GRILLE ISG IS G3'!B23 -> 8 | S57: ='GRILLE ISG IS G3'!C23 -> 48 | T57: ='GRILLE ISG IS G3'!D23 -> 598
R59: ='GRILLE ISG IS G3'!B25 -> 9 | S59: ='GRILLE ISG IS G3'!C25 -> 48 | T59: ='GRILLE ISG IS G3'!D25 -> 621
A60: Recevez toutes nos salutations.
R61: ='GRILLE ISG IS G3'!B27 -> 10 | S61: ='GRILLE ISG IS G3'!C27 -> 0 | T61: ='GRILLE ISG IS G3'!D27 -> 650
A63: =RECAPITULATIF!B5 -> Madame FERET Isabelle, Madame Anne PICHON et Monsieur Patrick GAUTIER
A65: SUD Santé Sociaux | E65: =RECAPITULATIF!D21 -> 35
A70: Tél : | B70: =RECAPITULATIF!D19 -> 02 99 21 28 86
A71: Mél : | C71: =RECAPITULATIF!C23 -> sudsante@ch-stmalo.fr
A72: =RECAPITULATIF!B25 -> Site Départemental Sud | F72: =RECAPITULATIF!D25 -> http://www.sudsantesociaux35.org

Sheet ISG IS G3 Echelon 10
G2: Commission Administrative
G3: Paritaire | M3: =RECAPITULATIF!D7 -> Locale
M9: Mme, Mr :
M11: Grade :
M13: Service :
A16: Votre ou vos représentant-e-s du personnel
A18: =RECAPITULATIF!B5 -> Madame FERET Isabelle, Madame Anne PICHON et Monsieur Patrick GAUTIER
A20: SUD Santé Sociaux | E20: =RECAPITULATIF!D21 -> 35 | F20: du:
A22: =RECAPITULATIF!B2 -> Centre Hospitalier de Saint Malo
A24: siégeant auprès de la CAP | F24: =RECAPITULATIF!D7 -> Locale | J24: du : | K24: =RECAPITULATIF!D11 -> 2019-04-16 | N24: vous informe de votre :
F27: AVANCEMENT D’ECHELON
A33: Vous passez à l’échelon : | F33: ='GRILLE ISG IS G3'!B27 -> 10 | H33: Indice Majoré : | L33: ='GRILLE ISG IS G3'!D27 -> 650
A36: Date d'effet : | F36: / | H36: / | I36: =RECAPITULATIF!D9 -> 2019 | R36: ='GRILLE ISG IS G3'!B2 -> I.B.O.D.E. / Puéricultrice et I.A.D.E. Grade 3
A40: Ce qui représente un gain mensuel de : | I40: ='GRILLE ISG IS G3'!D27-'GRILLE ISG IS G3'!D25 -> 29 | K40: points d'indice.
R41: ='GRILLE ISG IS G3'!B7 -> Echelon | S41: ='GRILLE ISG IS G3'!C7 -> Durée (en mois) | T41: ='GRILLE ISG IS G3'!D7 -> Indice Majoré
A43: Pour information, la valeur brute du point d'indice | R43: ='GRILLE ISG IS G3'!B9 -> 1 | S43: ='GRILLE ISG IS G3'!C9 -> 24 | T43: ='GRILLE ISG IS G3'!D9 -> 433
R45: ='GRILLE ISG IS G3'!B11 -> 2 | S45: ='GRILLE ISG IS G3'!C11 -> 24 | T45: ='GRILLE ISG IS G3'!D11 -> 452
A46: est de | C46: =RECAPITULATIF!D13 -> 4.686 € | E46: au | F46: =RECAPITULATIF!D15 -> 2019-01-01
R47: ='GRILLE ISG IS G3'!B13 -> 3 | S47: ='GRILLE ISG IS G3'!C13 -> 24 | T47: ='GRILLE ISG IS G3'!D13 -> 473
A49: Soit un gain net mensuel de : | G49: =I40*C46*0.8315 -> 113.00 € | R49: ='GRILLE ISG IS G3'!B15 -> 4 | S49: ='GRILLE ISG IS G3'!C15 -> 24 | T49: ='GRILLE ISG IS G3'!D15 -> 498
R51: ='GRILLE ISG IS G3'!B17 -> 5 | S51: ='GRILLE ISG IS G3'!C17 -> 24 | T51: ='GRILLE ISG IS G3'!D17 -> 522
R53: ='GRILLE ISG IS G3'!B19 -> 6 | S53: ='GRILLE ISG IS G3'!C19 -> 42 | T53: ='GRILLE ISG IS G3'!D19 -> 546
A54: Vos représentant-e-s SUD Santé Sociaux | I54: =RECAPITULATIF!D21 -> 35 | K54: sont à votre disposition
A55: pour tous renseignements complémentaires au poste : | M55: =RECAPITULATIF!D17 -> 2886 | R55: ='GRILLE ISG IS G3'!B21 -> 7 | S55: ='GRILLE ISG IS G3'!C21 -> 48 | T55: ='GRILLE ISG IS G3'!D21 -> 573
R57: ='GRILLE ISG IS G3'!B23 -> 8 | S57: ='GRILLE ISG IS G3'!C23 -> 48 | T57: ='GRILLE ISG IS G3'!D23 -> 598
R59: ='GRILLE ISG IS G3'!B25 -> 9 | S59: ='GRILLE ISG IS G3'!C25 -> 48 | T59: ='GRILLE ISG IS G3'!D25 -> 621
A60: Recevez toutes nos salutations.
R61: ='GRILLE ISG IS G3'!B27 -> 10 | S61: ='GRILLE ISG IS G3'!C27 -> 0 | T61: ='GRILLE ISG IS G3'!D27 -> 650
A63: =RECAPITULATIF!B5 -> Madame FERET Isabelle, Madame Anne PICHON et Monsieur Patrick GAUTIER
A65: SUD Santé Sociaux | E65: =RECAPITULATIF!D21 -> 35
A70: Tél : | B70: =RECAPITULATIF!D19 -> 02 99 21 28 86
A71: Mél : | C71: =RECAPITULATIF!C23 -> sudsante@ch-stmalo.fr
A72: =RECAPITULATIF!B25 -> Site Départemental Sud | F72: =RECAPITULATIF!D25 -> http://www.sudsantesociaux35.org

Sheet GRILLE IADE G1
B2: I.A.D.E. 1er Grade
B7: Echelon | C7: Durée (en mois) | D7: Indice Majoré
B9: 1 | C9: 24 | D9: 433
B11: 2 | C11: 24 | D11: 452
B13: 3 | C13: 24 | D13: 473
B15: 4 | C15: 24 | D15: 498
B17: 5 | C17: 24 | D17: 522
B19: 6 | C19: 42 | D19: 546
B21: 7 | C21: 48 | D21: 573
B23: 8 | C23: 48 | D23: 598
B25: 9 | C25: 48 | D25: 621
B27: 10 | D27: 650

Sheet IMP GRILLE IADE G1
B2: 1) Imprimez autant de feuilles que d'agents concernés.
B4: 2) Pliez en 3 au niveau du repère, deux petits traits noirs.
B6: 3) Inserrez ce courrier dans une enveloppe 110 X 220 à fenêtre.

Sheet IADE G1 Echelon 2
G2: Commission Administrative
G3: Paritaire | M3: =RECAPITULATIF!D7 -> Locale
M9: Mme, Mr :
M11: Grade :
M13: Service :
A16: Votre ou vos représentant-e-s du personnel
A18: =RECAPITULATIF!B5 -> Madame FERET Isabelle, Madame Anne PICHON et Monsieur Patrick GAUTIER
A20: SUD Santé Sociaux | E20: =RECAPITULATIF!D21 -> 35 | F20: du:
A22: =RECAPITULATIF!B2 -> Centre Hospitalier de Saint Malo
A24: siégeant auprès de la CAP | F24: =RECAPITULATIF!D7 -> Locale | J24: du : | K24: =RECAPITULATIF!D11 -> 2019-04-16 | N24: vous informe de votre :
F27: AVANCEMENT D’ECHELON
A33: Vous passez à l’échelon : | F33: ='GRILLE IADE G1'!B11 -> 2 | H33: Indice Majoré : | L33: ='GRILLE IADE G1'!D11 -> 452
A36: Date d'effet : | F36: / | H36: / | I36: =RECAPITULATIF!D9 -> 2019 | R36: ='GRILLE IADE G1'!B2 -> I.A.D.E. 1er Grade
A40: Ce qui représente un gain mensuel de : | I40: ='GRILLE IADE G1'!D11-'GRILLE IADE G1'!D9 -> 19 | K40: points d'indice.
R41: ='GRILLE IADE G1'!B7 -> Echelon | S41: ='GRILLE IADE G1'!C7 -> Durée (en mois) | T41: ='GRILLE IADE G1'!D7 -> Indice Majoré
A43: Pour information, la valeur brute du point d'indice | R43: ='GRILLE IADE G1'!B9 -> 1 | S43: ='GRILLE IADE G1'!C9 -> 24 | T43: ='GRILLE IADE G1'!D9 -> 433
R45: ='GRILLE IADE G1'!B11 -> 2 | S45: ='GRILLE IADE G1'!C11 -> 24 | T45: ='GRILLE IADE G1'!D11 -> 452
A46: est de | C46: =RECAPITULATIF!D13 -> 4.686 € | E46: au | F46: =RECAPITULATIF!D15 -> 2019-01-01
R47: ='GRILLE IADE G1'!B13 -> 3 | S47: ='GRILLE IADE G1'!C13 -> 24 | T47: ='GRILLE IADE G1'!D13 -> 473
A49: Soit un gain net mensuel de : | G49: =I40*C46*0.8315 -> 74.03 € | R49: ='GRILLE IADE G1'!B15 -> 4 | S49: ='GRILLE IADE G1'!C15 -> 24 | T49: ='GRILLE IADE G1'!D15 -> 498
R51: ='GRILLE IADE G1'!B17 -> 5 | S51: ='GRILLE IADE G1'!C17 -> 24 | T51: ='GRILLE IADE G1'!D17 -> 522
R53: ='GRILLE IADE G1'!B19 -> 6 | S53: ='GRILLE IADE G1'!C19 -> 42 | T53: ='GRILLE IADE G1'!D19 -> 546
A54: Vos représentant-e-s SUD Santé Sociaux | I54: =RECAPITULATIF!D21 -> 35 | K54: sont à votre disposition
A55: pour tous renseignements complémentaires au poste : | M55: =RECAPITULATIF!D17 -> 2886 | R55: ='GRILLE IADE G1'!B21 -> 7 | S55: ='GRILLE IADE G1'!C21 -> 48 | T55: ='GRILLE IADE G1'!D21 -> 573
R57: ='GRILLE IADE G1'!B23 -> 8 | S57: ='GRILLE IADE G1'!C23 -> 48 | T57: ='GRILLE IADE G1'!D23 -> 598
R59: ='GRILLE IADE G1'!B25 -> 9 | S59: ='GRILLE IADE G1'!C25 -> 48 | T59: ='GRILLE IADE G1'!D25 -> 621
A60: Recevez toutes nos salutations.
R61: ='GRILLE IADE G1'!B27 -> 10 | S61: ='GRILLE IADE G1'!C27 -> 0 | T61: ='GRILLE IADE G1'!D27 -> 650
A63: =RECAPITULATIF!B5 -> Madame FERET Isabelle, Madame Anne PICHON et Monsieur Patrick GAUTIER
A65: SUD Santé Sociaux | E65: =RECAPITULATIF!D21 -> 35
A70: Tél : | B70: =RECAPITULATIF!D19 -> 02 99 21 28 86
A71: Mél : | C71: =RECAPITULATIF!C23 -> sudsante@ch-stmalo.fr
A72: =RECAPITULATIF!B25 -> Site Départemental Sud | F72: =RECAPITULATIF!D25 -> http://www.sudsantesociaux35.org

Sheet IADE G1 Echelon 3
G2: Commission Administrative
G3: Paritaire | M3: =RECAPITULATIF!D7 -> Locale
M9: Mme, Mr :
M11: Grade :
M13: Service :
A16: Votre ou vos représentant-e-s du personnel
A18: =RECAPITULATIF!B5 -> Madame FERET Isabelle, Madame Anne PICHON et Monsieur Patrick GAUTIER
A20: SUD Santé Sociaux | E20: =RECAPITULATIF!D21 -> 35 | F20: du:
A22: =RECAPITULATIF!B2 -> Centre Hospitalier de Saint Malo
A24: siégeant auprès de la CAP | F24: =RECAPITULATIF!D7 -> Locale | J24: du : | K24: =RECAPITULATIF!D11 -> 2019-04-16 | N24: vous informe de votre :
F27: AVANCEMENT D’ECHELON
A33: Vous passez à l’échelon : | F33: ='GRILLE IADE G1'!B13 -> 3 | H33: Indice Majoré : | L33: ='GRILLE IADE G1'!D13 -> 473
A36: Date d'effet : | F36: / | H36: / | I36: =RECAPITULATIF!D9 -> 2019 | R36: ='GRILLE IADE G1'!B2 -> I.A.D.E. 1er Grade
A40: Ce qui représente un gain mensuel de : | I40: ='GRILLE IADE G1'!D13-'GRILLE IADE G1'!D11 -> 21 | K40: points d'indice.
R41: ='GRILLE IADE G1'!B7 -> Echelon | S41: ='GRILLE IADE G1'!C7 -> Durée (en mois) | T41: ='GRILLE IADE G1'!D7 -> Indice Majoré
A43: Pour information, la valeur brute du point d'indice | R43: ='GRILLE IADE G1'!B9 -> 1 | S43: ='GRILLE IADE G1'!C9 -> 24 | T43: ='GRILLE IADE G1'!D9 -> 433
R45: ='GRILLE IADE G1'!B11 -> 2 | S45: ='GRILLE IADE G1'!C11 -> 24 | T45: ='GRILLE IADE G1'!D11 -> 452
A46: est de | C46: =RECAPITULATIF!D13 -> 4.686 € | E46: au | F46: =RECAPITULATIF!D15 -> 2019-01-01
R47: ='GRILLE IADE G1'!B13 -> 3 | S47: ='GRILLE IADE G1'!C13 -> 24 | T47: ='GRILLE IADE G1'!D13 -> 473
A49: Soit un gain net mensuel de : | G49: =I40*C46*0.8315 -> 81.82 € | R49: ='GRILLE IADE G1'!B15 -> 4 | S49: ='GRILLE IADE G1'!C15 -> 24 | T49: ='GRILLE IADE G1'!D15 -> 498
R51: ='GRILLE IADE G1'!B17 -> 5 | S51: ='GRILLE IADE G1'!C17 -> 24 | T51: ='GRILLE IADE G1'!D17 -> 522
R53: ='GRILLE IADE G1'!B19 -> 6 | S53: ='GRILLE IADE G1'!C19 -> 42 | T53: ='GRILLE IADE G1'!D19 -> 546
A54: Vos représentant-e-s SUD Santé Sociaux | I54: =RECAPITULATIF!D21 -> 35 | K54: sont à votre disposition
A55: pour tous renseignements complémentaires au poste : | M55: =RECAPITULATIF!D17 -> 2886 | R55: ='GRILLE IADE G1'!B21 -> 7 | S55: ='GRILLE IADE G1'!C21 -> 48 | T55: ='GRILLE IADE G1'!D21 -> 573
R57: ='GRILLE IADE G1'!B23 -> 8 | S57: ='GRILLE IADE G1'!C23 -> 48 | T57: ='GRILLE IADE G1'!D23 -> 598
R59: ='GRILLE IADE G1'!B25 -> 9 | S59: ='GRILLE IADE G1'!C25 -> 48 | T59: ='GRILLE IADE G1'!D25 -> 621
A60: Recevez toutes nos salutations.
R61: ='GRILLE IADE G1'!B27 -> 10 | S61: ='GRILLE IADE G1'!C27 -> 0 | T61: ='GRILLE IADE G1'!D27 -> 650
A63: =RECAPITULATIF!B5 -> Madame FERET Isabelle, Madame Anne PICHON et Monsieur Patrick GAUTIER
A65: SUD Santé Sociaux | E65: =RECAPITULATIF!D21 -> 35
A70: Tél : | B70: =RECAPITULATIF!D19 -> 02 99 21 28 86
A71: Mél : | C71: =RECAPITULATIF!C23 -> sudsante@ch-stmalo.fr
A72: =RECAPITULATIF!B25 -> Site Départemental Sud | F72: =RECAPITULATIF!D25 -> http://www.sudsantesociaux35.org

Sheet IADE G1 Echelon 4
G2: Commission Administrative
G3: Paritaire | M3: =RECAPITULATIF!D7 -> Locale
M9: Mme, Mr :
M11: Grade :
M13: Service :
A16: Votre ou vos représentant-e-s du personnel
A18: =RECAPITULATIF!B5 -> Madame FERET Isabelle, Madame Anne PICHON et Monsieur Patrick GAUTIER
A20: SUD Santé Sociaux | E20: =RECAPITULATIF!D21 -> 35 | F20: du:
A22: =RECAPITULATIF!B2 -> Centre Hospitalier de Saint Malo
A24: siégeant auprès de la CAP | F24: =RECAPITULATIF!D7 -> Locale | J24: du : | K24: =RECAPITULATIF!D11 -> 2019-04-16 | N24: vous informe de votre :
F27: AVANCEMENT D’ECHELON
A33: Vous passez à l’échelon : | F33: ='GRILLE IADE G1'!B15 -> 4 | H33: Indice Majoré : | L33: ='GRILLE IADE G1'!D15 -> 498
A36: Date d'effet : | F36: / | H36: / | I36: =RECAPITULATIF!D9 -> 2019 | R36: ='GRILLE IADE G1'!B2 -> I.A.D.E. 1er Grade
A40: Ce qui représente un gain mensuel de : | I40: ='GRILLE IADE G1'!D15-'GRILLE IADE G1'!D13 -> 25 | K40: points d'indice.
R41: ='GRILLE IADE G1'!B7 -> Echelon | S41: ='GRILLE IADE G1'!C7 -> Durée (en mois) | T41: ='GRILLE IADE G1'!D7 -> Indice Majoré
A43: Pour information, la valeur brute du point d'indice | R43: ='GRILLE IADE G1'!B9 -> 1 | S43: ='GRILLE IADE G1'!C9 -> 24 | T43: ='GRILLE IADE G1'!D9 -> 433
R45: ='GRILLE IADE G1'!B11 -> 2 | S45: ='GRILLE IADE G1'!C11 -> 24 | T45: ='GRILLE IADE G1'!D11 -> 452
A46: est de | C46: =RECAPITULATIF!D13 -> 4.686 € | E46: au | F46: =RECAPITULATIF!D15 -> 2019-01-01
R47: ='GRILLE IADE G1'!B13 -> 3 | S47: ='GRILLE IADE G1'!C13 -> 24 | T47: ='GRILLE IADE G1'!D13 -> 473
A49: Soit un gain net mensuel de : | G49: =I40*C46*0.8315 -> 97.41 € | R49: ='GRILLE IADE G1'!B15 -> 4 | S49: ='GRILLE IADE G1'!C15 -> 24 | T49: ='GRILLE IADE G1'!D15 -> 498
R51: ='GRILLE IADE G1'!B17 -> 5 | S51: ='GRILLE IADE G1'!C17 -> 24 | T51: ='GRILLE IADE G1'!D17 -> 522
R53: ='GRILLE IADE G1'!B19 -> 6 | S53: ='GRILLE IADE G1'!C19 -> 42 | T53: ='GRILLE IADE G1'!D19 -> 546
A54: Vos représentant-e-s SUD Santé Sociaux | I54: =RECAPITULATIF!D21 -> 35 | K54: sont à votre disposition
A55: pour tous renseignements complémentaires au poste : | M55: =RECAPITULATIF!D17 -> 2886 | R55: ='GRILLE IADE G1'!B21 -> 7 | S55: ='GRILLE IADE G1'!C21 -> 48 | T55: ='GRILLE IADE G1'!D21 -> 573
R57: ='GRILLE IADE G1'!B23 -> 8 | S57: ='GRILLE IADE G1'!C23 -> 48 | T57: ='GRILLE IADE G1'!D23 -> 598
R59: ='GRILLE IADE G1'!B25 -> 9 | S59: ='GRILLE IADE G1'!C25 -> 48 | T59: ='GRILLE IADE G1'!D25 -> 621
A60: Recevez toutes nos salutations.
R61: ='GRILLE IADE G1'!B27 -> 10 | S61: ='GRILLE IADE G1'!C27 -> 0 | T61: ='GRILLE IADE G1'!D27 -> 650
A63: =RECAPITULATIF!B5 -> Madame FERET Isabelle, Madame Anne PICHON et Monsieur Patrick GAUTIER
A65: SUD Santé Sociaux | E65: =RECAPITULATIF!D21 -> 35
A70: Tél : | B70: =RECAPITULATIF!D19 -> 02 99 21 28 86
A71: Mél : | C71: =RECAPITULATIF!C23 -> sudsante@ch-stmalo.fr
A72: =RECAPITULATIF!B25 -> Site Départemental Sud | F72: =RECAPITULATIF!D25 -> http://www.sudsantesociaux35.org

Sheet IADE G1 Echelon 5
G2: Commission Administrative
G3: Paritaire | M3: =RECAPITULATIF!D7 -> Locale
M9: Mme, Mr :
M11: Grade :
M13: Service :
A16: Votre ou vos représentant-e-s du personnel
A18: =RECAPITULATIF!B5 -> Madame FERET Isabelle, Madame Anne PICHON et Monsieur Patrick GAUTIER
A20: SUD Santé Sociaux | E20: =RECAPITULATIF!D21 -> 35 | F20: du:
A22: =RECAPITULATIF!B2 -> Centre Hospitalier de Saint Malo
A24: siégeant auprès de la CAP | F24: =RECAPITULATIF!D7 -> Locale | J24: du : | K24: =RECAPITULATIF!D11 -> 2019-04-16 | N24: vous informe de votre :
F27: AVANCEMENT D’ECHELON
A33: Vous passez à l’échelon : | F33: ='GRILLE IADE G1'!B17 -> 5 | H33: Indice Majoré : | L33: ='GRILLE IADE G1'!D17 -> 522
A36: Date d'effet : | F36: / | H36: / | I36: =RECAPITULATIF!D9 -> 2019 | R36: ='GRILLE IADE G1'!B2 -> I.A.D.E. 1er Grade
A40: Ce qui représente un gain mensuel de : | I40: ='GRILLE IADE G1'!D17-'GRILLE IADE G1'!D15 -> 24 | K40: points d'indice.
R41: ='GRILLE IADE G1'!B7 -> Echelon | S41: ='GRILLE IADE G1'!C7 -> Durée (en mois) | T41: ='GRILLE IADE G1'!D7 -> Indice Majoré
A43: Pour information, la valeur brute du point d'indice | R43: ='GRILLE IADE G1'!B9 -> 1 | S43: ='GRILLE IADE G1'!C9 -> 24 | T43: ='GRILLE IADE G1'!D9 -> 433
R45: ='GRILLE IADE G1'!B11 -> 2 | S45: ='GRILLE IADE G1'!C11 -> 24 | T45: ='GRILLE IADE G1'!D11 -> 452
A46: est de | C46: =RECAPITULATIF!D13 -> 4.686 € | E46: au | F46: =RECAPITULATIF!D15 -> 2019-01-01
R47: ='GRILLE IADE G1'!B13 -> 3 | S47: ='GRILLE IADE G1'!C13 -> 24 | T47: ='GRILLE IADE G1'!D13 -> 473
A49: Soit un gain net mensuel de : | G49: =I40*C46*0.8315 -> 93.51 € | R49: ='GRILLE IADE G1'!B15 -> 4 | S49: ='GRILLE IADE G1'!C15 -> 24 | T49: ='GRILLE IADE G1'!D15 -> 498
R51: ='GRILLE IADE G1'!B17 -> 5 | S51: ='GRILLE IADE G1'!C17 -> 24 | T51: ='GRILLE IADE G1'!D17 -> 522
R53: ='GRILLE IADE G1'!B19 -> 6 | S53: ='GRILLE IADE G1'!C19 -> 42 | T53: ='GRILLE IADE G1'!D19 -> 546
A54: Vos représentant-e-s SUD Santé Sociaux | I54: =RECAPITULATIF!D21 -> 35 | K54: sont à votre disposition
A55: pour tous renseignements complémentaires au poste : | M55: =RECAPITULATIF!D17 -> 2886 | R55: ='GRILLE IADE G1'!B21 -> 7 | S55: ='GRILLE IADE G1'!C21 -> 48 | T55: ='GRILLE IADE G1'!D21 -> 573
R57: ='GRILLE IADE G1'!B23 -> 8 | S57: ='GRILLE IADE G1'!C23 -> 48 | T57: ='GRILLE IADE G1'!D23 -> 598
R59: ='GRILLE IADE G1'!B25 -> 9 | S59: ='GRILLE IADE G1'!C25 -> 48 | T59: ='GRILLE IADE G1'!D25 -> 621
A60: Recevez toutes nos salutations.
R61: ='GRILLE IADE G1'!B27 -> 10 | S61: ='GRILLE IADE G1'!C27 -> 0 | T61: ='GRILLE IADE G1'!D27 -> 650
A63: =RECAPITULATIF!B5 -> Madame FERET Isabelle, Madame Anne PICHON et Monsieur Patrick GAUTIER
A65: SUD Santé Sociaux | E65: =RECAPITULATIF!D21 -> 35
A70: Tél : | B70: =RECAPITULATIF!D19 -> 02 99 21 28 86
A71: Mél : | C71: =RECAPITULATIF!C23 -> sudsante@ch-stmalo.fr
A72: =RECAPITULATIF!B25 -> Site Départemental Sud | F72: =RECAPITULATIF!D25 -> http://www.sudsantesociaux35.org

Sheet IADE G1 Echelon 6
G2: Commission Administrative
G3: Paritaire | M3: =RECAPITULATIF!D7 -> Locale
M9: Mme, Mr :
M11: Grade :
M13: Service :
A16: Votre ou vos représentant-e-s du personnel
A18: =RECAPITULATIF!B5 -> Madame FERET Isabelle, Madame Anne PICHON et Monsieur Patrick GAUTIER
A20: SUD Santé Sociaux | E20: =RECAPITULATIF!D21 -> 35 | F20: du:
A22: =RECAPITULATIF!B2 -> Centre Hospitalier de Saint Malo
A24: siégeant auprès de la CAP | F24: =RECAPITULATIF!D7 -> Locale | J24: du : | K24: =RECAPITULATIF!D11 -> 2019-04-16 | N24: vous informe de votre :
F27: AVANCEMENT D’ECHELON
A33: Vous passez à l’échelon : | F33: ='GRILLE IADE G1'!B19 -> 6 | H33: Indice Majoré : | L33: ='GRILLE IADE G1'!D19 -> 546
A36: Date d'effet : | F36: / | H36: / | I36: =RECAPITULATIF!D9 -> 2019 | R36: ='GRILLE IADE G1'!B2 -> I.A.D.E. 1er Grade
A40: Ce qui représente un gain mensuel de : | I40: ='GRILLE IADE G1'!D19-'GRILLE IADE G1'!D17 -> 24 | K40: points d'indice.
R41: ='GRILLE IADE G1'!B7 -> Echelon | S41: ='GRILLE IADE G1'!C7 -> Durée (en mois) | T41: ='GRILLE IADE G1'!D7 -> Indice Majoré
A43: Pour information, la valeur brute du point d'indice | R43: ='GRILLE IADE G1'!B9 -> 1 | S43: ='GRILLE IADE G1'!C9 -> 24 | T43: ='GRILLE IADE G1'!D9 -> 433
R45: ='GRILLE IADE G1'!B11 -> 2 | S45: ='GRILLE IADE G1'!C11 -> 24 | T45: ='GRILLE IADE G1'!D11 -> 452
A46: est de | C46: =RECAPITULATIF!D13 -> 4.686 € | E46: au | F46: =RECAPITULATIF!D15 -> 2019-01-01
R47: ='GRILLE IADE G1'!B13 -> 3 | S47: ='GRILLE IADE G1'!C13 -> 24 | T47: ='GRILLE IADE G1'!D13 -> 473
A49: Soit un gain net mensuel de : | G49: =I40*C46*0.8315 -> 93.51 € | R49: ='GRILLE IADE G1'!B15 -> 4 | S49: ='GRILLE IADE G1'!C15 -> 24 | T49: ='GRILLE IADE G1'!D15 -> 498
R51: ='GRILLE IADE G1'!B17 -> 5 | S51: ='GRILLE IADE G1'!C17 -> 24 | T51: ='GRILLE IADE G1'!D17 -> 522
R53: ='GRILLE IADE G1'!B19 -> 6 | S53: ='GRILLE IADE G1'!C19 -> 42 | T53: ='GRILLE IADE G1'!D19 -> 546
A54: Vos représentant-e-s SUD Santé Sociaux | I54: =RECAPITULATIF!D21 -> 35 | K54: sont à votre disposition
A55: pour tous renseignements complémentaires au poste : | M55: =RECAPITULATIF!D17 -> 2886 | R55: ='GRILLE IADE G1'!B21 -> 7 | S55: ='GRILLE IADE G1'!C21 -> 48 | T55: ='GRILLE IADE G1'!D21 -> 573
R57: ='GRILLE IADE G1'!B23 -> 8 | S57: ='GRILLE IADE G1'!C23 -> 48 | T57: ='GRILLE IADE G1'!D23 -> 598
R59: ='GRILLE IADE G1'!B25 -> 9 | S59: ='GRILLE IADE G1'!C25 -> 48 | T59: ='GRILLE IADE G1'!D25 -> 621
A60: Recevez toutes nos salutations.
R61: ='GRILLE IADE G1'!B27 -> 10 | S61: ='GRILLE IADE G1'!C27 -> 0 | T61: ='GRILLE IADE G1'!D27 -> 650
A63: =RECAPITULATIF!B5 -> Madame FERET Isabelle, Madame Anne PICHON et Monsieur Patrick GAUTIER
A65: SUD Santé Sociaux | E65: =RECAPITULATIF!D21 -> 35
A70: Tél : | B70: =RECAPITULATIF!D19 -> 02 99 21 28 86
A71: Mél : | C71: =RECAPITULATIF!C23 -> sudsante@ch-stmalo.fr
A72: =RECAPITULATIF!B25 -> Site Départemental Sud | F72: =RECAPITULATIF!D25 -> http://www.sudsantesociaux35.org

Sheet IADE G1 Echelon 7
G2: Commission Administrative
G3: Paritaire | M3: =RECAPITULATIF!D7 -> Locale
M9: Mme, Mr :
M11: Grade :
M13: Service :
A16: Votre ou vos représentant-e-s du personnel
A18: =RECAPITULATIF!B5 -> Madame FERET Isabelle, Madame Anne PICHON et Monsieur Patrick GAUTIER
A20: SUD Santé Sociaux | E20: =RECAPITULATIF!D21 -> 35 | F20: du:
A22: =RECAPITULATIF!B2 -> Centre Hospitalier de Saint Malo
A24: siégeant auprès de la CAP | F24: =RECAPITULATIF!D7 -> Locale | J24: du : | K24: =RECAPITULATIF!D11 -> 2019-04-16 | N24: vous informe de votre :
F27: AVANCEMENT D’ECHELON
A33: Vous passez à l’échelon : | F33: ='GRILLE IADE G1'!B21 -> 7 | H33: Indice Majoré : | L33: ='GRILLE IADE G1'!D21 -> 573
A36: Date d'effet : | F36: / | H36: / | I36: =RECAPITULATIF!D9 -> 2019 | R36: ='GRILLE IADE G1'!B2 -> I.A.D.E. 1er Grade
A40: Ce qui représente un gain mensuel de : | I40: ='GRILLE IADE G1'!D21-'GRILLE IADE G1'!D19 -> 27 | K40: points d'indice.
R41: ='GRILLE IADE G1'!B7 -> Echelon | S41: ='GRILLE IADE G1'!C7 -> Durée (en mois) | T41: ='GRILLE IADE G1'!D7 -> Indice Majoré
A43: Pour information, la valeur brute du point d'indice | R43: ='GRILLE IADE G1'!B9 -> 1 | S43: ='GRILLE IADE G1'!C9 -> 24 | T43: ='GRILLE IADE G1'!D9 -> 433
R45: ='GRILLE IADE G1'!B11 -> 2 | S45: ='GRILLE IADE G1'!C11 -> 24 | T45: ='GRILLE IADE G1'!D11 -> 452
A46: est de | C46: =RECAPITULATIF!D13 -> 4.686 € | E46: au | F46: =RECAPITULATIF!D15 -> 2019-01-01
R47: ='GRILLE IADE G1'!B13 -> 3 | S47: ='GRILLE IADE G1'!C13 -> 24 | T47: ='GRILLE IADE G1'!D13 -> 473
A49: Soit un gain net mensuel de : | G49: =I40*C46*0.8315 -> 105.20 € | R49: ='GRILLE IADE G1'!B15 -> 4 | S49: ='GRILLE IADE G1'!C15 -> 24 | T49: ='GRILLE IADE G1'!D15 -> 498
R51: ='GRILLE IADE G1'!B17 -> 5 | S51: ='GRILLE IADE G1'!C17 -> 24 | T51: ='GRILLE IADE G1'!D17 -> 522
R53: ='GRILLE IADE G1'!B19 -> 6 | S53: ='GRILLE IADE G1'!C19 -> 42 | T53: ='GRILLE IADE G1'!D19 -> 546
A54: Vos représentant-e-s SUD Santé Sociaux | I54: =RECAPITULATIF!D21 -> 35 | K54: sont à votre disposition
A55: pour tous renseignements complémentaires au poste : | M55: =RECAPITULATIF!D17 -> 2886 | R55: ='GRILLE IADE G1'!B21 -> 7 | S55: ='GRILLE IADE G1'!C21 -> 48 | T55: ='GRILLE IADE G1'!D21 -> 573
R57: ='GRILLE IADE G1'!B23 -> 8 | S57: ='GRILLE IADE G1'!C23 -> 48 | T57: ='GRILLE IADE G1'!D23 -> 598
R59: ='GRILLE IADE G1'!B25 -> 9 | S59: ='GRILLE IADE G1'!C25 -> 48 | T59: ='GRILLE IADE G1'!D25 -> 621
A60: Recevez toutes nos salutations.
R61: ='GRILLE IADE G1'!B27 -> 10 | S61: ='GRILLE IADE G1'!C27 -> 0 | T61: ='GRILLE IADE G1'!D27 -> 650
A63: =RECAPITULATIF!B5 -> Madame FERET Isabelle, Madame Anne PICHON et Monsieur Patrick GAUTIER
A65: SUD Santé Sociaux | E65: =RECAPITULATIF!D21 -> 35
A70: Tél : | B70: =RECAPITULATIF!D19 -> 02 99 21 28 86
A71: Mél : | C71: =RECAPITULATIF!C23 -> sudsante@ch-stmalo.fr
A72: =RECAPITULATIF!B25 -> Site Départemental Sud | F72: =RECAPITULATIF!D25 -> http://www.sudsantesociaux35.org

Sheet IADE G1 Echelon 8
G2: Commission Administrative
G3: Paritaire | M3: =RECAPITULATIF!D7 -> Locale
M9: Mme, Mr :
M11: Grade :
M13: Service :
A16: Votre ou vos représentant-e-s du personnel
A18: =RECAPITULATIF!B5 -> Madame FERET Isabelle, Madame Anne PICHON et Monsieur Patrick GAUTIER
A20: SUD Santé Sociaux | E20: =RECAPITULATIF!D21 -> 35 | F20: du:
A22: =RECAPITULATIF!B2 -> Centre Hospitalier de Saint Malo
A24: siégeant auprès de la CAP | F24: =RECAPITULATIF!D7 -> Locale | J24: du : | K24: =RECAPITULATIF!D11 -> 2019-04-16 | N24: vous informe de votre :
F27: AVANCEMENT D’ECHELON
A33: Vous passez à l’échelon : | F33: ='GRILLE IADE G1'!B23 -> 8 | H33: Indice Majoré : | L33: ='GRILLE IADE G1'!D23 -> 598
A36: Date d'effet : | F36: / | H36: / | I36: =RECAPITULATIF!D9 -> 2019 | R36: ='GRILLE IADE G1'!B2 -> I.A.D.E. 1er Grade
A40: Ce qui représente un gain mensuel de : | I40: ='GRILLE IADE G1'!D23-'GRILLE IADE G1'!D21 -> 25 | K40: points d'indice.
R41: ='GRILLE IADE G1'!B7 -> Echelon | S41: ='GRILLE IADE G1'!C7 -> Durée (en mois) | T41: ='GRILLE IADE G1'!D7 -> Indice Majoré
A43: Pour information, la valeur brute du point d'indice | R43: ='GRILLE IADE G1'!B9 -> 1 | S43: ='GRILLE IADE G1'!C9 -> 24 | T43: ='GRILLE IADE G1'!D9 -> 433
R45: ='GRILLE IADE G1'!B11 -> 2 | S45: ='GRILLE IADE G1'!C11 -> 24 | T45: ='GRILLE IADE G1'!D11 -> 452
A46: est de | C46: =RECAPITULATIF!D13 -> 4.686 € | E46: au | F46: =RECAPITULATIF!D15 -> 2019-01-01
R47: ='GRILLE IADE G1'!B13 -> 3 | S47: ='GRILLE IADE G1'!C13 -> 24 | T47: ='GRILLE IADE G1'!D13 -> 473
A49: Soit un gain net mensuel de : | G49: =I40*C46*0.8315 -> 97.41 € | R49: ='GRILLE IADE G1'!B15 -> 4 | S49: ='GRILLE IADE G1'!C15 -> 24 | T49: ='GRILLE IADE G1'!D15 -> 498
R51: ='GRILLE IADE G1'!B17 -> 5 | S51: ='GRILLE IADE G1'!C17 -> 24 | T51: ='GRILLE IADE G1'!D17 -> 522
R53: ='GRILLE IADE G1'!B19 -> 6 | S53: ='GRILLE IADE G1'!C19 -> 42 | T53: ='GRILLE IADE G1'!D19 -> 546
A54: Vos représentant-e-s SUD Santé Sociaux | I54: =RECAPITULATIF!D21 -> 35 | K54: sont à votre disposition
A55: pour tous renseignements complémentaires au poste : | M55: =RECAPITULATIF!D17 -> 2886 | R55: ='GRILLE IADE G1'!B21 -> 7 | S55: ='GRILLE IADE G1'!C21 -> 48 | T55: ='GRILLE IADE G1'!D21 -> 573
R57: ='GRILLE IADE G1'!B23 -> 8 | S57: ='GRILLE IADE G1'!C23 -> 48 | T57: ='GRILLE IADE G1'!D23 -> 598
R59: ='GRILLE IADE G1'!B25 -> 9 | S59: ='GRILLE IADE G1'!C25 -> 48 | T59: ='GRILLE IADE G1'!D25 -> 621
A60: Recevez toutes nos salutations.
R61: ='GRILLE IADE G1'!B27 -> 10 | S61: ='GRILLE IADE G1'!C27 -> 0 | T61: ='GRILLE IADE G1'!D27 -> 650
A63: =RECAPITULATIF!B5 -> Madame FERET Isabelle, Madame Anne PICHON et Monsieur Patrick GAUTIER
A65: SUD Santé Sociaux | E65: =RECAPITULATIF!D21 -> 35
A70: Tél : | B70: =RECAPITULATIF!D19 -> 02 99 21 28 86
A71: Mél : | C71: =RECAPITULATIF!C23 -> sudsante@ch-stmalo.fr
A72: =RECAPITULATIF!B25 -> Site Départemental Sud | F72: =RECAPITULATIF!D25 -> http://www.sudsantesociaux35.org

Sheet IADE G1 Echelon 9
G2: Commission Administrative
G3: Paritaire | M3: =RECAPITULATIF!D7 -> Locale
M9: Mme, Mr :
M11: Grade :
M13: Service :
A16: Votre ou vos représentant-e-s du personnel
A18: =RECAPITULATIF!B5 -> Madame FERET Isabelle, Madame Anne PICHON et Monsieur Patrick GAUTIER
A20: SUD Santé Sociaux | E20: =RECAPITULATIF!D21 -> 35 | F20: du:
A22: =RECAPITULATIF!B2 -> Centre Hospitalier de Saint Malo
A24: siégeant auprès de la CAP | F24: =RECAPITULATIF!D7 -> Locale | J24: du : | K24: =RECAPITULATIF!D11 -> 2019-04-16 | N24: vous informe de votre :
F27: AVANCEMENT D’ECHELON
A33: Vous passez à l’échelon : | F33: ='GRILLE IADE G1'!B25 -> 9 | H33: Indice Majoré : | L33: ='GRILLE IADE G1'!D25 -> 621
A36: Date d'effet : | F36: / | H36: / | I36: =RECAPITULATIF!D9 -> 2019 | R36: ='GRILLE IADE G1'!B2 -> I.A.D.E. 1er Grade
A40: Ce qui représente un gain mensuel de : | I40: ='GRILLE IADE G1'!D25-'GRILLE IADE G1'!D23 -> 23 | K40: points d'indice.
R41: ='GRILLE IADE G1'!B7 -> Echelon | S41: ='GRILLE IADE G1'!C7 -> Durée (en mois) | T41: ='GRILLE IADE G1'!D7 -> Indice Majoré
A43: Pour information, la valeur brute du point d'indice | R43: ='GRILLE IADE G1'!B9 -> 1 | S43: ='GRILLE IADE G1'!C9 -> 24 | T43: ='GRILLE IADE G1'!D9 -> 433
R45: ='GRILLE IADE G1'!B11 -> 2 | S45: ='GRILLE IADE G1'!C11 -> 24 | T45: ='GRILLE IADE G1'!D11 -> 452
A46: est de | C46: =RECAPITULATIF!D13 -> 4.686 € | E46: au | F46: =RECAPITULATIF!D15 -> 2019-01-01
R47: ='GRILLE IADE G1'!B13 -> 3 | S47: ='GRILLE IADE G1'!C13 -> 24 | T47: ='GRILLE IADE G1'!D13 -> 473
A49: Soit un gain net mensuel de : | G49: =I40*C46*0.8315 -> 89.62 € | R49: ='GRILLE IADE G1'!B15 -> 4 | S49: ='GRILLE IADE G1'!C15 -> 24 | T49: ='GRILLE IADE G1'!D15 -> 498
R51: ='GRILLE IADE G1'!B17 -> 5 | S51: ='GRILLE IADE G1'!C17 -> 24 | T51: ='GRILLE IADE G1'!D17 -> 522
R53: ='GRILLE IADE G1'!B19 -> 6 | S53: ='GRILLE IADE G1'!C19 -> 42 | T53: ='GRILLE IADE G1'!D19 -> 546
A54: Vos représentant-e-s SUD Santé Sociaux | I54: =RECAPITULATIF!D21 -> 35 | K54: sont à votre disposition
A55: pour tous renseignements complémentaires au poste : | M55: =RECAPITULATIF!D17 -> 2886 | R55: ='GRILLE IADE G1'!B21 -> 7 | S55: ='GRILLE IADE G1'!C21 -> 48 | T55: ='GRILLE IADE G1'!D21 -> 573
R57: ='GRILLE IADE G1'!B23 -> 8 | S57: ='GRILLE IADE G1'!C23 -> 48 | T57: ='GRILLE IADE G1'!D23 -> 598
R59: ='GRILLE IADE G1'!B25 -> 9 | S59: ='GRILLE IADE G1'!C25 -> 48 | T59: ='GRILLE IADE G1'!D25 -> 621
A60: Recevez toutes nos salutations.
R61: ='GRILLE IADE G1'!B27 -> 10 | S61: ='GRILLE IADE G1'!C27 -> 0 | T61: ='GRILLE IADE G1'!D27 -> 650
A63: =RECAPITULATIF!B5 -> Madame FERET Isabelle, Madame Anne PICHON et Monsieur Patrick GAUTIER
A65: SUD Santé Sociaux | E65: =RECAPITULATIF!D21 -> 35
A70: Tél : | B70: =RECAPITULATIF!D19 -> 02 99 21 28 86
A71: Mél : | C71: =RECAPITULATIF!C23 -> sudsante@ch-stmalo.fr
A72: =RECAPITULATIF!B25 -> Site Départemental Sud | F72: =RECAPITULATIF!D25 -> http://www.sudsantesociaux35.org

Sheet IADE G1 Echelon 10
G2: Commission Administrative
G3: Paritaire | M3: =RECAPITULATIF!D7 -> Locale
M9: Mme, Mr :
M11: Grade :
M13: Service :
A16: Votre ou vos représentant-e-s du personnel
A18: =RECAPITULATIF!B5 -> Madame FERET Isabelle, Madame Anne PICHON et Monsieur Patrick GAUTIER
A20: SUD Santé Sociaux | E20: =RECAPITULATIF!D21 -> 35 | F20: du:
A22: =RECAPITULATIF!B2 -> Centre Hospitalier de Saint Malo
A24: siégeant auprès de la CAP | F24: =RECAPITULATIF!D7 -> Locale | J24: du : | K24: =RECAPITULATIF!D11 -> 2019-04-16 | N24: vous informe de votre :
F27: AVANCEMENT D’ECHELON
A33: Vous passez à l’échelon : | F33: ='GRILLE IADE G1'!B27 -> 10 | H33: Indice Majoré : | L33: ='GRILLE IADE G1'!D27 -> 650
A36: Date d'effet : | F36: / | H36: / | I36: =RECAPITULATIF!D9 -> 2019 | R36: ='GRILLE IADE G1'!B2 -> I.A.D.E. 1er Grade
A40: Ce qui représente un gain mensuel de : | I40: ='GRILLE IADE G1'!D27-'GRILLE IADE G1'!D25 -> 29 | K40: points d'indice.
R41: ='GRILLE IADE G1'!B7 -> Echelon | S41: ='GRILLE IADE G1'!C7 -> Durée (en mois) | T41: ='GRILLE IADE G1'!D7 -> Indice Majoré
A43: Pour information, la valeur brute du point d'indice | R43: ='GRILLE IADE G1'!B9 -> 1 | S43: ='GRILLE IADE G1'!C9 -> 24 | T43: ='GRILLE IADE G1'!D9 -> 433
R45: ='GRILLE IADE G1'!B11 -> 2 | S45: ='GRILLE IADE G1'!C11 -> 24 | T45: ='GRILLE IADE G1'!D11 -> 452
A46: est de | C46: =RECAPITULATIF!D13 -> 4.686 € | E46: au | F46: =RECAPITULATIF!D15 -> 2019-01-01
R47: ='GRILLE IADE G1'!B13 -> 3 | S47: ='GRILLE IADE G1'!C13 -> 24 | T47: ='GRILLE IADE G1'!D13 -> 473
A49: Soit un gain net mensuel de : | G49: =I40*C46*0.8315 -> 113.00 € | R49: ='GRILLE IADE G1'!B15 -> 4 | S49: ='GRILLE IADE G1'!C15 -> 24 | T49: ='GRILLE IADE G1'!D15 -> 498
R51: ='GRILLE IADE G1'!B17 -> 5 | S51: ='GRILLE IADE G1'!C17 -> 24 | T51: ='GRILLE IADE G1'!D17 -> 522
R53: ='GRILLE IADE G1'!B19 -> 6 | S53: ='GRILLE IADE G1'!C19 -> 42 | T53: ='GRILLE IADE G1'!D19 -> 546
A54: Vos représentant-e-s SUD Santé Sociaux | I54: =RECAPITULATIF!D21 -> 35 | K54: sont à votre disposition
A55: pour tous renseignements complémentaires au poste : | M55: =RECAPITULATIF!D17 -> 2886 | R55: ='GRILLE IADE G1'!B21 -> 7 | S55: ='GRILLE IADE G1'!C21 -> 48 | T55: ='GRILLE IADE G1'!D21 -> 573
R57: ='GRILLE IADE G1'!B23 -> 8 | S57: ='GRILLE IADE G1'!C23 -> 48 | T57: ='GRILLE IADE G1'!D23 -> 598
R59: ='GRILLE IADE G1'!B25 -> 9 | S59: ='GRILLE IADE G1'!C25 -> 48 | T59: ='GRILLE IADE G1'!D25 -> 621
A60: Recevez toutes nos salutations.
R61: ='GRILLE IADE G1'!B27 -> 10 | S61: ='GRILLE IADE G1'!C27 -> 0 | T61: ='GRILLE IADE G1'!D27 -> 650
A63: =RECAPITULATIF!B5 -> Madame FERET Isabelle, Madame Anne PICHON et Monsieur Patrick GAUTIER
A65: SUD Santé Sociaux | E65: =RECAPITULATIF!D21 -> 35
A70: Tél : | B70: =RECAPITULATIF!D19 -> 02 99 21 28 86
A71: Mél : | C71: =RECAPITULATIF!C23 -> sudsante@ch-stmalo.fr
A72: =RECAPITULATIF!B25 -> Site Départemental Sud | F72: =RECAPITULATIF!D25 -> http://www.sudsantesociaux35.org

Sheet GRILLE IADE G2
B2: I.A.D.E. 2ème Grade
B7: Echelon | C7: Durée (en mois) | D7: Indice Majoré
B9: 1 | C9: 24 | D9: 548
B11: 2 | C11: 36 | D11: 564
B13: 3 | C13: 48 | D13: 587
B15: 4 | C15: 48 | D15: 607
B17: 5 | C17: 48 | D17: 629
B19: 6 | D19: 664

Sheet IMP GRILLE IADE G2
B2: 1) Imprimez autant de feuilles que d'agents concernés.
B4: 2) Pliez en 3 au niveau du repère, deux petits traits noirs.
B6: 3) Inserrez ce courrier dans une enveloppe 110 X 220 à fenêtre.

Sheet IADE G2 Echelon 2
G2: Commission Administrative
G3: Paritaire | M3: =RECAPITULATIF!D7 -> Locale
M9: Mme, Mr :
M11: Grade :
M13: Service :
A16: Votre ou vos représentant-e-s du personnel
A18: =RECAPITULATIF!B5 -> Madame FERET Isabelle, Madame Anne PICHON et Monsieur Patrick GAUTIER
A20: SUD Santé Sociaux | E20: =RECAPITULATIF!D21 -> 35 | F20: du:
A22: =RECAPITULATIF!B2 -> Centre Hospitalier de Saint Malo
A24: siégeant auprès de la CAP | F24: =RECAPITULATIF!D7 -> Locale | J24: du : | K24: =RECAPITULATIF!D11 -> 2019-04-16 | N24: vous informe de votre :
F27: AVANCEMENT D’ECHELON
A33: Vous passez à l’échelon : | F33: ='GRILLE IADE G2'!B11 -> 2 | H33: Indice Majoré : | L33: ='GRILLE IADE G2'!D11 -> 564
A36: Date d'effet : | F36: / | H36: / | I36: =RECAPITULATIF!D9 -> 2019 | R36: ='GRILLE IADE G2'!B2 -> I.A.D.E. 2ème Grade
A40: Ce qui représente un gain mensuel de : | I40: ='GRILLE IADE G2'!D11-'GRILLE IADE G2'!D9 -> 16 | K40: points d'indice.
R41: ='GRILLE IADE G2'!B7 -> Echelon | S41: ='GRILLE IADE G2'!C7 -> Durée (en mois) | T41: ='GRILLE IADE G2'!D7 -> Indice Majoré
A43: Pour information, la valeur brute du point d'indice | R43: ='GRILLE IADE G2'!B9 -> 1 | S43: ='GRILLE IADE G2'!C9 -> 24 | T43: ='GRILLE IADE G2'!D9 -> 548
R45: ='GRILLE IADE G2'!B11 -> 2 | S45: ='GRILLE IADE G2'!C11 -> 36 | T45: ='GRILLE IADE G2'!D11 -> 564
A46: est de | C46: =RECAPITULATIF!D13 -> 4.686 € | E46: au | F46: =RECAPITULATIF!D15 -> 2019-01-01
R47: ='GRILLE IADE G2'!B13 -> 3 | S47: ='GRILLE IADE G2'!C13 -> 48 | T47: ='GRILLE IADE G2'!D13 -> 587
A49: Soit un gain net mensuel de : | G49: =I40*C46*0.8315 -> 62.34 € | R49: ='GRILLE IADE G2'!B15 -> 4 | S49: ='GRILLE IADE G2'!C15 -> 48 | T49: ='GRILLE IADE G2'!D15 -> 607
R51: ='GRILLE IADE G2'!B17 -> 5 | S51: ='GRILLE IADE G2'!C17 -> 48 | T51: ='GRILLE IADE G2'!D17 -> 629
R53: ='GRILLE IADE G2'!B19 -> 6 | S53: ='GRILLE IADE G2'!C19 -> 0 | T53: ='GRILLE IADE G2'!D19 -> 664
A54: Vos représentant-e-s SUD Santé Sociaux | I54: =RECAPITULATIF!D21 -> 35 | K54: sont à votre disposition
A55: pour tous renseignements complémentaires au poste : | M55: =RECAPITULATIF!D17 -> 2886
A60: Recevez toutes nos salutations.
A63: =RECAPITULATIF!B5 -> Madame FERET Isabelle, Madame Anne PICHON et Monsieur Patrick GAUTIER
A65: SUD Santé Sociaux | E65: =RECAPITULATIF!D21 -> 35
A70: Tél : | B70: =RECAPITULATIF!D19 -> 02 99 21 28 86
A71: Mél : | C71: =RECAPITULATIF!C23 -> sudsante@ch-stmalo.fr
A72: =RECAPITULATIF!B25 -> Site Départemental Sud | F72: =RECAPITULATIF!D25 -> http://www.sudsantesociaux35.org

Sheet IADE G2 Echelon 3
G2: Commission Administrative
G3: Paritaire | M3: =RECAPITULATIF!D7 -> Locale
M9: Mme, Mr :
M11: Grade :
M13: Service :
A16: Votre ou vos représentant-e-s du personnel
A18: =RECAPITULATIF!B5 -> Madame FERET Isabelle, Madame Anne PICHON et Monsieur Patrick GAUTIER
A20: SUD Santé Sociaux | E20: =RECAPITULATIF!D21 -> 35 | F20: du:
A22: =RECAPITULATIF!B2 -> Centre Hospitalier de Saint Malo
A24: siégeant auprès de la CAP | F24: =RECAPITULATIF!D7 -> Locale | J24: du : | K24: =RECAPITULATIF!D11 -> 2019-04-16 | N24: vous informe de votre :
F27: AVANCEMENT D’ECHELON
A33: Vous passez à l’échelon : | F33: ='GRILLE IADE G2'!B13 -> 3 | H33: Indice Majoré : | L33: ='GRILLE IADE G2'!D13 -> 587
A36: Date d'effet : | F36: / | H36: / | I36: =RECAPITULATIF!D9 -> 2019 | R36: ='GRILLE IADE G2'!B2 -> I.A.D.E. 2ème Grade
A40: Ce qui représente un gain mensuel de : | I40: ='GRILLE IADE G2'!D13-'GRILLE IADE G2'!D11 -> 23 | K40: points d'indice.
R41: ='GRILLE IADE G2'!B7 -> Echelon | S41: ='GRILLE IADE G2'!C7 -> Durée (en mois) | T41: ='GRILLE IADE G2'!D7 -> Indice Majoré
A43: Pour information, la valeur brute du point d'indice | R43: ='GRILLE IADE G2'!B9 -> 1 | S43: ='GRILLE IADE G2'!C9 -> 24 | T43: ='GRILLE IADE G2'!D9 -> 548
R45: ='GRILLE IADE G2'!B11 -> 2 | S45: ='GRILLE IADE G2'!C11 -> 36 | T45: ='GRILLE IADE G2'!D11 -> 564
A46: est de | C46: =RECAPITULATIF!D13 -> 4.686 € | E46: au | F46: =RECAPITULATIF!D15 -> 2019-01-01
R47: ='GRILLE IADE G2'!B13 -> 3 | S47: ='GRILLE IADE G2'!C13 -> 48 | T47: ='GRILLE IADE G2'!D13 -> 587
A49: Soit un gain net mensuel de : | G49: =I40*C46*0.8315 -> 89.62 € | R49: ='GRILLE IADE G2'!B15 -> 4 | S49: ='GRILLE IADE G2'!C15 -> 48 | T49: ='GRILLE IADE G2'!D15 -> 607
R51: ='GRILLE IADE G2'!B17 -> 5 | S51: ='GRILLE IADE G2'!C17 -> 48 | T51: ='GRILLE IADE G2'!D17 -> 629
R53: ='GRILLE IADE G2'!B19 -> 6 | S53: ='GRILLE IADE G2'!C19 -> 0 | T53: ='GRILLE IADE G2'!D19 -> 664
A54: Vos représentant-e-s SUD Santé Sociaux | I54: =RECAPITULATIF!D21 -> 35 | K54: sont à votre disposition
A55: pour tous renseignements complémentaires au poste : | M55: =RECAPITULATIF!D17 -> 2886
A60: Recevez toutes nos salutations.
A63: =RECAPITULATIF!B5 -> Madame FERET Isabelle, Madame Anne PICHON et Monsieur Patrick GAUTIER
A65: SUD Santé Sociaux | E65: =RECAPITULATIF!D21 -> 35
A70: Tél : | B70: =RECAPITULATIF!D19 -> 02 99 21 28 86
A71: Mél : | C71: =RECAPITULATIF!C23 -> sudsante@ch-stmalo.fr
A72: =RECAPITULATIF!B25 -> Site Départemental Sud | F72: =RECAPITULATIF!D25 -> http://www.sudsantesociaux35.org

Sheet IADE G2 Echelon 4
G2: Commission Administrative
G3: Paritaire | M3: =RECAPITULATIF!D7 -> Locale
M9: Mme, Mr :
M11: Grade :
M13: Service :
A16: Votre ou vos représentant-e-s du personnel
A18: =RECAPITULATIF!B5 -> Madame FERET Isabelle, Madame Anne PICHON et Monsieur Patrick GAUTIER
A20: SUD Santé Sociaux | E20: =RECAPITULATIF!D21 -> 35 | F20: du:
A22: =RECAPITULATIF!B2 -> Centre Hospitalier de Saint Malo
A24: siégeant auprès de la CAP | F24: =RECAPITULATIF!D7 -> Locale | J24: du : | K24: =RECAPITULATIF!D11 -> 2019-04-16 | N24: vous informe de votre :
F27: AVANCEMENT D’ECHELON
A33: Vous passez à l’échelon : | F33: ='GRILLE IADE G2'!B15 -> 4 | H33: Indice Majoré : | L33: ='GRILLE IADE G2'!D15 -> 607
A36: Date d'effet : | F36: / | H36: / | I36: =RECAPITULATIF!D9 -> 2019 | R36: ='GRILLE IADE G2'!B2 -> I.A.D.E. 2ème Grade
A40: Ce qui représente un gain mensuel de : | I40: ='GRILLE IADE G2'!D15-'GRILLE IADE G2'!D13 -> 20 | K40: points d'indice.
R41: ='GRILLE IADE G2'!B7 -> Echelon | S41: ='GRILLE IADE G2'!C7 -> Durée (en mois) | T41: ='GRILLE IADE G2'!D7 -> Indice Majoré
A43: Pour information, la valeur brute du point d'indice | R43: ='GRILLE IADE G2'!B9 -> 1 | S43: ='GRILLE IADE G2'!C9 -> 24 | T43: ='GRILLE IADE G2'!D9 -> 548
R45: ='GRILLE IADE G2'!B11 -> 2 | S45: ='GRILLE IADE G2'!C11 -> 36 | T45: ='GRILLE IADE G2'!D11 -> 564
A46: est de | C46: =RECAPITULATIF!D13 -> 4.686 € | E46: au | F46: =RECAPITULATIF!D15 -> 2019-01-01
R47: ='GRILLE IADE G2'!B13 -> 3 | S47: ='GRILLE IADE G2'!C13 -> 48 | T47: ='GRILLE IADE G2'!D13 -> 587
A49: Soit un gain net mensuel de : | G49: =I40*C46*0.8315 -> 77.93 € | R49: ='GRILLE IADE G2'!B15 -> 4 | S49: ='GRILLE IADE G2'!C15 -> 48 | T49: ='GRILLE IADE G2'!D15 -> 607
R51: ='GRILLE IADE G2'!B17 -> 5 | S51: ='GRILLE IADE G2'!C17 -> 48 | T51: ='GRILLE IADE G2'!D17 -> 629
R53: ='GRILLE IADE G2'!B19 -> 6 | S53: ='GRILLE IADE G2'!C19 -> 0 | T53: ='GRILLE IADE G2'!D19 -> 664
A54: Vos représentant-e-s SUD Santé Sociaux | I54: =RECAPITULATIF!D21 -> 35 | K54: sont à votre disposition
A55: pour tous renseignements complémentaires au poste : | M55: =RECAPITULATIF!D17 -> 2886
A60: Recevez toutes nos salutations.
A63: =RECAPITULATIF!B5 -> Madame FERET Isabelle, Madame Anne PICHON et Monsieur Patrick GAUTIER
A65: SUD Santé Sociaux | E65: =RECAPITULATIF!D21 -> 35
A70: Tél : | B70: =RECAPITULATIF!D19 -> 02 99 21 28 86
A71: Mél : | C71: =RECAPITULATIF!C23 -> sudsante@ch-stmalo.fr
A72: =RECAPITULATIF!B25 -> Site Départemental Sud | F72: =RECAPITULATIF!D25 -> http://www.sudsantesociaux35.org

Sheet IADE G2 Echelon 5
G2: Commission Administrative
G3: Paritaire | M3: =RECAPITULATIF!D7 -> Locale
M9: Mme, Mr :
M11: Grade :
M13: Service :
A16: Votre ou vos représentant-e-s du personnel
A18: =RECAPITULATIF!B5 -> Madame FERET Isabelle, Madame Anne PICHON et Monsieur Patrick GAUTIER
A20: SUD Santé Sociaux | E20: =RECAPITULATIF!D21 -> 35 | F20: du:
A22: =RECAPITULATIF!B2 -> Centre Hospitalier de Saint Malo
A24: siégeant auprès de la CAP | F24: =RECAPITULATIF!D7 -> Locale | J24: du : | K24: =RECAPITULATIF!D11 -> 2019-04-16 | N24: vous informe de votre :
F27: AVANCEMENT D’ECHELON
A33: Vous passez à l’échelon : | F33: ='GRILLE IADE G2'!B17 -> 5 | H33: Indice Majoré : | L33: ='GRILLE IADE G2'!D17 -> 629
A36: Date d'effet : | F36: / | H36: / | I36: =RECAPITULATIF!D9 -> 2019 | R36: ='GRILLE IADE G2'!B2 -> I.A.D.E. 2ème Grade
A40: Ce qui représente un gain mensuel de : | I40: ='GRILLE IADE G2'!D17-'GRILLE IADE G2'!D15 -> 22 | K40: points d'indice.
R41: ='GRILLE IADE G2'!B7 -> Echelon | S41: ='GRILLE IADE G2'!C7 -> Durée (en mois) | T41: ='GRILLE IADE G2'!D7 -> Indice Majoré
A43: Pour information, la valeur brute du point d'indice | R43: ='GRILLE IADE G2'!B9 -> 1 | S43: ='GRILLE IADE G2'!C9 -> 24 | T43: ='GRILLE IADE G2'!D9 -> 548
R45: ='GRILLE IADE G2'!B11 -> 2 | S45: ='GRILLE IADE G2'!C11 -> 36 | T45: ='GRILLE IADE G2'!D11 -> 564
A46: est de | C46: =RECAPITULATIF!D13 -> 4.686 € | E46: au | F46: =RECAPITULATIF!D15 -> 2019-01-01
R47: ='GRILLE IADE G2'!B13 -> 3 | S47: ='GRILLE IADE G2'!C13 -> 48 | T47: ='GRILLE IADE G2'!D13 -> 587
A49: Soit un gain net mensuel de : | G49: =I40*C46*0.8315 -> 85.72 € | R49: ='GRILLE IADE G2'!B15 -> 4 | S49: ='GRILLE IADE G2'!C15 -> 48 | T49: ='GRILLE IADE G2'!D15 -> 607
R51: ='GRILLE IADE G2'!B17 -> 5 | S51: ='GRILLE IADE G2'!C17 -> 48 | T51: ='GRILLE IADE G2'!D17 -> 629
R53: ='GRILLE IADE G2'!B19 -> 6 | S53: ='GRILLE IADE G2'!C19 -> 0 | T53: ='GRILLE IADE G2'!D19 -> 664
A54: Vos représentant-e-s SUD Santé Sociaux | I54: =RECAPITULATIF!D21 -> 35 | K54: sont à votre disposition
A55: pour tous renseignements complémentaires au poste : | M55: =RECAPITULATIF!D17 -> 2886
A60: Recevez toutes nos salutations.
A63: =RECAPITULATIF!B5 -> Madame FERET Isabelle, Madame Anne PICHON et Monsieur Patrick GAUTIER
A65: SUD Santé Sociaux | E65: =RECAPITULATIF!D21 -> 35
A70: Tél : | B70: =RECAPITULATIF!D19 -> 02 99 21 28 86
A71: Mél : | C71: =RECAPITULATIF!C23 -> sudsante@ch-stmalo.fr
A72: =RECAPITULATIF!B25 -> Site Départemental Sud | F72: =RECAPITULATIF!D25 -> http://www.sudsantesociaux35.org

Sheet IADE G2 Echelon 6
G2: Commission Administrative
G3: Paritaire | M3: =RECAPITULATIF!D7 -> Locale
M9: Mme, Mr :
M11: Grade :
M13: Service :
A16: Votre ou vos représentant-e-s du personnel
A18: =RECAPITULATIF!B5 -> Madame FERET Isabelle, Madame Anne PICHON et Monsieur Patrick GAUTIER
A20: SUD Santé Sociaux | E20: =RECAPITULATIF!D21 -> 35 | F20: du:
A22: =RECAPITULATIF!B2 -> Centre Hospitalier de Saint Malo
A24: siégeant auprès de la CAP | F24: =RECAPITULATIF!D7 -> Locale | J24: du : | K24: =RECAPITULATIF!D11 -> 2019-04-16 | N24: vous informe de votre :
F27: AVANCEMENT D’ECHELON
A33: Vous passez à l’échelon : | F33: ='GRILLE IADE G2'!B19 -> 6 | H33: Indice Majoré : | L33: ='GRILLE IADE G2'!D19 -> 664
A36: Date d'effet : | F36: / | H36: / | I36: =RECAPITULATIF!D9 -> 2019 | R36: ='GRILLE IADE G2'!B2 -> I.A.D.E. 2ème Grade
A40: Ce qui représente un gain mensuel de : | I40: ='GRILLE IADE G2'!D19-'GRILLE IADE G2'!D17 -> 35 | K40: points d'indice.
R41: ='GRILLE IADE G2'!B7 -> Echelon | S41: ='GRILLE IADE G2'!C7 -> Durée (en mois) | T41: ='GRILLE IADE G2'!D7 -> Indice Majoré
A43: Pour information, la valeur brute du point d'indice | R43: ='GRILLE IADE G2'!B9 -> 1 | S43: ='GRILLE IADE G2'!C9 -> 24 | T43: ='GRILLE IADE G2'!D9 -> 548
R45: ='GRILLE IADE G2'!B11 -> 2 | S45: ='GRILLE IADE G2'!C11 -> 36 | T45: ='GRILLE IADE G2'!D11 -> 564
A46: est de | C46: =RECAPITULATIF!D13 -> 4.686 € | E46: au | F46: =RECAPITULATIF!D15 -> 2019-01-01
R47: ='GRILLE IADE G2'!B13 -> 3 | S47: ='GRILLE IADE G2'!C13 -> 48 | T47: ='GRILLE IADE G2'!D13 -> 587
A49: Soit un gain net mensuel de : | G49: =I40*C46*0.8315 -> 136.37 € | R49: ='GRILLE IADE G2'!B15 -> 4 | S49: ='GRILLE IADE G2'!C15 -> 48 | T49: ='GRILLE IADE G2'!D15 -> 607
R51: ='GRILLE IADE G2'!B17 -> 5 | S51: ='GRILLE IADE G2'!C17 -> 48 | T51: ='GRILLE IADE G2'!D17 -> 629
R53: ='GRILLE IADE G2'!B19 -> 6 | S53: ='GRILLE IADE G2'!C19 -> 0 | T53: ='GRILLE IADE G2'!D19 -> 664
A54: Vos représentant-e-s SUD Santé Sociaux | I54: =RECAPITULATIF!D21 -> 35 | K54: sont à votre disposition
A55: pour tous renseignements complémentaires au poste : | M55: =RECAPITULATIF!D17 -> 2886
A60: Recevez toutes nos salutations.
A63: =RECAPITULATIF!B5 -> Madame FERET Isabelle, Madame Anne PICHON et Monsieur Patrick GAUTIER
A65: SUD Santé Sociaux | E65: =RECAPITULATIF!D21 -> 35
A70: Tél : | B70: =RECAPITULATIF!D19 -> 02 99 21 28 86
A71: Mél : | C71: =RECAPITULATIF!C23 -> sudsante@ch-stmalo.fr
A72: =RECAPITULATIF!B25 -> Site Départemental Sud | F72: =RECAPITULATIF!D25 -> http://www.sudsantesociaux35.org

Sheet GRILLE IBODE CN EXT
B2: Infirmier de Bloc Opératoire Classe Normale Puéricultrice Classe Normale Extinction
B7: Echelon | C7: Durée (en mois) | D7: Indice Majoré
B9: 1 | C9: 12 | D9: 353
B11: 2 | C11: 24 | D11: 379
B13: 3 | C13: 36 | D13: 398
B15: 4 | C15: 36 | D15: 423
B17: 5 | C17: 48 | D17: 442
B19: 6 | C19: 48 | D19: 469
B21: 7 | C21: 48 | D21: 499
B23: 8 | D23: 525

Sheet IMP GRILLE IBODE CN EXT
B2: 1) Imprimez autant de feuilles que d'agents concernés.
B4: 2) Pliez en 3 au niveau du repère, deux petits traits noirs.
B6: 3) Inserrez ce courrier dans une enveloppe 110 X 220 à fenêtre.

Sheet IBODE CN EXT Echelon 2
G2: Commission Administrative
G3: Paritaire | M3: =RECAPITULATIF!D7 -> Locale
M9: Mme, Mr :
M11: Grade :
M13: Service :
A16: Votre ou vos représentant-e-s du personnel
A18: =RECAPITULATIF!B5 -> Madame FERET Isabelle, Madame Anne PICHON et Monsieur Patrick GAUTIER
A20: SUD Santé Sociaux | E20: =RECAPITULATIF!D21 -> 35 | F20: du:
A22: =RECAPITULATIF!B2 -> Centre Hospitalier de Saint Malo
A24: siégeant auprès de la CAP | F24: =RECAPITULATIF!D7 -> Locale | J24: du : | K24: =RECAPITULATIF!D11 -> 2019-04-16 | N24: vous informe de votre :
F27: AVANCEMENT D’ECHELON
A33: Vous passez à l’échelon : | F33: ='GRILLE IBODE CN EXT'!B11 -> 2 | H33: Indice Majoré : | L33: ='GRILLE IBODE CN EXT'!D11 -> 379
A36: Date d'effet : | F36: / | H36: / | I36: =RECAPITULATIF!D9 -> 2019 | R36: ='GRILLE IBODE CN EXT'!B2 -> Infirmier de Bloc Opératoire Classe Normale Puéricultrice Classe Normale Extinction
A40: Ce qui représente un gain mensuel de : | I40: ='GRILLE IBODE CN EXT'!D11-'GRILLE IBODE CN EXT'!D9 -> 26 | K40: points d'indice.
R41: ='GRILLE IBODE CN EXT'!B7 -> Echelon | S41: ='GRILLE IBODE CN EXT'!C7 -> Durée (en mois) | T41: ='GRILLE IBODE CN EXT'!D7 -> Indice Majoré
A43: Pour information, la valeur brute du point d'indice | R43: ='GRILLE IBODE CN EXT'!B9 -> 1 | S43: ='GRILLE IBODE CN EXT'!C9 -> 12 | T43: ='GRILLE IBODE CN EXT'!D9 -> 353
R45: ='GRILLE IBODE CN EXT'!B11 -> 2 | S45: ='GRILLE IBODE CN EXT'!C11 -> 24 | T45: ='GRILLE IBODE CN EXT'!D11 -> 379
A46: est de | C46: =RECAPITULATIF!D13 -> 4.686 € | E46: au | F46: =RECAPITULATIF!D15 -> 2019-01-01
R47: ='GRILLE IBODE CN EXT'!B13 -> 3 | S47: ='GRILLE IBODE CN EXT'!C13 -> 36 | T47: ='GRILLE IBODE CN EXT'!D13 -> 398
A49: Soit un gain net mensuel de : | G49: =I40*C46*0.8315 -> 101.31 € | R49: ='GRILLE IBODE CN EXT'!B15 -> 4 | S49: ='GRILLE IBODE CN EXT'!C15 -> 36 | T49: ='GRILLE IBODE CN EXT'!D15 -> 423
R51: ='GRILLE IBODE CN EXT'!B17 -> 5 | S51: ='GRILLE IBODE CN EXT'!C17 -> 48 | T51: ='GRILLE IBODE CN EXT'!D17 -> 442
R53: ='GRILLE IBODE CN EXT'!B19 -> 6 | S53: ='GRILLE IBODE CN EXT'!C19 -> 48 | T53: ='GRILLE IBODE CN EXT'!D19 -> 469
A54: Vos représentant-e-s SUD Santé Sociaux | I54: =RECAPITULATIF!D21 -> 35 | K54: sont à votre disposition
A55: pour tous renseignements complémentaires au poste : | M55: =RECAPITULATIF!D17 -> 2886 | R55: ='GRILLE IBODE CN EXT'!B21 -> 7 | S55: ='GRILLE IBODE CN EXT'!C21 -> 48 | T55: ='GRILLE IBODE CN EXT'!D21 -> 499
R57: ='GRILLE IBODE CN EXT'!B23 -> 8 | S57: ='GRILLE IBODE CN EXT'!C23 -> 0 | T57: ='GRILLE IBODE CN EXT'!D23 -> 525
A60: Recevez toutes nos salutations.
A63: =RECAPITULATIF!B5 -> Madame FERET Isabelle, Madame Anne PICHON et Monsieur Patrick GAUTIER
A65: SUD Santé Sociaux | E65: =RECAPITULATIF!D21 -> 35
A70: Tél : | B70: =RECAPITULATIF!D19 -> 02 99 21 28 86
A71: Mél : | C71: =RECAPITULATIF!C23 -> sudsante@ch-stmalo.fr
A72: =RECAPITULATIF!B25 -> Site Départemental Sud | F72: =RECAPITULATIF!D25 -> http://www.sudsantesociaux35.org

Sheet IBODE CN EXT Echelon 3
G2: Commission Administrative
G3: Paritaire | M3: =RECAPITULATIF!D7 -> Locale
M9: Mme, Mr :
M11: Grade :
M13: Service :
A16: Votre ou vos représentant-e-s du personnel
A18: =RECAPITULATIF!B5 -> Madame FERET Isabelle, Madame Anne PICHON et Monsieur Patrick GAUTIER
A20: SUD Santé Sociaux | E20: =RECAPITULATIF!D21 -> 35 | F20: du:
A22: =RECAPITULATIF!B2 -> Centre Hospitalier de Saint Malo
A24: siégeant auprès de la CAP | F24: =RECAPITULATIF!D7 -> Locale | J24: du : | K24: =RECAPITULATIF!D11 -> 2019-04-16 | N24: vous informe de votre :
F27: AVANCEMENT D’ECHELON
A33: Vous passez à l’échelon : | F33: ='GRILLE IBODE CN EXT'!B13 -> 3 | H33: Indice Majoré : | L33: ='GRILLE IBODE CN EXT'!D13 -> 398
A36: Date d'effet : | F36: / | H36: / | I36: =RECAPITULATIF!D9 -> 2019 | R36: ='GRILLE IBODE CN EXT'!B2 -> Infirmier de Bloc Opératoire Classe Normale Puéricultrice Classe Normale Extinction
A40: Ce qui représente un gain mensuel de : | I40: ='GRILLE IBODE CN EXT'!D13-'GRILLE IBODE CN EXT'!D11 -> 19 | K40: points d'indice.
R41: ='GRILLE IBODE CN EXT'!B7 -> Echelon | S41: ='GRILLE IBODE CN EXT'!C7 -> Durée (en mois) | T41: ='GRILLE IBODE CN EXT'!D7 -> Indice Majoré
A43: Pour information, la valeur brute du point d'indice | R43: ='GRILLE IBODE CN EXT'!B9 -> 1 | S43: ='GRILLE IBODE CN EXT'!C9 -> 12 | T43: ='GRILLE IBODE CN EXT'!D9 -> 353
R45: ='GRILLE IBODE CN EXT'!B11 -> 2 | S45: ='GRILLE IBODE CN EXT'!C11 -> 24 | T45: ='GRILLE IBODE CN EXT'!D11 -> 379
A46: est de | C46: =RECAPITULATIF!D13 -> 4.686 € | E46: au | F46: =RECAPITULATIF!D15 -> 2019-01-01
R47: ='GRILLE IBODE CN EXT'!B13 -> 3 | S47: ='GRILLE IBODE CN EXT'!C13 -> 36 | T47: ='GRILLE IBODE CN EXT'!D13 -> 398
A49: Soit un gain net mensuel de : | G49: =I40*C46*0.8315 -> 74.03 € | R49: ='GRILLE IBODE CN EXT'!B15 -> 4 | S49: ='GRILLE IBODE CN EXT'!C15 -> 36 | T49: ='GRILLE IBODE CN EXT'!D15 -> 423
R51: ='GRILLE IBODE CN EXT'!B17 -> 5 | S51: ='GRILLE IBODE CN EXT'!C17 -> 48 | T51: ='GRILLE IBODE CN EXT'!D17 -> 442
R53: ='GRILLE IBODE CN EXT'!B19 -> 6 | S53: ='GRILLE IBODE CN EXT'!C19 -> 48 | T53: ='GRILLE IBODE CN EXT'!D19 -> 469
A54: Vos représentant-e-s SUD Santé Sociaux | I54: =RECAPITULATIF!D21 -> 35 | K54: sont à votre disposition
A55: pour tous renseignements complémentaires au poste : | M55: =RECAPITULATIF!D17 -> 2886 | R55: ='GRILLE IBODE CN EXT'!B21 -> 7 | S55: ='GRILLE IBODE CN EXT'!C21 -> 48 | T55: ='GRILLE IBODE CN EXT'!D21 -> 499
R57: ='GRILLE IBODE CN EXT'!B23 -> 8 | S57: ='GRILLE IBODE CN EXT'!C23 -> 0 | T57: ='GRILLE IBODE CN EXT'!D23 -> 525
A60: Recevez toutes nos salutations.
A63: =RECAPITULATIF!B5 -> Madame FERET Isabelle, Madame Anne PICHON et Monsieur Patrick GAUTIER
A65: SUD Santé Sociaux | E65: =RECAPITULATIF!D21 -> 35
A70: Tél : | B70: =RECAPITULATIF!D19 -> 02 99 21 28 86
A71: Mél : | C71: =RECAPITULATIF!C23 -> sudsante@ch-stmalo.fr
A72: =RECAPITULATIF!B25 -> Site Départemental Sud | F72: =RECAPITULATIF!D25 -> http://www.sudsantesociaux35.org

Sheet IBODE CN EXT Echelon 4
G2: Commission Administrative
G3: Paritaire | M3: =RECAPITULATIF!D7 -> Locale
M9: Mme, Mr :
M11: Grade :
M13: Service :
A16: Votre ou vos représentant-e-s du personnel
A18: =RECAPITULATIF!B5 -> Madame FERET Isabelle, Madame Anne PICHON et Monsieur Patrick GAUTIER
A20: SUD Santé Sociaux | E20: =RECAPITULATIF!D21 -> 35 | F20: du:
A22: =RECAPITULATIF!B2 -> Centre Hospitalier de Saint Malo
A24: siégeant auprès de la CAP | F24: =RECAPITULATIF!D7 -> Locale | J24: du : | K24: =RECAPITULATIF!D11 -> 2019-04-16 | N24: vous informe de votre :
F27: AVANCEMENT D’ECHELON
A33: Vous passez à l’échelon : | F33: ='GRILLE IBODE CN EXT'!B15 -> 4 | H33: Indice Majoré : | L33: ='GRILLE IBODE CN EXT'!D15 -> 423
A36: Date d'effet : | F36: / | H36: / | I36: =RECAPITULATIF!D9 -> 2019 | R36: ='GRILLE IBODE CN EXT'!B2 -> Infirmier de Bloc Opératoire Classe Normale Puéricultrice Classe Normale Extinction
A40: Ce qui représente un gain mensuel de : | I40: ='GRILLE IBODE CN EXT'!D15-'GRILLE IBODE CN EXT'!D13 -> 25 | K40: points d'indice.
R41: ='GRILLE IBODE CN EXT'!B7 -> Echelon | S41: ='GRILLE IBODE CN EXT'!C7 -> Durée (en mois) | T41: ='GRILLE IBODE CN EXT'!D7 -> Indice Majoré
A43: Pour information, la valeur brute du point d'indice | R43: ='GRILLE IBODE CN EXT'!B9 -> 1 | S43: ='GRILLE IBODE CN EXT'!C9 -> 12 | T43: ='GRILLE IBODE CN EXT'!D9 -> 353
R45: ='GRILLE IBODE CN EXT'!B11 -> 2 | S45: ='GRILLE IBODE CN EXT'!C11 -> 24 | T45: ='GRILLE IBODE CN EXT'!D11 -> 379
A46: est de | C46: =RECAPITULATIF!D13 -> 4.686 € | E46: au | F46: =RECAPITULATIF!D15 -> 2019-01-01
R47: ='GRILLE IBODE CN EXT'!B13 -> 3 | S47: ='GRILLE IBODE CN EXT'!C13 -> 36 | T47: ='GRILLE IBODE CN EXT'!D13 -> 398
A49: Soit un gain net mensuel de : | G49: =I40*C46*0.8315 -> 97.41 € | R49: ='GRILLE IBODE CN EXT'!B15 -> 4 | S49: ='GRILLE IBODE CN EXT'!C15 -> 36 | T49: ='GRILLE IBODE CN EXT'!D15 -> 423
R51: ='GRILLE IBODE CN EXT'!B17 -> 5 | S51: ='GRILLE IBODE CN EXT'!C17 -> 48 | T51: ='GRILLE IBODE CN EXT'!D17 -> 442
R53: ='GRILLE IBODE CN EXT'!B19 -> 6 | S53: ='GRILLE IBODE CN EXT'!C19 -> 48 | T53: ='GRILLE IBODE CN EXT'!D19 -> 469
A54: Vos représentant-e-s SUD Santé Sociaux | I54: =RECAPITULATIF!D21 -> 35 | K54: sont à votre disposition
A55: pour tous renseignements complémentaires au poste : | M55: =RECAPITULATIF!D17 -> 2886 | R55: ='GRILLE IBODE CN EXT'!B21 -> 7 | S55: ='GRILLE IBODE CN EXT'!C21 -> 48 | T55: ='GRILLE IBODE CN EXT'!D21 -> 499
R57: ='GRILLE IBODE CN EXT'!B23 -> 8 | S57: ='GRILLE IBODE CN EXT'!C23 -> 0 | T57: ='GRILLE IBODE CN EXT'!D23 -> 525
A60: Recevez toutes nos salutations.
A63: =RECAPITULATIF!B5 -> Madame FERET Isabelle, Madame Anne PICHON et Monsieur Patrick GAUTIER
A65: SUD Santé Sociaux | E65: =RECAPITULATIF!D21 -> 35
A70: Tél : | B70: =RECAPITULATIF!D19 -> 02 99 21 28 86
A71: Mél : | C71: =RECAPITULATIF!C23 -> sudsante@ch-stmalo.fr
A72: =RECAPITULATIF!B25 -> Site Départemental Sud | F72: =RECAPITULATIF!D25 -> http://www.sudsantesociaux35.org

Sheet IBODE CN EXT Echelon 5
G2: Commission Administrative
G3: Paritaire | M3: =RECAPITULATIF!D7 -> Locale
M9: Mme, Mr :
M11: Grade :
M13: Service :
A16: Votre ou vos représentant-e-s du personnel
A18: =RECAPITULATIF!B5 -> Madame FERET Isabelle, Madame Anne PICHON et Monsieur Patrick GAUTIER
A20: SUD Santé Sociaux | E20: =RECAPITULATIF!D21 -> 35 | F20: du:
A22: =RECAPITULATIF!B2 -> Centre Hospitalier de Saint Malo
A24: siégeant auprès de la CAP | F24: =RECAPITULATIF!D7 -> Locale | J24: du : | K24: =RECAPITULATIF!D11 -> 2019-04-16 | N24: vous informe de votre :
F27: AVANCEMENT D’ECHELON
A33: Vous passez à l’échelon : | F33: ='GRILLE IBODE CN EXT'!B17 -> 5 | H33: Indice Majoré : | L33: ='GRILLE IBODE CN EXT'!D17 -> 442
A36: Date d'effet : | F36: / | H36: / | I36: =RECAPITULATIF!D9 -> 2019 | R36: ='GRILLE IBODE CN EXT'!B2 -> Infirmier de Bloc Opératoire Classe Normale Puéricultrice Classe Normale Extinction
A40: Ce qui représente un gain mensuel de : | I40: ='GRILLE IBODE CN EXT'!D17-'GRILLE IBODE CN EXT'!D15 -> 19 | K40: points d'indice.
R41: ='GRILLE IBODE CN EXT'!B7 -> Echelon | S41: ='GRILLE IBODE CN EXT'!C7 -> Durée (en mois) | T41: ='GRILLE IBODE CN EXT'!D7 -> Indice Majoré
A43: Pour information, la valeur brute du point d'indice | R43: ='GRILLE IBODE CN EXT'!B9 -> 1 | S43: ='GRILLE IBODE CN EXT'!C9 -> 12 | T43: ='GRILLE IBODE CN EXT'!D9 -> 353
R45: ='GRILLE IBODE CN EXT'!B11 -> 2 | S45: ='GRILLE IBODE CN EXT'!C11 -> 24 | T45: ='GRILLE IBODE CN EXT'!D11 -> 379
A46: est de | C46: =RECAPITULATIF!D13 -> 4.686 € | E46: au | F46: =RECAPITULATIF!D15 -> 2019-01-01
R47: ='GRILLE IBODE CN EXT'!B13 -> 3 | S47: ='GRILLE IBODE CN EXT'!C13 -> 36 | T47: ='GRILLE IBODE CN EXT'!D13 -> 398
A49: Soit un gain net mensuel de : | G49: =I40*C46*0.8315 -> 74.03 € | R49: ='GRILLE IBODE CN EXT'!B15 -> 4 | S49: ='GRILLE IBODE CN EXT'!C15 -> 36 | T49: ='GRILLE IBODE CN EXT'!D15 -> 423
R51: ='GRILLE IBODE CN EXT'!B17 -> 5 | S51: ='GRILLE IBODE CN EXT'!C17 -> 48 | T51: ='GRILLE IBODE CN EXT'!D17 -> 442
R53: ='GRILLE IBODE CN EXT'!B19 -> 6 | S53: ='GRILLE IBODE CN EXT'!C19 -> 48 | T53: ='GRILLE IBODE CN EXT'!D19 -> 469
A54: Vos représentant-e-s SUD Santé Sociaux | I54: =RECAPITULATIF!D21 -> 35 | K54: sont à votre disposition
A55: pour tous renseignements complémentaires au poste : | M55: =RECAPITULATIF!D17 -> 2886 | R55: ='GRILLE IBODE CN EXT'!B21 -> 7 | S55: ='GRILLE IBODE CN EXT'!C21 -> 48 | T55: ='GRILLE IBODE CN EXT'!D21 -> 499
R57: ='GRILLE IBODE CN EXT'!B23 -> 8 | S57: ='GRILLE IBODE CN EXT'!C23 -> 0 | T57: ='GRILLE IBODE CN EXT'!D23 -> 525
A60: Recevez toutes nos salutations.
A63: =RECAPITULATIF!B5 -> Madame FERET Isabelle, Madame Anne PICHON et Monsieur Patrick GAUTIER
A65: SUD Santé Sociaux | E65: =RECAPITULATIF!D21 -> 35
A70: Tél : | B70: =RECAPITULATIF!D19 -> 02 99 21 28 86
A71: Mél : | C71: =RECAPITULATIF!C23 -> sudsante@ch-stmalo.fr
A72: =RECAPITULATIF!B25 -> Site Départemental Sud | F72: =RECAPITULATIF!D25 -> http://www.sudsantesociaux35.org

Sheet IBODE CN EXT Echelon 6
G2: Commission Administrative
G3: Paritaire | M3: =RECAPITULATIF!D7 -> Locale
M9: Mme, Mr :
M11: Grade :
M13: Service :
A16: Votre ou vos représentant-e-s du personnel
A18: =RECAPITULATIF!B5 -> Madame FERET Isabelle, Madame Anne PICHON et Monsieur Patrick GAUTIER
A20: SUD Santé Sociaux | E20: =RECAPITULATIF!D21 -> 35 | F20: du:
A22: =RECAPITULATIF!B2 -> Centre Hospitalier de Saint Malo
A24: siégeant auprès de la CAP | F24: =RECAPITULATIF!D7 -> Locale | J24: du : | K24: =RECAPITULATIF!D11 -> 2019-04-16 | N24: vous informe de votre :
F27: AVANCEMENT D’ECHELON
A33: Vous passez à l’échelon : | F33: ='GRILLE IBODE CN EXT'!B19 -> 6 | H33: Indice Majoré : | L33: ='GRILLE IBODE CN EXT'!D19 -> 469
A36: Date d'effet : | F36: / | H36: / | I36: =RECAPITULATIF!D9 -> 2019 | R36: ='GRILLE IBODE CN EXT'!B2 -> Infirmier de Bloc Opératoire Classe Normale Puéricultrice Classe Normale Extinction
A40: Ce qui représente un gain mensuel de : | I40: ='GRILLE IBODE CN EXT'!D19-'GRILLE IBODE CN EXT'!D17 -> 27 | K40: points d'indice.
R41: ='GRILLE IBODE CN EXT'!B7 -> Echelon | S41: ='GRILLE IBODE CN EXT'!C7 -> Durée (en mois) | T41: ='GRILLE IBODE CN EXT'!D7 -> Indice Majoré
A43: Pour information, la valeur brute du point d'indice | R43: ='GRILLE IBODE CN EXT'!B9 -> 1 | S43: ='GRILLE IBODE CN EXT'!C9 -> 12 | T43: ='GRILLE IBODE CN EXT'!D9 -> 353
R45: ='GRILLE IBODE CN EXT'!B11 -> 2 | S45: ='GRILLE IBODE CN EXT'!C11 -> 24 | T45: ='GRILLE IBODE CN EXT'!D11 -> 379
A46: est de | C46: =RECAPITULATIF!D13 -> 4.686 € | E46: au | F46: =RECAPITULATIF!D15 -> 2019-01-01
R47: ='GRILLE IBODE CN EXT'!B13 -> 3 | S47: ='GRILLE IBODE CN EXT'!C13 -> 36 | T47: ='GRILLE IBODE CN EXT'!D13 -> 398
A49: Soit un gain net mensuel de : | G49: =I40*C46*0.8315 -> 105.20 € | R49: ='GRILLE IBODE CN EXT'!B15 -> 4 | S49: ='GRILLE IBODE CN EXT'!C15 -> 36 | T49: ='GRILLE IBODE CN EXT'!D15 -> 423
R51: ='GRILLE IBODE CN EXT'!B17 -> 5 | S51: ='GRILLE IBODE CN EXT'!C17 -> 48 | T51: ='GRILLE IBODE CN EXT'!D17 -> 442
R53: ='GRILLE IBODE CN EXT'!B19 -> 6 | S53: ='GRILLE IBODE CN EXT'!C19 -> 48 | T53: ='GRILLE IBODE CN EXT'!D19 -> 469
A54: Vos représentant-e-s SUD Santé Sociaux | I54: =RECAPITULATIF!D21 -> 35 | K54: sont à votre disposition
A55: pour tous renseignements complémentaires au poste : | M55: =RECAPITULATIF!D17 -> 2886 | R55: ='GRILLE IBODE CN EXT'!B21 -> 7 | S55: ='GRILLE IBODE CN EXT'!C21 -> 48 | T55: ='GRILLE IBODE CN EXT'!D21 -> 499
R57: ='GRILLE IBODE CN EXT'!B23 -> 8 | S57: ='GRILLE IBODE CN EXT'!C23 -> 0 | T57: ='GRILLE IBODE CN EXT'!D23 -> 525
A60: Recevez toutes nos salutations.
A63: =RECAPITULATIF!B5 -> Madame FERET Isabelle, Madame Anne PICHON et Monsieur Patrick GAUTIER
A65: SUD Santé Sociaux | E65: =RECAPITULATIF!D21 -> 35
A70: Tél : | B70: =RECAPITULATIF!D19 -> 02 99 21 28 86
A71: Mél : | C71: =RECAPITULATIF!C23 -> sudsante@ch-stmalo.fr
A72: =RECAPITULATIF!B25 -> Site Départemental Sud | F72: =RECAPITULATIF!D25 -> http://www.sudsantesociaux35.org

Sheet IBODE CN EXT Echelon 7
G2: Commission Administrative
G3: Paritaire | M3: =RECAPITULATIF!D7 -> Locale
M9: Mme, Mr :
M11: Grade :
M13: Service :
A16: Votre ou vos représentant-e-s du personnel
A18: =RECAPITULATIF!B5 -> Madame FERET Isabelle, Madame Anne PICHON et Monsieur Patrick GAUTIER
A20: SUD Santé Sociaux | E20: =RECAPITULATIF!D21 -> 35 | F20: du:
A22: =RECAPITULATIF!B2 -> Centre Hospitalier de Saint Malo
A24: siégeant auprès de la CAP | F24: =RECAPITULATIF!D7 -> Locale | J24: du : | K24: =RECAPITULATIF!D11 -> 2019-04-16 | N24: vous informe de votre :
F27: AVANCEMENT D’ECHELON
A33: Vous passez à l’échelon : | F33: ='GRILLE IBODE CN EXT'!B21 -> 7 | H33: Indice Majoré : | L33: ='GRILLE IBODE CN EXT'!D21 -> 499
A36: Date d'effet : | F36: / | H36: / | I36: =RECAPITULATIF!D9 -> 2019 | R36: ='GRILLE IBODE CN EXT'!B2 -> Infirmier de Bloc Opératoire Classe Normale Puéricultrice Classe Normale Extinction
A40: Ce qui représente un gain mensuel de : | I40: ='GRILLE IBODE CN EXT'!D21-'GRILLE IBODE CN EXT'!D19 -> 30 | K40: points d'indice.
R41: ='GRILLE IBODE CN EXT'!B7 -> Echelon | S41: ='GRILLE IBODE CN EXT'!C7 -> Durée (en mois) | T41: ='GRILLE IBODE CN EXT'!D7 -> Indice Majoré
A43: Pour information, la valeur brute du point d'indice | R43: ='GRILLE IBODE CN EXT'!B9 -> 1 | S43: ='GRILLE IBODE CN EXT'!C9 -> 12 | T43: ='GRILLE IBODE CN EXT'!D9 -> 353
R45: ='GRILLE IBODE CN EXT'!B11 -> 2 | S45: ='GRILLE IBODE CN EXT'!C11 -> 24 | T45: ='GRILLE IBODE CN EXT'!D11 -> 379
A46: est de | C46: =RECAPITULATIF!D13 -> 4.686 € | E46: au | F46: =RECAPITULATIF!D15 -> 2019-01-01
R47: ='GRILLE IBODE CN EXT'!B13 -> 3 | S47: ='GRILLE IBODE CN EXT'!C13 -> 36 | T47: ='GRILLE IBODE CN EXT'!D13 -> 398
A49: Soit un gain net mensuel de : | G49: =I40*C46*0.8315 -> 116.89 € | R49: ='GRILLE IBODE CN EXT'!B15 -> 4 | S49: ='GRILLE IBODE CN EXT'!C15 -> 36 | T49: ='GRILLE IBODE CN EXT'!D15 -> 423
R51: ='GRILLE IBODE CN EXT'!B17 -> 5 | S51: ='GRILLE IBODE CN EXT'!C17 -> 48 | T51: ='GRILLE IBODE CN EXT'!D17 -> 442
R53: ='GRILLE IBODE CN EXT'!B19 -> 6 | S53: ='GRILLE IBODE CN EXT'!C19 -> 48 | T53: ='GRILLE IBODE CN EXT'!D19 -> 469
A54: Vos représentant-e-s SUD Santé Sociaux | I54: =RECAPITULATIF!D21 -> 35 | K54: sont à votre disposition
A55: pour tous renseignements complémentaires au poste : | M55: =RECAPITULATIF!D17 -> 2886 | R55: ='GRILLE IBODE CN EXT'!B21 -> 7 | S55: ='GRILLE IBODE CN EXT'!C21 -> 48 | T55: ='GRILLE IBODE CN EXT'!D21 -> 499
R57: ='GRILLE IBODE CN EXT'!B23 -> 8 | S57: ='GRILLE IBODE CN EXT'!C23 -> 0 | T57: ='GRILLE IBODE CN EXT'!D23 -> 525
A60: Recevez toutes nos salutations.
A63: =RECAPITULATIF!B5 -> Madame FERET Isabelle, Madame Anne PICHON et Monsieur Patrick GAUTIER
A65: SUD Santé Sociaux | E65: =RECAPITULATIF!D21 -> 35
A70: Tél : | B70: =RECAPITULATIF!D19 -> 02 99 21 28 86
A71: Mél : | C71: =RECAPITULATIF!C23 -> sudsante@ch-stmalo.fr
A72: =RECAPITULATIF!B25 -> Site Départemental Sud | F72: =RECAPITULATIF!D25 -> http://www.sudsantesociaux35.org

Sheet IBODE CN EXT Echelon 8
G2: Commission Administrative
G3: Paritaire | M3: =RECAPITULATIF!D7 -> Locale
M9: Mme, Mr :
M11: Grade :
M13: Service :
A16: Votre ou vos représentant-e-s du personnel
A18: =RECAPITULATIF!B5 -> Madame FERET Isabelle, Madame Anne PICHON et Monsieur Patrick GAUTIER
A20: SUD Santé Sociaux | E20: =RECAPITULATIF!D21 -> 35 | F20: du:
A22: =RECAPITULATIF!B2 -> Centre Hospitalier de Saint Malo
A24: siégeant auprès de la CAP | F24: =RECAPITULATIF!D7 -> Locale | J24: du : | K24: =RECAPITULATIF!D11 -> 2019-04-16 | N24: vous informe de votre :
F27: AVANCEMENT D’ECHELON
A33: Vous passez à l’échelon : | F33: ='GRILLE ISG IS G3'!B23 -> 8 | H33: Indice Majoré : | L33: ='GRILLE IBODE CN EXT'!D23 -> 525
A36: Date d'effet : | F36: / | H36: / | I36: =RECAPITULATIF!D9 -> 2019 | R36: ='GRILLE IBODE CN EXT'!B2 -> Infirmier de Bloc Opératoire Classe Normale Puéricultrice Classe Normale Extinction
A40: Ce qui représente un gain mensuel de : | I40: ='GRILLE IBODE CN EXT'!D23-'GRILLE IBODE CN EXT'!D21 -> 26 | K40: points d'indice.
R41: ='GRILLE IBODE CN EXT'!B7 -> Echelon | S41: ='GRILLE IBODE CN EXT'!C7 -> Durée (en mois) | T41: ='GRILLE IBODE CN EXT'!D7 -> Indice Majoré
A43: Pour information, la valeur brute du point d'indice | R43: ='GRILLE IBODE CN EXT'!B9 -> 1 | S43: ='GRILLE IBODE CN EXT'!C9 -> 12 | T43: ='GRILLE IBODE CN EXT'!D9 -> 353
R45: ='GRILLE IBODE CN EXT'!B11 -> 2 | S45: ='GRILLE IBODE CN EXT'!C11 -> 24 | T45: ='GRILLE IBODE CN EXT'!D11 -> 379
A46: est de | C46: =RECAPITULATIF!D13 -> 4.686 € | E46: au | F46: =RECAPITULATIF!D15 -> 2019-01-01
R47: ='GRILLE IBODE CN EXT'!B13 -> 3 | S47: ='GRILLE IBODE CN EXT'!C13 -> 36 | T47: ='GRILLE IBODE CN EXT'!D13 -> 398
A49: Soit un gain net mensuel de : | G49: =I40*C46*0.8315 -> 101.31 € | R49: ='GRILLE IBODE CN EXT'!B15 -> 4 | S49: ='GRILLE IBODE CN EXT'!C15 -> 36 | T49: ='GRILLE IBODE CN EXT'!D15 -> 423
R51: ='GRILLE IBODE CN EXT'!B17 -> 5 | S51: ='GRILLE IBODE CN EXT'!C17 -> 48 | T51: ='GRILLE IBODE CN EXT'!D17 -> 442
R53: ='GRILLE IBODE CN EXT'!B19 -> 6 | S53: ='GRILLE IBODE CN EXT'!C19 -> 48 | T53: ='GRILLE IBODE CN EXT'!D19 -> 469
A54: Vos représentant-e-s SUD Santé Sociaux | I54: =RECAPITULATIF!D21 -> 35 | K54: sont à votre disposition
A55: pour tous renseignements complémentaires au poste : | M55: =RECAPITULATIF!D17 -> 2886 | R55: ='GRILLE IBODE CN EXT'!B21 -> 7 | S55: ='GRILLE IBODE CN EXT'!C21 -> 48 | T55: ='GRILLE IBODE CN EXT'!D21 -> 499
R57: ='GRILLE IBODE CN EXT'!B23 -> 8 | S57: ='GRILLE IBODE CN EXT'!C23 -> 0 | T57: ='GRILLE IBODE CN EXT'!D23 -> 525
A60: Recevez toutes nos salutations.
A63: =RECAPITULATIF!B5 -> Madame FERET Isabelle, Madame Anne PICHON et Monsieur Patrick GAUTIER
A65: SUD Santé Sociaux | E65: =RECAPITULATIF!D21 -> 35
A70: Tél : | B70: =RECAPITULATIF!D19 -> 02 99 21 28 86
A71: Mél : | C71: =RECAPITULATIF!C23 -> sudsante@ch-stmalo.fr
A72: =RECAPITULATIF!B25 -> Site Départemental Sud | F72: =RECAPITULATIF!D25 -> http://www.sudsantesociaux35.org

Sheet GRILLE IBODE CS EXT
B2: Infirmier de Bloc Opératoire Classe Supérieure Puéricultrice Classe Supérieure Extinction
B7: Echelon | C7: Durée (en mois) | D7: Indice Majoré
B9: 1 | C9: 24 | D9: 433
B11: 2 | C11: 24 | D11: 467
B13: 3 | C13: 24 | D13: 487
B15: 4 | C15: 36 | D15: 511
B17: 5 | C17: 36 | D17: 531
B19: 6 | C19: 42 | D19: 552
B21: 7 | D21: 583

Sheet IMP GRILLE IBODE CS EXT
B2: 1) Imprimez autant de feuilles que d'agents concernés.
B4: 2) Pliez en 3 au niveau du repère, deux petits traits noirs.
B6: 3) Inserrez ce courrier dans une enveloppe 110 X 220 à fenêtre.

Sheet IBODE CS EXT Echelon 2
G2: Commission Administrative
G3: Paritaire | M3: =RECAPITULATIF!D7 -> Locale
M9: Mme, Mr :
M11: Grade :
M13: Service :
A16: Votre ou vos représentant-e-s du personnel
A18: =RECAPITULATIF!B5 -> Madame FERET Isabelle, Madame Anne PICHON et Monsieur Patrick GAUTIER
A20: SUD Santé Sociaux | E20: =RECAPITULATIF!D21 -> 35 | F20: du:
A22: =RECAPITULATIF!B2 -> Centre Hospitalier de Saint Malo
A24: siégeant auprès de la CAP | F24: =RECAPITULATIF!D7 -> Locale | J24: du : | K24: =RECAPITULATIF!D11 -> 2019-04-16 | N24: vous informe de votre :
F27: AVANCEMENT D’ECHELON
A33: Vous passez à l’échelon : | F33: ='GRILLE IBODE CS EXT'!B11 -> 2 | H33: Indice Majoré : | L33: ='GRILLE IBODE CS EXT'!D11 -> 467
A36: Date d'effet : | F36: / | H36: / | I36: =RECAPITULATIF!D9 -> 2019 | R36: ='GRILLE IBODE CS EXT'!B2 -> Infirmier de Bloc Opératoire Classe Supérieure Puéricultrice Classe Supérieure Extinction
A40: Ce qui représente un gain mensuel de : | I40: ='GRILLE IBODE CS EXT'!D11-'GRILLE IBODE CS EXT'!D9 -> 34 | K40: points d'indice.
R41: ='GRILLE IBODE CS EXT'!B7 -> Echelon | S41: ='GRILLE IBODE CS EXT'!C7 -> Durée (en mois) | T41: ='GRILLE IBODE CS EXT'!D7 -> Indice Majoré
A43: Pour information, la valeur brute du point d'indice | R43: ='GRILLE IBODE CS EXT'!B9 -> 1 | S43: ='GRILLE IBODE CS EXT'!C9 -> 24 | T43: ='GRILLE IBODE CS EXT'!D9 -> 433
R45: ='GRILLE IBODE CS EXT'!B11 -> 2 | S45: ='GRILLE IBODE CS EXT'!C11 -> 24 | T45: ='GRILLE IBODE CS EXT'!D11 -> 467
A46: est de | C46: =RECAPITULATIF!D13 -> 4.686 € | E46: au | F46: =RECAPITULATIF!D15 -> 2019-01-01
R47: ='GRILLE IBODE CS EXT'!B13 -> 3 | S47: ='GRILLE IBODE CS EXT'!C13 -> 24 | T47: ='GRILLE IBODE CS EXT'!D13 -> 487
A49: Soit un gain net mensuel de : | G49: =I40*C46*0.8315 -> 132.48 € | R49: ='GRILLE IBODE CS EXT'!B15 -> 4 | S49: ='GRILLE IBODE CS EXT'!C15 -> 36 | T49: ='GRILLE IBODE CS EXT'!D15 -> 511
R51: ='GRILLE IBODE CS EXT'!B17 -> 5 | S51: ='GRILLE IBODE CS EXT'!C17 -> 36 | T51: ='GRILLE IBODE CS EXT'!D17 -> 531
R53: ='GRILLE IBODE CS EXT'!B19 -> 6 | S53: ='GRILLE IBODE CS EXT'!C19 -> 42 | T53: ='GRILLE IBODE CS EXT'!D19 -> 552
A54: Vos représentant-e-s SUD Santé Sociaux | I54: =RECAPITULATIF!D21 -> 35 | K54: sont à votre disposition
A55: pour tous renseignements complémentaires au poste : | M55: =RECAPITULATIF!D17 -> 2886 | R55: ='GRILLE IBODE CS EXT'!B21 -> 7 | S55: ='GRILLE IBODE CS EXT'!C21 -> 0 | T55: ='GRILLE IBODE CS EXT'!D21 -> 583
A60: Recevez toutes nos salutations.
A63: =RECAPITULATIF!B5 -> Madame FERET Isabelle, Madame Anne PICHON et Monsieur Patrick GAUTIER
A65: SUD Santé Sociaux | E65: =RECAPITULATIF!D21 -> 35
A70: Tél : | B70: =RECAPITULATIF!D19 -> 02 99 21 28 86
A71: Mél : | C71: =RECAPITULATIF!C23 -> sudsante@ch-stmalo.fr
A72: =RECAPITULATIF!B25 -> Site Départemental Sud | F72: =RECAPITULATIF!D25 -> http://www.sudsantesociaux35.org

Sheet IBODE CS EXT Echelon 3
G2: Commission Administrative
G3: Paritaire | M3: =RECAPITULATIF!D7 -> Locale
M9: Mme, Mr :
M11: Grade :
M13: Service :
A16: Votre ou vos représentant-e-s du personnel
A18: =RECAPITULATIF!B5 -> Madame FERET Isabelle, Madame Anne PICHON et Monsieur Patrick GAUTIER
A20: SUD Santé Sociaux | E20: =RECAPITULATIF!D21 -> 35 | F20: du:
A22: =RECAPITULATIF!B2 -> Centre Hospitalier de Saint Malo
A24: siégeant auprès de la CAP | F24: =RECAPITULATIF!D7 -> Locale | J24: du : | K24: =RECAPITULATIF!D11 -> 2019-04-16 | N24: vous informe de votre :
F27: AVANCEMENT D’ECHELON
A33: Vous passez à l’échelon : | F33: ='GRILLE IBODE CS EXT'!B13 -> 3 | H33: Indice Majoré : | L33: ='GRILLE IBODE CS EXT'!D13 -> 487
A36: Date d'effet : | F36: / | H36: / | I36: =RECAPITULATIF!D9 -> 2019 | R36: ='GRILLE IBODE CS EXT'!B2 -> Infirmier de Bloc Opératoire Classe Supérieure Puéricultrice Classe Supérieure Extinction
A40: Ce qui représente un gain mensuel de : | I40: ='GRILLE IBODE CS EXT'!D13-'GRILLE IBODE CS EXT'!D11 -> 20 | K40: points d'indice.
R41: ='GRILLE IBODE CS EXT'!B7 -> Echelon | S41: ='GRILLE IBODE CS EXT'!C7 -> Durée (en mois) | T41: ='GRILLE IBODE CS EXT'!D7 -> Indice Majoré
A43: Pour information, la valeur brute du point d'indice | R43: ='GRILLE IBODE CS EXT'!B9 -> 1 | S43: ='GRILLE IBODE CS EXT'!C9 -> 24 | T43: ='GRILLE IBODE CS EXT'!D9 -> 433
R45: ='GRILLE IBODE CS EXT'!B11 -> 2 | S45: ='GRILLE IBODE CS EXT'!C11 -> 24 | T45: ='GRILLE IBODE CS EXT'!D11 -> 467
A46: est de | C46: =RECAPITULATIF!D13 -> 4.686 € | E46: au | F46: =RECAPITULATIF!D15 -> 2019-01-01
R47: ='GRILLE IBODE CS EXT'!B13 -> 3 | S47: ='GRILLE IBODE CS EXT'!C13 -> 24 | T47: ='GRILLE IBODE CS EXT'!D13 -> 487
A49: Soit un gain net mensuel de : | G49: =I40*C46*0.8315 -> 77.93 € | R49: ='GRILLE IBODE CS EXT'!B15 -> 4 | S49: ='GRILLE IBODE CS EXT'!C15 -> 36 | T49: ='GRILLE IBODE CS EXT'!D15 -> 511
R51: ='GRILLE IBODE CS EXT'!B17 -> 5 | S51: ='GRILLE IBODE CS EXT'!C17 -> 36 | T51: ='GRILLE IBODE CS EXT'!D17 -> 531
R53: ='GRILLE IBODE CS EXT'!B19 -> 6 | S53: ='GRILLE IBODE CS EXT'!C19 -> 42 | T53: ='GRILLE IBODE CS EXT'!D19 -> 552
A54: Vos représentant-e-s SUD Santé Sociaux | I54: =RECAPITULATIF!D21 -> 35 | K54: sont à votre disposition
A55: pour tous renseignements complémentaires au poste : | M55: =RECAPITULATIF!D17 -> 2886 | R55: ='GRILLE IBODE CS EXT'!B21 -> 7 | S55: ='GRILLE IBODE CS EXT'!C21 -> 0 | T55: ='GRILLE IBODE CS EXT'!D21 -> 583
A60: Recevez toutes nos salutations.
A63: =RECAPITULATIF!B5 -> Madame FERET Isabelle, Madame Anne PICHON et Monsieur Patrick GAUTIER
A65: SUD Santé Sociaux | E65: =RECAPITULATIF!D21 -> 35
A70: Tél : | B70: =RECAPITULATIF!D19 -> 02 99 21 28 86
A71: Mél : | C71: =RECAPITULATIF!C23 -> sudsante@ch-stmalo.fr
A72: =RECAPITULATIF!B25 -> Site Départemental Sud | F72: =RECAPITULATIF!D25 -> http://www.sudsantesociaux35.org

Sheet IBODE CS EXT Echelon 4
G2: Commission Administrative
G3: Paritaire | M3: =RECAPITULATIF!D7 -> Locale
M9: Mme, Mr :
M11: Grade :
M13: Service :
A16: Votre ou vos représentant-e-s du personnel
A18: =RECAPITULATIF!B5 -> Madame FERET Isabelle, Madame Anne PICHON et Monsieur Patrick GAUTIER
A20: SUD Santé Sociaux | E20: =RECAPITULATIF!D21 -> 35 | F20: du:
A22: =RECAPITULATIF!B2 -> Centre Hospitalier de Saint Malo
A24: siégeant auprès de la CAP | F24: =RECAPITULATIF!D7 -> Locale | J24: du : | K24: =RECAPITULATIF!D11 -> 2019-04-16 | N24: vous informe de votre :
F27: AVANCEMENT D’ECHELON
A33: Vous passez à l’échelon : | F33: ='GRILLE IBODE CS EXT'!B15 -> 4 | H33: Indice Majoré : | L33: ='GRILLE IBODE CS EXT'!D15 -> 511
A36: Date d'effet : | F36: / | H36: / | I36: =RECAPITULATIF!D9 -> 2019 | R36: ='GRILLE IBODE CS EXT'!B2 -> Infirmier de Bloc Opératoire Classe Supérieure Puéricultrice Classe Supérieure Extinction
A40: Ce qui représente un gain mensuel de : | I40: ='GRILLE IBODE CS EXT'!D15-'GRILLE IBODE CS EXT'!D13 -> 24 | K40: points d'indice.
R41: ='GRILLE IBODE CS EXT'!B7 -> Echelon | S41: ='GRILLE IBODE CS EXT'!C7 -> Durée (en mois) | T41: ='GRILLE IBODE CS EXT'!D7 -> Indice Majoré
A43: Pour information, la valeur brute du point d'indice | R43: ='GRILLE IBODE CS EXT'!B9 -> 1 | S43: ='GRILLE IBODE CS EXT'!C9 -> 24 | T43: ='GRILLE IBODE CS EXT'!D9 -> 433
R45: ='GRILLE IBODE CS EXT'!B11 -> 2 | S45: ='GRILLE IBODE CS EXT'!C11 -> 24 | T45: ='GRILLE IBODE CS EXT'!D11 -> 467
A46: est de | C46: =RECAPITULATIF!D13 -> 4.686 € | E46: au | F46: =RECAPITULATIF!D15 -> 2019-01-01
R47: ='GRILLE IBODE CS EXT'!B13 -> 3 | S47: ='GRILLE IBODE CS EXT'!C13 -> 24 | T47: ='GRILLE IBODE CS EXT'!D13 -> 487
A49: Soit un gain net mensuel de : | G49: =I40*C46*0.8315 -> 93.51 € | R49: ='GRILLE IBODE CS EXT'!B15 -> 4 | S49: ='GRILLE IBODE CS EXT'!C15 -> 36 | T49: ='GRILLE IBODE CS EXT'!D15 -> 511
R51: ='GRILLE IBODE CS EXT'!B17 -> 5 | S51: ='GRILLE IBODE CS EXT'!C17 -> 36 | T51: ='GRILLE IBODE CS EXT'!D17 -> 531
R53: ='GRILLE IBODE CS EXT'!B19 -> 6 | S53: ='GRILLE IBODE CS EXT'!C19 -> 42 | T53: ='GRILLE IBODE CS EXT'!D19 -> 552
A54: Vos représentant-e-s SUD Santé Sociaux | I54: =RECAPITULATIF!D21 -> 35 | K54: sont à votre disposition
A55: pour tous renseignements complémentaires au poste : | M55: =RECAPITULATIF!D17 -> 2886 | R55: ='GRILLE IBODE CS EXT'!B21 -> 7 | S55: ='GRILLE IBODE CS EXT'!C21 -> 0 | T55: ='GRILLE IBODE CS EXT'!D21 -> 583
A60: Recevez toutes nos salutations.
A63: =RECAPITULATIF!B5 -> Madame FERET Isabelle, Madame Anne PICHON et Monsieur Patrick GAUTIER
A65: SUD Santé Sociaux | E65: =RECAPITULATIF!D21 -> 35
A70: Tél : | B70: =RECAPITULATIF!D19 -> 02 99 21 28 86
A71: Mél : | C71: =RECAPITULATIF!C23 -> sudsante@ch-stmalo.fr
A72: =RECAPITULATIF!B25 -> Site Départemental Sud | F72: =RECAPITULATIF!D25 -> http://www.sudsantesociaux35.org

Sheet IBODE CS EXT Echelon 5
G2: Commission Administrative
G3: Paritaire | M3: =RECAPITULATIF!D7 -> Locale
M9: Mme, Mr :
M11: Grade :
M13: Service :
A16: Votre ou vos représentant-e-s du personnel
A18: =RECAPITULATIF!B5 -> Madame FERET Isabelle, Madame Anne PICHON et Monsieur Patrick GAUTIER
A20: SUD Santé Sociaux | E20: =RECAPITULATIF!D21 -> 35 | F20: du:
A22: =RECAPITULATIF!B2 -> Centre Hospitalier de Saint Malo
A24: siégeant auprès de la CAP | F24: =RECAPITULATIF!D7 -> Locale | J24: du : | K24: =RECAPITULATIF!D11 -> 2019-04-16 | N24: vous informe de votre :
F27: AVANCEMENT D’ECHELON
A33: Vous passez à l’échelon : | F33: ='GRILLE IBODE CS EXT'!B17 -> 5 | H33: Indice Majoré : | L33: ='GRILLE IBODE CS EXT'!D17 -> 531
A36: Date d'effet : | F36: / | H36: / | I36: =RECAPITULATIF!D9 -> 2019 | R36: ='GRILLE IBODE CS EXT'!B2 -> Infirmier de Bloc Opératoire Classe Supérieure Puéricultrice Classe Supérieure Extinction
A40: Ce qui représente un gain mensuel de : | I40: ='GRILLE IBODE CS EXT'!D17-'GRILLE IBODE CS EXT'!D15 -> 20 | K40: points d'indice.
R41: ='GRILLE IBODE CS EXT'!B7 -> Echelon | S41: ='GRILLE IBODE CS EXT'!C7 -> Durée (en mois) | T41: ='GRILLE IBODE CS EXT'!D7 -> Indice Majoré
A43: Pour information, la valeur brute du point d'indice | R43: ='GRILLE IBODE CS EXT'!B9 -> 1 | S43: ='GRILLE IBODE CS EXT'!C9 -> 24 | T43: ='GRILLE IBODE CS EXT'!D9 -> 433
R45: ='GRILLE IBODE CS EXT'!B11 -> 2 | S45: ='GRILLE IBODE CS EXT'!C11 -> 24 | T45: ='GRILLE IBODE CS EXT'!D11 -> 467
A46: est de | C46: =RECAPITULATIF!D13 -> 4.686 € | E46: au | F46: =RECAPITULATIF!D15 -> 2019-01-01
R47: ='GRILLE IBODE CS EXT'!B13 -> 3 | S47: ='GRILLE IBODE CS EXT'!C13 -> 24 | T47: ='GRILLE IBODE CS EXT'!D13 -> 487
A49: Soit un gain net mensuel de : | G49: =I40*C46*0.8315 -> 77.93 € | R49: ='GRILLE IBODE CS EXT'!B15 -> 4 | S49: ='GRILLE IBODE CS EXT'!C15 -> 36 | T49: ='GRILLE IBODE CS EXT'!D15 -> 511
R51: ='GRILLE IBODE CS EXT'!B17 -> 5 | S51: ='GRILLE IBODE CS EXT'!C17 -> 36 | T51: ='GRILLE IBODE CS EXT'!D17 -> 531
R53: ='GRILLE IBODE CS EXT'!B19 -> 6 | S53: ='GRILLE IBODE CS EXT'!C19 -> 42 | T53: ='GRILLE IBODE CS EXT'!D19 -> 552
A54: Vos représentant-e-s SUD Santé Sociaux | I54: =RECAPITULATIF!D21 -> 35 | K54: sont à votre disposition
A55: pour tous renseignements complémentaires au poste : | M55: =RECAPITULATIF!D17 -> 2886 | R55: ='GRILLE IBODE CS EXT'!B21 -> 7 | S55: ='GRILLE IBODE CS EXT'!C21 -> 0 | T55: ='GRILLE IBODE CS EXT'!D21 -> 583
A60: Recevez toutes nos salutations.
A63: =RECAPITULATIF!B5 -> Madame FERET Isabelle, Madame Anne PICHON et Monsieur Patrick GAUTIER
A65: SUD Santé Sociaux | E65: =RECAPITULATIF!D21 -> 35
A70: Tél : | B70: =RECAPITULATIF!D19 -> 02 99 21 28 86
A71: Mél : | C71: =RECAPITULATIF!C23 -> sudsante@ch-stmalo.fr
A72: =RECAPITULATIF!B25 -> Site Départemental Sud | F72: =RECAPITULATIF!D25 -> http://www.sudsantesociaux35.org

Sheet IBODE CS EXT Echelon 6
G2: Commission Administrative
G3: Paritaire | M3: =RECAPITULATIF!D7 -> Locale
M9: Mme, Mr :
M11: Grade :
M13: Service :
A16: Votre ou vos représentant-e-s du personnel
A18: =RECAPITULATIF!B5 -> Madame FERET Isabelle, Madame Anne PICHON et Monsieur Patrick GAUTIER
A20: SUD Santé Sociaux | E20: =RECAPITULATIF!D21 -> 35 | F20: du:
A22: =RECAPITULATIF!B2 -> Centre Hospitalier de Saint Malo
A24: siégeant auprès de la CAP | F24: =RECAPITULATIF!D7 -> Locale | J24: du : | K24: =RECAPITULATIF!D11 -> 2019-04-16 | N24: vous informe de votre :
F27: AVANCEMENT D’ECHELON
A33: Vous passez à l’échelon : | F33: ='GRILLE IBODE CS EXT'!B19 -> 6 | H33: Indice Majoré : | L33: ='GRILLE IBODE CS EXT'!D19 -> 552
A36: Date d'effet : | F36: / | H36: / | I36: =RECAPITULATIF!D9 -> 2019 | R36: ='GRILLE IBODE CS EXT'!B2 -> Infirmier de Bloc Opératoire Classe Supérieure Puéricultrice Classe Supérieure Extinction
A40: Ce qui représente un gain mensuel de : | I40: ='GRILLE IBODE CS EXT'!D19-'GRILLE IBODE CS EXT'!D17 -> 21 | K40: points d'indice.
R41: ='GRILLE IBODE CS EXT'!B7 -> Echelon | S41: ='GRILLE IBODE CS EXT'!C7 -> Durée (en mois) | T41: ='GRILLE IBODE CS EXT'!D7 -> Indice Majoré
A43: Pour information, la valeur brute du point d'indice | R43: ='GRILLE IBODE CS EXT'!B9 -> 1 | S43: ='GRILLE IBODE CS EXT'!C9 -> 24 | T43: ='GRILLE IBODE CS EXT'!D9 -> 433
R45: ='GRILLE IBODE CS EXT'!B11 -> 2 | S45: ='GRILLE IBODE CS EXT'!C11 -> 24 | T45: ='GRILLE IBODE CS EXT'!D11 -> 467
A46: est de | C46: =RECAPITULATIF!D13 -> 4.686 € | E46: au | F46: =RECAPITULATIF!D15 -> 2019-01-01
R47: ='GRILLE IBODE CS EXT'!B13 -> 3 | S47: ='GRILLE IBODE CS EXT'!C13 -> 24 | T47: ='GRILLE IBODE CS EXT'!D13 -> 487
A49: Soit un gain net mensuel de : | G49: =I40*C46*0.8315 -> 81.82 € | R49: ='GRILLE IBODE CS EXT'!B15 -> 4 | S49: ='GRILLE IBODE CS EXT'!C15 -> 36 | T49: ='GRILLE IBODE CS EXT'!D15 -> 511
R51: ='GRILLE IBODE CS EXT'!B17 -> 5 | S51: ='GRILLE IBODE CS EXT'!C17 -> 36 | T51: ='GRILLE IBODE CS EXT'!D17 -> 531
R53: ='GRILLE IBODE CS EXT'!B19 -> 6 | S53: ='GRILLE IBODE CS EXT'!C19 -> 42 | T53: ='GRILLE IBODE CS EXT'!D19 -> 552
A54: Vos représentant-e-s SUD Santé Sociaux | I54: =RECAPITULATIF!D21 -> 35 | K54: sont à votre disposition
A55: pour tous renseignements complémentaires au poste : | M55: =RECAPITULATIF!D17 -> 2886 | R55: ='GRILLE IBODE CS EXT'!B21 -> 7 | S55: ='GRILLE IBODE CS EXT'!C21 -> 0 | T55: ='GRILLE IBODE CS EXT'!D21 -> 583
A60: Recevez toutes nos salutations.
A63: =RECAPITULATIF!B5 -> Madame FERET Isabelle, Madame Anne PICHON et Monsieur Patrick GAUTIER
A65: SUD Santé Sociaux | E65: =RECAPITULATIF!D21 -> 35
A70: Tél : | B70: =RECAPITULATIF!D19 -> 02 99 21 28 86
A71: Mél : | C71: =RECAPITULATIF!C23 -> sudsante@ch-stmalo.fr
A72: =RECAPITULATIF!B25 -> Site Départemental Sud | F72: =RECAPITULATIF!D25 -> http://www.sudsantesociaux35.org

Sheet IBODE CS EXT Echelon 7
G2: Commission Administrative
G3: Paritaire | M3: =RECAPITULATIF!D7 -> Locale
M9: Mme, Mr :
M11: Grade :
M13: Service :
A16: Votre ou vos représentant-e-s du personnel
A18: =RECAPITULATIF!B5 -> Madame FERET Isabelle, Madame Anne PICHON et Monsieur Patrick GAUTIER
A20: SUD Santé Sociaux | E20: =RECAPITULATIF!D21 -> 35 | F20: du:
A22: =RECAPITULATIF!B2 -> Centre Hospitalier de Saint Malo
A24: siégeant auprès de la CAP | F24: =RECAPITULATIF!D7 -> Locale | J24: du : | K24: =RECAPITULATIF!D11 -> 2019-04-16 | N24: vous informe de votre :
F27: AVANCEMENT D’ECHELON
A33: Vous passez à l’échelon : | F33: ='GRILLE IBODE CS EXT'!B21 -> 7 | H33: Indice Majoré : | L33: ='GRILLE IBODE CS EXT'!D21 -> 583
A36: Date d'effet : | F36: / | H36: / | I36: =RECAPITULATIF!D9 -> 2019 | R36: ='GRILLE IBODE CS EXT'!B2 -> Infirmier de Bloc Opératoire Classe Supérieure Puéricultrice Classe Supérieure Extinction
A40: Ce qui représente un gain mensuel de : | I40: ='GRILLE IBODE CS EXT'!D21-'GRILLE IBODE CS EXT'!D19 -> 31 | K40: points d'indice.
R41: ='GRILLE IBODE CS EXT'!B7 -> Echelon | S41: ='GRILLE IBODE CS EXT'!C7 -> Durée (en mois) | T41: ='GRILLE IBODE CS EXT'!D7 -> Indice Majoré
A43: Pour information, la valeur brute du point d'indice | R43: ='GRILLE IBODE CS EXT'!B9 -> 1 | S43: ='GRILLE IBODE CS EXT'!C9 -> 24 | T43: ='GRILLE IBODE CS EXT'!D9 -> 433
R45: ='GRILLE IBODE CS EXT'!B11 -> 2 | S45: ='GRILLE IBODE CS EXT'!C11 -> 24 | T45: ='GRILLE IBODE CS EXT'!D11 -> 467
A46: est de | C46: =RECAPITULATIF!D13 -> 4.686 € | E46: au | F46: =RECAPITULATIF!D15 -> 2019-01-01
R47: ='GRILLE IBODE CS EXT'!B13 -> 3 | S47: ='GRILLE IBODE CS EXT'!C13 -> 24 | T47: ='GRILLE IBODE CS EXT'!D13 -> 487
A49: Soit un gain net mensuel de : | G49: =I40*C46*0.8315 -> 120.79 € | R49: ='GRILLE IBODE CS EXT'!B15 -> 4 | S49: ='GRILLE IBODE CS EXT'!C15 -> 36 | T49: ='GRILLE IBODE CS EXT'!D15 -> 511
R51: ='GRILLE IBODE CS EXT'!B17 -> 5 | S51: ='GRILLE IBODE CS EXT'!C17 -> 36 | T51: ='GRILLE IBODE CS EXT'!D17 -> 531
R53: ='GRILLE IBODE CS EXT'!B19 -> 6 | S53: ='GRILLE IBODE CS EXT'!C19 -> 42 | T53: ='GRILLE IBODE CS EXT'!D19 -> 552
A54: Vos représentant-e-s SUD Santé Sociaux | I54: =RECAPITULATIF!D21 -> 35 | K54: sont à votre disposition
A55: pour tous renseignements complémentaires au poste : | M55: =RECAPITULATIF!D17 -> 2886 | R55: ='GRILLE IBODE CS EXT'!B21 -> 7 | S55: ='GRILLE IBODE CS EXT'!C21 -> 0 | T55: ='GRILLE IBODE CS EXT'!D21 -> 583
A60: Recevez toutes nos salutations.
A63: =RECAPITULATIF!B5 -> Madame FERET Isabelle, Madame Anne PICHON et Monsieur Patrick GAUTIER
A65: SUD Santé Sociaux | E65: =RECAPITULATIF!D21 -> 35
A70: Tél : | B70: =RECAPITULATIF!D19 -> 02 99 21 28 86
A71: Mél : | C71: =RECAPITULATIF!C23 -> sudsante@ch-stmalo.fr
A72: =RECAPITULATIF!B25 -> Site Départemental Sud | F72: =RECAPITULATIF!D25 -> http://www.sudsantesociaux35.org

Sheet GRILLE IADE CN EXT
B2: Infirmier Anesthésiste Classe Normale Extinction
B7: Echelon | C7: Durée (en mois) | D7: Indice Majoré
B9: 1 | C9: 12 | D9: 379
B11: 2 | C11: 24 | D11: 406
B13: 3 | C13: 36 | D13: 426
B15: 4 | C15: 36 | D15: 451
B17: 5 | C17: 48 | D17: 474
B19: 6 | C19: 48 | D19: 500
B21: 7 | C21: 48 | D21: 529
B23: 8 | D23: 560

Sheet IMP GRILLE IADE CN EXT
B2: 1) Imprimez autant de feuilles que d'agents concernés.
B4: 2) Pliez en 3 au niveau du repère, deux petits traits noirs.
B6: 3) Inserrez ce courrier dans une enveloppe 110 X 220 à fenêtre.

Sheet IADE CN EXT Echelon 2
G2: Commission Administrative
G3: Paritaire | M3: =RECAPITULATIF!D7 -> Locale
M9: Mme, Mr :
M11: Grade :
M13: Service :
A16: Votre ou vos représentant-e-s du personnel
A18: =RECAPITULATIF!B5 -> Madame FERET Isabelle, Madame Anne PICHON et Monsieur Patrick GAUTIER
A20: SUD Santé Sociaux | E20: =RECAPITULATIF!D21 -> 35 | F20: du:
A22: =RECAPITULATIF!B2 -> Centre Hospitalier de Saint Malo
A24: siégeant auprès de la CAP | F24: =RECAPITULATIF!D7 -> Locale | J24: du : | K24: =RECAPITULATIF!D11 -> 2019-04-16 | N24: vous informe de votre :
F27: AVANCEMENT D’ECHELON
A33: Vous passez à l’échelon : | F33: ='GRILLE IADE CN EXT'!B11 -> 2 | H33: Indice Majoré : | L33: ='GRILLE IADE CN EXT'!D11 -> 406
A36: Date d'effet : | F36: / | H36: / | I36: =RECAPITULATIF!D9 -> 2019 | R36: ='GRILLE IADE CN EXT'!B2 -> Infirmier Anesthésiste Classe Normale Extinction
A40: Ce qui représente un gain mensuel de : | I40: ='GRILLE IADE CN EXT'!D11-'GRILLE IADE CN EXT'!D9 -> 27 | K40: points d'indice.
R41: ='GRILLE IADE CN EXT'!B7 -> Echelon | S41: ='GRILLE IADE CN EXT'!C7 -> Durée (en mois) | T41: ='GRILLE IADE CN EXT'!D7 -> Indice Majoré
A43: Pour information, la valeur brute du point d'indice | R43: ='GRILLE IADE CN EXT'!B9 -> 1 | S43: ='GRILLE IADE CN EXT'!C9 -> 12 | T43: ='GRILLE IADE CN EXT'!D9 -> 379
R45: ='GRILLE IADE CN EXT'!B11 -> 2 | S45: ='GRILLE IADE CN EXT'!C11 -> 24 | T45: ='GRILLE IADE CN EXT'!D11 -> 406
A46: est de | C46: =RECAPITULATIF!D13 -> 4.686 € | E46: au | F46: =RECAPITULATIF!D15 -> 2019-01-01
R47: ='GRILLE IADE CN EXT'!B13 -> 3 | S47: ='GRILLE IADE CN EXT'!C13 -> 36 | T47: ='GRILLE IADE CN EXT'!D13 -> 426
A49: Soit un gain net mensuel de : | G49: =I40*C46*0.8315 -> 105.20 € | R49: ='GRILLE IADE CN EXT'!B15 -> 4 | S49: ='GRILLE IADE CN EXT'!C15 -> 36 | T49: ='GRILLE IADE CN EXT'!D15 -> 451
R51: ='GRILLE IADE CN EXT'!B17 -> 5 | S51: ='GRILLE IADE CN EXT'!C17 -> 48 | T51: ='GRILLE IADE CN EXT'!D17 -> 474
R53: ='GRILLE IADE CN EXT'!B19 -> 6 | S53: ='GRILLE IADE CN EXT'!C19 -> 48 | T53: ='GRILLE IADE CN EXT'!D19 -> 500
A54: Vos représentant-e-s SUD Santé Sociaux | I54: =RECAPITULATIF!D21 -> 35 | K54: sont à votre disposition
A55: pour tous renseignements complémentaires au poste : | M55: =RECAPITULATIF!D17 -> 2886 | R55: ='GRILLE IADE CN EXT'!B21 -> 7 | S55: ='GRILLE IADE CN EXT'!C21 -> 48 | T55: ='GRILLE IADE CN EXT'!D21 -> 529
R57: ='GRILLE IADE CN EXT'!B23 -> 8 | S57: ='GRILLE IADE CN EXT'!C23 -> 0 | T57: ='GRILLE IADE CN EXT'!D23 -> 560
A60: Recevez toutes nos salutations.
A63: =RECAPITULATIF!B5 -> Madame FERET Isabelle, Madame Anne PICHON et Monsieur Patrick GAUTIER
A65: SUD Santé Sociaux | E65: =RECAPITULATIF!D21 -> 35
A70: Tél : | B70: =RECAPITULATIF!D19 -> 02 99 21 28 86
A71: Mél : | C71: =RECAPITULATIF!C23 -> sudsante@ch-stmalo.fr
A72: =RECAPITULATIF!B25 -> Site Départemental Sud | F72: =RECAPITULATIF!D25 -> http://www.sudsantesociaux35.org

Sheet IADE CN EXT Echelon 3
G2: Commission Administrative
G3: Paritaire | M3: =RECAPITULATIF!D7 -> Locale
M9: Mme, Mr :
M11: Grade :
M13: Service :
A16: Votre ou vos représentant-e-s du personnel
A18: =RECAPITULATIF!B5 -> Madame FERET Isabelle, Madame Anne PICHON et Monsieur Patrick GAUTIER
A20: SUD Santé Sociaux | E20: =RECAPITULATIF!D21 -> 35 | F20: du:
A22: =RECAPITULATIF!B2 -> Centre Hospitalier de Saint Malo
A24: siégeant auprès de la CAP | F24: =RECAPITULATIF!D7 -> Locale | J24: du : | K24: =RECAPITULATIF!D11 -> 2019-04-16 | N24: vous informe de votre :
F27: AVANCEMENT D’ECHELON
A33: Vous passez à l’échelon : | F33: ='GRILLE IADE CN EXT'!B13 -> 3 | H33: Indice Majoré : | L33: ='GRILLE IADE CN EXT'!D13 -> 426
A36: Date d'effet : | F36: / | H36: / | I36: =RECAPITULATIF!D9 -> 2019 | R36: ='GRILLE IADE CN EXT'!B2 -> Infirmier Anesthésiste Classe Normale Extinction
A40: Ce qui représente un gain mensuel de : | I40: ='GRILLE IADE CN EXT'!D13-'GRILLE IADE CN EXT'!D11 -> 20 | K40: points d'indice.
R41: ='GRILLE IADE CN EXT'!B7 -> Echelon | S41: ='GRILLE IADE CN EXT'!C7 -> Durée (en mois) | T41: ='GRILLE IADE CN EXT'!D7 -> Indice Majoré
A43: Pour information, la valeur brute du point d'indice | R43: ='GRILLE IADE CN EXT'!B9 -> 1 | S43: ='GRILLE IADE CN EXT'!C9 -> 12 | T43: ='GRILLE IADE CN EXT'!D9 -> 379
R45: ='GRILLE IADE CN EXT'!B11 -> 2 | S45: ='GRILLE IADE CN EXT'!C11 -> 24 | T45: ='GRILLE IADE CN EXT'!D11 -> 406
A46: est de | C46: =RECAPITULATIF!D13 -> 4.686 € | E46: au | F46: =RECAPITULATIF!D15 -> 2019-01-01
R47: ='GRILLE IADE CN EXT'!B13 -> 3 | S47: ='GRILLE IADE CN EXT'!C13 -> 36 | T47: ='GRILLE IADE CN EXT'!D13 -> 426
A49: Soit un gain net mensuel de : | G49: =I40*C46*0.8315 -> 77.93 € | R49: ='GRILLE IADE CN EXT'!B15 -> 4 | S49: ='GRILLE IADE CN EXT'!C15 -> 36 | T49: ='GRILLE IADE CN EXT'!D15 -> 451
R51: ='GRILLE IADE CN EXT'!B17 -> 5 | S51: ='GRILLE IADE CN EXT'!C17 -> 48 | T51: ='GRILLE IADE CN EXT'!D17 -> 474
R53: ='GRILLE IADE CN EXT'!B19 -> 6 | S53: ='GRILLE IADE CN EXT'!C19 -> 48 | T53: ='GRILLE IADE CN EXT'!D19 -> 500
A54: Vos représentant-e-s SUD Santé Sociaux | I54: =RECAPITULATIF!D21 -> 35 | K54: sont à votre disposition
A55: pour tous renseignements complémentaires au poste : | M55: =RECAPITULATIF!D17 -> 2886 | R55: ='GRILLE IADE CN EXT'!B21 -> 7 | S55: ='GRILLE IADE CN EXT'!C21 -> 48 | T55: ='GRILLE IADE CN EXT'!D21 -> 529
R57: ='GRILLE IADE CN EXT'!B23 -> 8 | S57: ='GRILLE IADE CN EXT'!C23 -> 0 | T57: ='GRILLE IADE CN EXT'!D23 -> 560
A60: Recevez toutes nos salutations.
A63: =RECAPITULATIF!B5 -> Madame FERET Isabelle, Madame Anne PICHON et Monsieur Patrick GAUTIER
A65: SUD Santé Sociaux | E65: =RECAPITULATIF!D21 -> 35
A70: Tél : | B70: =RECAPITULATIF!D19 -> 02 99 21 28 86
A71: Mél : | C71: =RECAPITULATIF!C23 -> sudsante@ch-stmalo.fr
A72: =RECAPITULATIF!B25 -> Site Départemental Sud | F72: =RECAPITULATIF!D25 -> http://www.sudsantesociaux35.org

Sheet IADE CN EXT Echelon 4
G2: Commission Administrative
G3: Paritaire | M3: =RECAPITULATIF!D7 -> Locale
M9: Mme, Mr :
M11: Grade :
M13: Service :
A16: Votre ou vos représentant-e-s du personnel
A18: =RECAPITULATIF!B5 -> Madame FERET Isabelle, Madame Anne PICHON et Monsieur Patrick GAUTIER
A20: SUD Santé Sociaux | E20: =RECAPITULATIF!D21 -> 35 | F20: du:
A22: =RECAPITULATIF!B2 -> Centre Hospitalier de Saint Malo
A24: siégeant auprès de la CAP | F24: =RECAPITULATIF!D7 -> Locale | J24: du : | K24: =RECAPITULATIF!D11 -> 2019-04-16 | N24: vous informe de votre :
F27: AVANCEMENT D’ECHELON
A33: Vous passez à l’échelon : | F33: ='GRILLE IADE CN EXT'!B15 -> 4 | H33: Indice Majoré : | L33: ='GRILLE IADE CN EXT'!D15 -> 451
A36: Date d'effet : | F36: / | H36: / | I36: =RECAPITULATIF!D9 -> 2019 | R36: ='GRILLE IADE CN EXT'!B2 -> Infirmier Anesthésiste Classe Normale Extinction
A40: Ce qui représente un gain mensuel de : | I40: ='GRILLE IADE CN EXT'!D15-'GRILLE IADE CN EXT'!D13 -> 25 | K40: points d'indice.
R41: ='GRILLE IADE CN EXT'!B7 -> Echelon | S41: ='GRILLE IADE CN EXT'!C7 -> Durée (en mois) | T41: ='GRILLE IADE CN EXT'!D7 -> Indice Majoré
A43: Pour information, la valeur brute du point d'indice | R43: ='GRILLE IADE CN EXT'!B9 -> 1 | S43: ='GRILLE IADE CN EXT'!C9 -> 12 | T43: ='GRILLE IADE CN EXT'!D9 -> 379
R45: ='GRILLE IADE CN EXT'!B11 -> 2 | S45: ='GRILLE IADE CN EXT'!C11 -> 24 | T45: ='GRILLE IADE CN EXT'!D11 -> 406
A46: est de | C46: =RECAPITULATIF!D13 -> 4.686 € | E46: au | F46: =RECAPITULATIF!D15 -> 2019-01-01
R47: ='GRILLE IADE CN EXT'!B13 -> 3 | S47: ='GRILLE IADE CN EXT'!C13 -> 36 | T47: ='GRILLE IADE CN EXT'!D13 -> 426
A49: Soit un gain net mensuel de : | G49: =I40*C46*0.8315 -> 97.41 € | R49: ='GRILLE IADE CN EXT'!B15 -> 4 | S49: ='GRILLE IADE CN EXT'!C15 -> 36 | T49: ='GRILLE IADE CN EXT'!D15 -> 451
R51: ='GRILLE IADE CN EXT'!B17 -> 5 | S51: ='GRILLE IADE CN EXT'!C17 -> 48 | T51: ='GRILLE IADE CN EXT'!D17 -> 474
R53: ='GRILLE IADE CN EXT'!B19 -> 6 | S53: ='GRILLE IADE CN EXT'!C19 -> 48 | T53: ='GRILLE IADE CN EXT'!D19 -> 500
A54: Vos représentant-e-s SUD Santé Sociaux | I54: =RECAPITULATIF!D21 -> 35 | K54: sont à votre disposition
A55: pour tous renseignements complémentaires au poste : | M55: =RECAPITULATIF!D17 -> 2886 | R55: ='GRILLE IADE CN EXT'!B21 -> 7 | S55: ='GRILLE IADE CN EXT'!C21 -> 48 | T55: ='GRILLE IADE CN EXT'!D21 -> 529
R57: ='GRILLE IADE CN EXT'!B23 -> 8 | S57: ='GRILLE IADE CN EXT'!C23 -> 0 | T57: ='GRILLE IADE CN EXT'!D23 -> 560
A60: Recevez toutes nos salutations.
A63: =RECAPITULATIF!B5 -> Madame FERET Isabelle, Madame Anne PICHON et Monsieur Patrick GAUTIER
A65: SUD Santé Sociaux | E65: =RECAPITULATIF!D21 -> 35
A70: Tél : | B70: =RECAPITULATIF!D19 -> 02 99 21 28 86
A71: Mél : | C71: =RECAPITULATIF!C23 -> sudsante@ch-stmalo.fr
A72: =RECAPITULATIF!B25 -> Site Départemental Sud | F72: =RECAPITULATIF!D25 -> http://www.sudsantesociaux35.org

Sheet IADE CN EXT Echelon 5
G2: Commission Administrative
G3: Paritaire | M3: =RECAPITULATIF!D7 -> Locale
M9: Mme, Mr :
M11: Grade :
M13: Service :
A16: Votre ou vos représentant-e-s du personnel
A18: =RECAPITULATIF!B5 -> Madame FERET Isabelle, Madame Anne PICHON et Monsieur Patrick GAUTIER
A20: SUD Santé Sociaux | E20: =RECAPITULATIF!D21 -> 35 | F20: du:
A22: =RECAPITULATIF!B2 -> Centre Hospitalier de Saint Malo
A24: siégeant auprès de la CAP | F24: =RECAPITULATIF!D7 -> Locale | J24: du : | K24: =RECAPITULATIF!D11 -> 2019-04-16 | N24: vous informe de votre :
F27: AVANCEMENT D’ECHELON
A33: Vous passez à l’échelon : | F33: ='GRILLE IADE CN EXT'!B17 -> 5 | H33: Indice Majoré : | L33: ='GRILLE IADE CN EXT'!D17 -> 474
A36: Date d'effet : | F36: / | H36: / | I36: =RECAPITULATIF!D9 -> 2019 | R36: ='GRILLE IADE CN EXT'!B2 -> Infirmier Anesthésiste Classe Normale Extinction
A40: Ce qui représente un gain mensuel de : | I40: ='GRILLE IADE CN EXT'!D17-'GRILLE IADE CN EXT'!D15 -> 23 | K40: points d'indice.
R41: ='GRILLE IADE CN EXT'!B7 -> Echelon | S41: ='GRILLE IADE CN EXT'!C7 -> Durée (en mois) | T41: ='GRILLE IADE CN EXT'!D7 -> Indice Majoré
A43: Pour information, la valeur brute du point d'indice | R43: ='GRILLE IADE CN EXT'!B9 -> 1 | S43: ='GRILLE IADE CN EXT'!C9 -> 12 | T43: ='GRILLE IADE CN EXT'!D9 -> 379
R45: ='GRILLE IADE CN EXT'!B11 -> 2 | S45: ='GRILLE IADE CN EXT'!C11 -> 24 | T45: ='GRILLE IADE CN EXT'!D11 -> 406
A46: est de | C46: =RECAPITULATIF!D13 -> 4.686 € | E46: au | F46: =RECAPITULATIF!D15 -> 2019-01-01
R47: ='GRILLE IADE CN EXT'!B13 -> 3 | S47: ='GRILLE IADE CN EXT'!C13 -> 36 | T47: ='GRILLE IADE CN EXT'!D13 -> 426
A49: Soit un gain net mensuel de : | G49: =I40*C46*0.8315 -> 89.62 € | R49: ='GRILLE IADE CN EXT'!B15 -> 4 | S49: ='GRILLE IADE CN EXT'!C15 -> 36 | T49: ='GRILLE IADE CN EXT'!D15 -> 451
R51: ='GRILLE IADE CN EXT'!B17 -> 5 | S51: ='GRILLE IADE CN EXT'!C17 -> 48 | T51: ='GRILLE IADE CN EXT'!D17 -> 474
R53: ='GRILLE IADE CN EXT'!B19 -> 6 | S53: ='GRILLE IADE CN EXT'!C19 -> 48 | T53: ='GRILLE IADE CN EXT'!D19 -> 500
A54: Vos représentant-e-s SUD Santé Sociaux | I54: =RECAPITULATIF!D21 -> 35 | K54: sont à votre disposition
A55: pour tous renseignements complémentaires au poste : | M55: =RECAPITULATIF!D17 -> 2886 | R55: ='GRILLE IADE CN EXT'!B21 -> 7 | S55: ='GRILLE IADE CN EXT'!C21 -> 48 | T55: ='GRILLE IADE CN EXT'!D21 -> 529
R57: ='GRILLE IADE CN EXT'!B23 -> 8 | S57: ='GRILLE IADE CN EXT'!C23 -> 0 | T57: ='GRILLE IADE CN EXT'!D23 -> 560
A60: Recevez toutes nos salutations.
A63: =RECAPITULATIF!B5 -> Madame FERET Isabelle, Madame Anne PICHON et Monsieur Patrick GAUTIER
A65: SUD Santé Sociaux | E65: =RECAPITULATIF!D21 -> 35
A70: Tél : | B70: =RECAPITULATIF!D19 -> 02 99 21 28 86
A71: Mél : | C71: =RECAPITULATIF!C23 -> sudsante@ch-stmalo.fr
A72: =RECAPITULATIF!B25 -> Site Départemental Sud | F72: =RECAPITULATIF!D25 -> http://www.sudsantesociaux35.org

Sheet IADE CN EXT Echelon 6
G2: Commission Administrative
G3: Paritaire | M3: =RECAPITULATIF!D7 -> Locale
M9: Mme, Mr :
M11: Grade :
M13: Service :
A16: Votre ou vos représentant-e-s du personnel
A18: =RECAPITULATIF!B5 -> Madame FERET Isabelle, Madame Anne PICHON et Monsieur Patrick GAUTIER
A20: SUD Santé Sociaux | E20: =RECAPITULATIF!D21 -> 35 | F20: du:
A22: =RECAPITULATIF!B2 -> Centre Hospitalier de Saint Malo
A24: siégeant auprès de la CAP | F24: =RECAPITULATIF!D7 -> Locale | J24: du : | K24: =RECAPITULATIF!D11 -> 2019-04-16 | N24: vous informe de votre :
F27: AVANCEMENT D’ECHELON
A33: Vous passez à l’échelon : | F33: ='GRILLE IADE CN EXT'!B19 -> 6 | H33: Indice Majoré : | L33: ='GRILLE IADE CN EXT'!D19 -> 500
A36: Date d'effet : | F36: / | H36: / | I36: =RECAPITULATIF!D9 -> 2019 | R36: ='GRILLE IADE CN EXT'!B2 -> Infirmier Anesthésiste Classe Normale Extinction
A40: Ce qui représente un gain mensuel de : | I40: ='GRILLE IADE CN EXT'!D19-'GRILLE IADE CN EXT'!D17 -> 26 | K40: points d'indice.
R41: ='GRILLE IADE CN EXT'!B7 -> Echelon | S41: ='GRILLE IADE CN EXT'!C7 -> Durée (en mois) | T41: ='GRILLE IADE CN EXT'!D7 -> Indice Majoré
A43: Pour information, la valeur brute du point d'indice | R43: ='GRILLE IADE CN EXT'!B9 -> 1 | S43: ='GRILLE IADE CN EXT'!C9 -> 12 | T43: ='GRILLE IADE CN EXT'!D9 -> 379
R45: ='GRILLE IADE CN EXT'!B11 -> 2 | S45: ='GRILLE IADE CN EXT'!C11 -> 24 | T45: ='GRILLE IADE CN EXT'!D11 -> 406
A46: est de | C46: =RECAPITULATIF!D13 -> 4.686 € | E46: au | F46: =RECAPITULATIF!D15 -> 2019-01-01
R47: ='GRILLE IADE CN EXT'!B13 -> 3 | S47: ='GRILLE IADE CN EXT'!C13 -> 36 | T47: ='GRILLE IADE CN EXT'!D13 -> 426
A49: Soit un gain net mensuel de : | G49: =I40*C46*0.8315 -> 101.31 € | R49: ='GRILLE IADE CN EXT'!B15 -> 4 | S49: ='GRILLE IADE CN EXT'!C15 -> 36 | T49: ='GRILLE IADE CN EXT'!D15 -> 451
R51: ='GRILLE IADE CN EXT'!B17 -> 5 | S51: ='GRILLE IADE CN EXT'!C17 -> 48 | T51: ='GRILLE IADE CN EXT'!D17 -> 474
R53: ='GRILLE IADE CN EXT'!B19 -> 6 | S53: ='GRILLE IADE CN EXT'!C19 -> 48 | T53: ='GRILLE IADE CN EXT'!D19 -> 500
A54: Vos représentant-e-s SUD Santé Sociaux | I54: =RECAPITULATIF!D21 -> 35 | K54: sont à votre disposition
A55: pour tous renseignements complémentaires au poste : | M55: =RECAPITULATIF!D17 -> 2886 | R55: ='GRILLE IADE CN EXT'!B21 -> 7 | S55: ='GRILLE IADE CN EXT'!C21 -> 48 | T55: ='GRILLE IADE CN EXT'!D21 -> 529
R57: ='GRILLE IADE CN EXT'!B23 -> 8 | S57: ='GRILLE IADE CN EXT'!C23 -> 0 | T57: ='GRILLE IADE CN EXT'!D23 -> 560
A60: Recevez toutes nos salutations.
A63: =RECAPITULATIF!B5 -> Madame FERET Isabelle, Madame Anne PICHON et Monsieur Patrick GAUTIER
A65: SUD Santé Sociaux | E65: =RECAPITULATIF!D21 -> 35
A70: Tél : | B70: =RECAPITULATIF!D19 -> 02 99 21 28 86
A71: Mél : | C71: =RECAPITULATIF!C23 -> sudsante@ch-stmalo.fr
A72: =RECAPITULATIF!B25 -> Site Départemental Sud | F72: =RECAPITULATIF!D25 -> http://www.sudsantesociaux35.org

Sheet IADE CN EXT Echelon 7
G2: Commission Administrative
G3: Paritaire | M3: =RECAPITULATIF!D7 -> Locale
M9: Mme, Mr :
M11: Grade :
M13: Service :
A16: Votre ou vos représentant-e-s du personnel
A18: =RECAPITULATIF!B5 -> Madame FERET Isabelle, Madame Anne PICHON et Monsieur Patrick GAUTIER
A20: SUD Santé Sociaux | E20: =RECAPITULATIF!D21 -> 35 | F20: du:
A22: =RECAPITULATIF!B2 -> Centre Hospitalier de Saint Malo
A24: siégeant auprès de la CAP | F24: =RECAPITULATIF!D7 -> Locale | J24: du : | K24: =RECAPITULATIF!D11 -> 2019-04-16 | N24: vous informe de votre :
F27: AVANCEMENT D’ECHELON
A33: Vous passez à l’échelon : | F33: ='GRILLE IADE CN EXT'!B21 -> 7 | H33: Indice Majoré : | L33: ='GRILLE IADE CN EXT'!D21 -> 529
A36: Date d'effet : | F36: / | H36: / | I36: =RECAPITULATIF!D9 -> 2019 | R36: ='GRILLE IADE CN EXT'!B2 -> Infirmier Anesthésiste Classe Normale Extinction
A40: Ce qui représente un gain mensuel de : | I40: ='GRILLE IADE CN EXT'!D21-'GRILLE IADE CN EXT'!D19 -> 29 | K40: points d'indice.
R41: ='GRILLE IADE CN EXT'!B7 -> Echelon | S41: ='GRILLE IADE CN EXT'!C7 -> Durée (en mois) | T41: ='GRILLE IADE CN EXT'!D7 -> Indice Majoré
A43: Pour information, la valeur brute du point d'indice | R43: ='GRILLE IADE CN EXT'!B9 -> 1 | S43: ='GRILLE IADE CN EXT'!C9 -> 12 | T43: ='GRILLE IADE CN EXT'!D9 -> 379
R45: ='GRILLE IADE CN EXT'!B11 -> 2 | S45: ='GRILLE IADE CN EXT'!C11 -> 24 | T45: ='GRILLE IADE CN EXT'!D11 -> 406
A46: est de | C46: =RECAPITULATIF!D13 -> 4.686 € | E46: au | F46: =RECAPITULATIF!D15 -> 2019-01-01
R47: ='GRILLE IADE CN EXT'!B13 -> 3 | S47: ='GRILLE IADE CN EXT'!C13 -> 36 | T47: ='GRILLE IADE CN EXT'!D13 -> 426
A49: Soit un gain net mensuel de : | G49: =I40*C46*0.8315 -> 113.00 € | R49: ='GRILLE IADE CN EXT'!B15 -> 4 | S49: ='GRILLE IADE CN EXT'!C15 -> 36 | T49: ='GRILLE IADE CN EXT'!D15 -> 451
R51: ='GRILLE IADE CN EXT'!B17 -> 5 | S51: ='GRILLE IADE CN EXT'!C17 -> 48 | T51: ='GRILLE IADE CN EXT'!D17 -> 474
R53: ='GRILLE IADE CN EXT'!B19 -> 6 | S53: ='GRILLE IADE CN EXT'!C19 -> 48 | T53: ='GRILLE IADE CN EXT'!D19 -> 500
A54: Vos représentant-e-s SUD Santé Sociaux | I54: =RECAPITULATIF!D21 -> 35 | K54: sont à votre disposition
A55: pour tous renseignements complémentaires au poste : | M55: =RECAPITULATIF!D17 -> 2886 | R55: ='GRILLE IADE CN EXT'!B21 -> 7 | S55: ='GRILLE IADE CN EXT'!C21 -> 48 | T55: ='GRILLE IADE CN EXT'!D21 -> 529
R57: ='GRILLE IADE CN EXT'!B23 -> 8 | S57: ='GRILLE IADE CN EXT'!C23 -> 0 | T57: ='GRILLE IADE CN EXT'!D23 -> 560
A60: Recevez toutes nos salutations.
A63: =RECAPITULATIF!B5 -> Madame FERET Isabelle, Madame Anne PICHON et Monsieur Patrick GAUTIER
A65: SUD Santé Sociaux | E65: =RECAPITULATIF!D21 -> 35
A70: Tél : | B70: =RECAPITULATIF!D19 -> 02 99 21 28 86
A71: Mél : | C71: =RECAPITULATIF!C23 -> sudsante@ch-stmalo.fr
A72: =RECAPITULATIF!B25 -> Site Départemental Sud | F72: =RECAPITULATIF!D25 -> http://www.sudsantesociaux35.org

Sheet IADE CN EXT Echelon 8
G2: Commission Administrative
G3: Paritaire | M3: =RECAPITULATIF!D7 -> Locale
M9: Mme, Mr :
M11: Grade :
M13: Service :
A16: Votre ou vos représentant-e-s du personnel
A18: =RECAPITULATIF!B5 -> Madame FERET Isabelle, Madame Anne PICHON et Monsieur Patrick GAUTIER
A20: SUD Santé Sociaux | E20: =RECAPITULATIF!D21 -> 35 | F20: du:
A22: =RECAPITULATIF!B2 -> Centre Hospitalier de Saint Malo
A24: siégeant auprès de la CAP | F24: =RECAPITULATIF!D7 -> Locale | J24: du : | K24: =RECAPITULATIF!D11 -> 2019-04-16 | N24: vous informe de votre :
F27: AVANCEMENT D’ECHELON
A33: Vous passez à l’échelon : | F33: ='GRILLE IADE CN EXT'!B23 -> 8 | H33: Indice Majoré : | L33: ='GRILLE IADE CN EXT'!D23 -> 560
A36: Date d'effet : | F36: / | H36: / | I36: =RECAPITULATIF!D9 -> 2019 | R36: ='GRILLE IADE CN EXT'!B2 -> Infirmier Anesthésiste Classe Normale Extinction
A40: Ce qui représente un gain mensuel de : | I40: ='GRILLE IADE CN EXT'!D23-'GRILLE IADE CN EXT'!D21 -> 31 | K40: points d'indice.
R41: ='GRILLE IADE CN EXT'!B7 -> Echelon | S41: ='GRILLE IADE CN EXT'!C7 -> Durée (en mois) | T41: ='GRILLE IADE CN EXT'!D7 -> Indice Majoré
A43: Pour information, la valeur brute du point d'indice | R43: ='GRILLE IADE CN EXT'!B9 -> 1 | S43: ='GRILLE IADE CN EXT'!C9 -> 12 | T43: ='GRILLE IADE CN EXT'!D9 -> 379
R45: ='GRILLE IADE CN EXT'!B11 -> 2 | S45: ='GRILLE IADE CN EXT'!C11 -> 24 | T45: ='GRILLE IADE CN EXT'!D11 -> 406
A46: est de | C46: =RECAPITULATIF!D13 -> 4.686 € | E46: au | F46: =RECAPITULATIF!D15 -> 2019-01-01
R47: ='GRILLE IADE CN EXT'!B13 -> 3 | S47: ='GRILLE IADE CN EXT'!C13 -> 36 | T47: ='GRILLE IADE CN EXT'!D13 -> 426
A49: Soit un gain net mensuel de : | G49: =I40*C46*0.8315 -> 120.79 € | R49: ='GRILLE IADE CN EXT'!B15 -> 4 | S49: ='GRILLE IADE CN EXT'!C15 -> 36 | T49: ='GRILLE IADE CN EXT'!D15 -> 451
R51: ='GRILLE IADE CN EXT'!B17 -> 5 | S51: ='GRILLE IADE CN EXT'!C17 -> 48 | T51: ='GRILLE IADE CN EXT'!D17 -> 474
R53: ='GRILLE IADE CN EXT'!B19 -> 6 | S53: ='GRILLE IADE CN EXT'!C19 -> 48 | T53: ='GRILLE IADE CN EXT'!D19 -> 500
A54: Vos représentant-e-s SUD Santé Sociaux | I54: =RECAPITULATIF!D21 -> 35 | K54: sont à votre disposition
A55: pour tous renseignements complémentaires au poste : | M55: =RECAPITULATIF!D17 -> 2886 | R55: ='GRILLE IADE CN EXT'!B21 -> 7 | S55: ='GRILLE IADE CN EXT'!C21 -> 48 | T55: ='GRILLE IADE CN EXT'!D21 -> 529
R57: ='GRILLE IADE CN EXT'!B23 -> 8 | S57: ='GRILLE IADE CN EXT'!C23 -> 0 | T57: ='GRILLE IADE CN EXT'!D23 -> 560
A60: Recevez toutes nos salutations.
A63: =RECAPITULATIF!B5 -> Madame FERET Isabelle, Madame Anne PICHON et Monsieur Patrick GAUTIER
A65: SUD Santé Sociaux | E65: =RECAPITULATIF!D21 -> 35
A70: Tél : | B70: =RECAPITULATIF!D19 -> 02 99 21 28 86
A71: Mél : | C71: =RECAPITULATIF!C23 -> sudsante@ch-stmalo.fr
A72: =RECAPITULATIF!B25 -> Site Départemental Sud | F72: =RECAPITULATIF!D25 -> http://www.sudsantesociaux35.org

Sheet GRILLE IADE CS EXT
B2: Infirmier Anesthésiste Classe Supérieure Extinction
B7: Echelon | C7: Durée (en mois) | D7: Indice Majoré
B9: 1 | C9: 24 | D9: 467
B11: 2 | C11: 24 | D11: 495
B13: 3 | C13: 24 | D13: 514
B15: 4 | C15: 36 | D15: 537
B17: 5 | C17: 36 | D17: 560
B19: 6 | C19: 42 | D19: 579
B21: 7 | D21: 617

Sheet IMP GRILLE IADE CS EXT
B2: 1) Imprimez autant de feuilles que d'agents concernés.
B4: 2) Pliez en 3 au niveau du repère, deux petits traits noirs.
B6: 3) Inserrez ce courrier dans une enveloppe 110 X 220 à fenêtre.

Sheet IADE CS EXT Echelon 2
G2: Commission Administrative
G3: Paritaire | M3: =RECAPITULATIF!D7 -> Locale
M9: Mme, Mr :
M11: Grade :
M13: Service :
A16: Votre ou vos représentant-e-s du personnel
A18: =RECAPITULATIF!B5 -> Madame FERET Isabelle, Madame Anne PICHON et Monsieur Patrick GAUTIER
A20: SUD Santé Sociaux | E20: =RECAPITULATIF!D21 -> 35 | F20: du:
A22: =RECAPITULATIF!B2 -> Centre Hospitalier de Saint Malo
A24: siégeant auprès de la CAP | F24: =RECAPITULATIF!D7 -> Locale | J24: du : | K24: =RECAPITULATIF!D11 -> 2019-04-16 | N24: vous informe de votre :
F27: AVANCEMENT D’ECHELON
A33: Vous passez à l’échelon : | F33: ='GRILLE IADE CS EXT'!B11 -> 2 | H33: Indice Majoré : | L33: ='GRILLE IADE CS EXT'!D11 -> 495
A36: Date d'effet : | F36: / | H36: / | I36: =RECAPITULATIF!D9 -> 2019 | R36: ='GRILLE IADE CS EXT'!B2 -> Infirmier Anesthésiste Classe Supérieure Extinction
A40: Ce qui représente un gain mensuel de : | I40: ='GRILLE IADE CS EXT'!D11-'GRILLE IADE CS EXT'!D9 -> 28 | K40: points d'indice.
R41: ='GRILLE IADE CS EXT'!B7 -> Echelon | S41: ='GRILLE IADE CS EXT'!C7 -> Durée (en mois) | T41: ='GRILLE IADE CS EXT'!D7 -> Indice Majoré
A43: Pour information, la valeur brute du point d'indice | R43: ='GRILLE IADE CS EXT'!B9 -> 1 | S43: ='GRILLE IADE CS EXT'!C9 -> 24 | T43: ='GRILLE IADE CS EXT'!D9 -> 467
R45: ='GRILLE IADE CS EXT'!B11 -> 2 | S45: ='GRILLE IADE CS EXT'!C11 -> 24 | T45: ='GRILLE IADE CS EXT'!D11 -> 495
A46: est de | C46: =RECAPITULATIF!D13 -> 4.686 € | E46: au | F46: =RECAPITULATIF!D15 -> 2019-01-01
R47: ='GRILLE IADE CS EXT'!B13 -> 3 | S47: ='GRILLE IADE CS EXT'!C13 -> 24 | T47: ='GRILLE IADE CS EXT'!D13 -> 514
A49: Soit un gain net mensuel de : | G49: =I40*C46*0.8315 -> 109.10 € | R49: ='GRILLE IADE CS EXT'!B15 -> 4 | S49: ='GRILLE IADE CS EXT'!C15 -> 36 | T49: ='GRILLE IADE CS EXT'!D15 -> 537
R51: ='GRILLE IADE CS EXT'!B17 -> 5 | S51: ='GRILLE IADE CS EXT'!C17 -> 36 | T51: ='GRILLE IADE CS EXT'!D17 -> 560
R53: ='GRILLE IADE CS EXT'!B19 -> 6 | S53: ='GRILLE IADE CS EXT'!C19 -> 42 | T53: ='GRILLE IADE CS EXT'!D19 -> 579
A54: Vos représentant-e-s SUD Santé Sociaux | I54: =RECAPITULATIF!D21 -> 35 | K54: sont à votre disposition
A55: pour tous renseignements complémentaires au poste : | M55: =RECAPITULATIF!D17 -> 2886 | R55: ='GRILLE IADE CS EXT'!B21 -> 7 | S55: ='GRILLE IADE CS EXT'!C21 -> 0 | T55: ='GRILLE IADE CS EXT'!D21 -> 617
R57: ='GRILLE IADE CS EXT'!B23 -> 0 | S57: ='GRILLE IADE CN EXT'!C23 -> 0
A60: Recevez toutes nos salutations.
A63: =RECAPITULATIF!B5 -> Madame FERET Isabelle, Madame Anne PICHON et Monsieur Patrick GAUTIER
A65: SUD Santé Sociaux | E65: =RECAPITULATIF!D21 -> 35
A70: Tél : | B70: =RECAPITULATIF!D19 -> 02 99 21 28 86
A71: Mél : | C71: =RECAPITULATIF!C23 -> sudsante@ch-stmalo.fr
A72: =RECAPITULATIF!B25 -> Site Départemental Sud | F72: =RECAPITULATIF!D25 -> http://www.sudsantesociaux35.org

Sheet IADE CS EXT Echelon 3
G2: Commission Administrative
G3: Paritaire | M3: =RECAPITULATIF!D7 -> Locale
M9: Mme, Mr :
M11: Grade :
M13: Service :
A16: Votre ou vos représentant-e-s du personnel
A18: =RECAPITULATIF!B5 -> Madame FERET Isabelle, Madame Anne PICHON et Monsieur Patrick GAUTIER
A20: SUD Santé Sociaux | E20: =RECAPITULATIF!D21 -> 35 | F20: du:
A22: =RECAPITULATIF!B2 -> Centre Hospitalier de Saint Malo
A24: siégeant auprès de la CAP | F24: =RECAPITULATIF!D7 -> Locale | J24: du : | K24: =RECAPITULATIF!D11 -> 2019-04-16 | N24: vous informe de votre :
F27: AVANCEMENT D’ECHELON
A33: Vous passez à l’échelon : | F33: ='GRILLE IADE CS EXT'!B13 -> 3 | H33: Indice Majoré : | L33: ='GRILLE IADE CS EXT'!D13 -> 514
A36: Date d'effet : | F36: / | H36: / | I36: =RECAPITULATIF!D9 -> 2019 | R36: ='GRILLE IADE CS EXT'!B2 -> Infirmier Anesthésiste Classe Supérieure Extinction
A40: Ce qui représente un gain mensuel de : | I40: ='GRILLE IADE CS EXT'!D13-'GRILLE IADE CS EXT'!D11 -> 19 | K40: points d'indice.
R41: ='GRILLE IADE CS EXT'!B7 -> Echelon | S41: ='GRILLE IADE CS EXT'!C7 -> Durée (en mois) | T41: ='GRILLE IADE CS EXT'!D7 -> Indice Majoré
A43: Pour information, la valeur brute du point d'indice | R43: ='GRILLE IADE CS EXT'!B9 -> 1 | S43: ='GRILLE IADE CS EXT'!C9 -> 24 | T43: ='GRILLE IADE CS EXT'!D9 -> 467
R45: ='GRILLE IADE CS EXT'!B11 -> 2 | S45: ='GRILLE IADE CS EXT'!C11 -> 24 | T45: ='GRILLE IADE CS EXT'!D11 -> 495
A46: est de | C46: =RECAPITULATIF!D13 -> 4.686 € | E46: au | F46: =RECAPITULATIF!D15 -> 2019-01-01
R47: ='GRILLE IADE CS EXT'!B13 -> 3 | S47: ='GRILLE IADE CS EXT'!C13 -> 24 | T47: ='GRILLE IADE CS EXT'!D13 -> 514
A49: Soit un gain net mensuel de : | G49: =I40*C46*0.8315 -> 74.03 € | R49: ='GRILLE IADE CS EXT'!B15 -> 4 | S49: ='GRILLE IADE CS EXT'!C15 -> 36 | T49: ='GRILLE IADE CS EXT'!D15 -> 537
R51: ='GRILLE IADE CS EXT'!B17 -> 5 | S51: ='GRILLE IADE CS EXT'!C17 -> 36 | T51: ='GRILLE IADE CS EXT'!D17 -> 560
R53: ='GRILLE IADE CS EXT'!B19 -> 6 | S53: ='GRILLE IADE CS EXT'!C19 -> 42 | T53: ='GRILLE IADE CS EXT'!D19 -> 579
A54: Vos représentant-e-s SUD Santé Sociaux | I54: =RECAPITULATIF!D21 -> 35 | K54: sont à votre disposition
A55: pour tous renseignements complémentaires au poste : | M55: =RECAPITULATIF!D17 -> 2886 | R55: ='GRILLE IADE CS EXT'!B21 -> 7 | S55: ='GRILLE IADE CS EXT'!C21 -> 0 | T55: ='GRILLE IADE CS EXT'!D21 -> 617
R57: ='GRILLE IADE CS EXT'!B23 -> 0 | S57: ='GRILLE IADE CN EXT'!C23 -> 0
A60: Recevez toutes nos salutations.
A63: =RECAPITULATIF!B5 -> Madame FERET Isabelle, Madame Anne PICHON et Monsieur Patrick GAUTIER
A65: SUD Santé Sociaux | E65: =RECAPITULATIF!D21 -> 35
A70: Tél : | B70: =RECAPITULATIF!D19 -> 02 99 21 28 86
A71: Mél : | C71: =RECAPITULATIF!C23 -> sudsante@ch-stmalo.fr
A72: =RECAPITULATIF!B25 -> Site Départemental Sud | F72: =RECAPITULATIF!D25 -> http://www.sudsantesociaux35.org

Sheet IADE CS EXT Echelon 4
G2: Commission Administrative
G3: Paritaire | M3: =RECAPITULATIF!D7 -> Locale
M9: Mme, Mr :
M11: Grade :
M13: Service :
A16: Votre ou vos représentant-e-s du personnel
A18: =RECAPITULATIF!B5 -> Madame FERET Isabelle, Madame Anne PICHON et Monsieur Patrick GAUTIER
A20: SUD Santé Sociaux | E20: =RECAPITULATIF!D21 -> 35 | F20: du:
A22: =RECAPITULATIF!B2 -> Centre Hospitalier de Saint Malo
A24: siégeant auprès de la CAP | F24: =RECAPITULATIF!D7 -> Locale | J24: du : | K24: =RECAPITULATIF!D11 -> 2019-04-16 | N24: vous informe de votre :
F27: AVANCEMENT D’ECHELON
A33: Vous passez à l’échelon : | F33: ='GRILLE IADE CS EXT'!B15 -> 4 | H33: Indice Majoré : | L33: ='GRILLE IADE CS EXT'!D15 -> 537
A36: Date d'effet : | F36: / | H36: / | I36: =RECAPITULATIF!D9 -> 2019 | R36: ='GRILLE IADE CS EXT'!B2 -> Infirmier Anesthésiste Classe Supérieure Extinction
A40: Ce qui représente un gain mensuel de : | I40: ='GRILLE IADE CS EXT'!D15-'GRILLE IADE CS EXT'!D13 -> 23 | K40: points d'indice.
R41: ='GRILLE IADE CS EXT'!B7 -> Echelon | S41: ='GRILLE IADE CS EXT'!C7 -> Durée (en mois) | T41: ='GRILLE IADE CS EXT'!D7 -> Indice Majoré
A43: Pour information, la valeur brute du point d'indice | R43: ='GRILLE IADE CS EXT'!B9 -> 1 | S43: ='GRILLE IADE CS EXT'!C9 -> 24 | T43: ='GRILLE IADE CS EXT'!D9 -> 467
R45: ='GRILLE IADE CS EXT'!B11 -> 2 | S45: ='GRILLE IADE CS EXT'!C11 -> 24 | T45: ='GRILLE IADE CS EXT'!D11 -> 495
A46: est de | C46: =RECAPITULATIF!D13 -> 4.686 € | E46: au | F46: =RECAPITULATIF!D15 -> 2019-01-01
R47: ='GRILLE IADE CS EXT'!B13 -> 3 | S47: ='GRILLE IADE CS EXT'!C13 -> 24 | T47: ='GRILLE IADE CS EXT'!D13 -> 514
A49: Soit un gain net mensuel de : | G49: =I40*C46*0.8315 -> 89.62 € | R49: ='GRILLE IADE CS EXT'!B15 -> 4 | S49: ='GRILLE IADE CS EXT'!C15 -> 36 | T49: ='GRILLE IADE CS EXT'!D15 -> 537
R51: ='GRILLE IADE CS EXT'!B17 -> 5 | S51: ='GRILLE IADE CS EXT'!C17 -> 36 | T51: ='GRILLE IADE CS EXT'!D17 -> 560
R53: ='GRILLE IADE CS EXT'!B19 -> 6 | S53: ='GRILLE IADE CS EXT'!C19 -> 42 | T53: ='GRILLE IADE CS EXT'!D19 -> 579
A54: Vos représentant-e-s SUD Santé Sociaux | I54: =RECAPITULATIF!D21 -> 35 | K54: sont à votre disposition
A55: pour tous renseignements complémentaires au poste : | M55: =RECAPITULATIF!D17 -> 2886 | R55: ='GRILLE IADE CS EXT'!B21 -> 7 | S55: ='GRILLE IADE CS EXT'!C21 -> 0 | T55: ='GRILLE IADE CS EXT'!D21 -> 617
R57: ='GRILLE IADE CS EXT'!B23 -> 0 | S57: ='GRILLE IADE CN EXT'!C23 -> 0
A60: Recevez toutes nos salutations.
A63: =RECAPITULATIF!B5 -> Madame FERET Isabelle, Madame Anne PICHON et Monsieur Patrick GAUTIER
A65: SUD Santé Sociaux | E65: =RECAPITULATIF!D21 -> 35
A70: Tél : | B70: =RECAPITULATIF!D19 -> 02 99 21 28 86
A71: Mél : | C71: =RECAPITULATIF!C23 -> sudsante@ch-stmalo.fr
A72: =RECAPITULATIF!B25 -> Site Départemental Sud | F72: =RECAPITULATIF!D25 -> http://www.sudsantesociaux35.org

Sheet IADE CS EXT Echelon 5
G2: Commission Administrative
G3: Paritaire | M3: =RECAPITULATIF!D7 -> Locale
M9: Mme, Mr :
M11: Grade :
M13: Service :
A16: Votre ou vos représentant-e-s du personnel
A18: =RECAPITULATIF!B5 -> Madame FERET Isabelle, Madame Anne PICHON et Monsieur Patrick GAUTIER
A20: SUD Santé Sociaux | E20: =RECAPITULATIF!D21 -> 35 | F20: du:
A22: =RECAPITULATIF!B2 -> Centre Hospitalier de Saint Malo
A24: siégeant auprès de la CAP | F24: =RECAPITULATIF!D7 -> Locale | J24: du : | K24: =RECAPITULATIF!D11 -> 2019-04-16 | N24: vous informe de votre :
F27: AVANCEMENT D’ECHELON
A33: Vous passez à l’échelon : | F33: ='GRILLE IADE CS EXT'!B17 -> 5 | H33: Indice Majoré : | L33: ='GRILLE IADE CS EXT'!D17 -> 560
A36: Date d'effet : | F36: / | H36: / | I36: =RECAPITULATIF!D9 -> 2019 | R36: ='GRILLE IADE CS EXT'!B2 -> Infirmier Anesthésiste Classe Supérieure Extinction
A40: Ce qui représente un gain mensuel de : | I40: ='GRILLE IADE CS EXT'!D17-'GRILLE IADE CS EXT'!D15 -> 23 | K40: points d'indice.
R41: ='GRILLE IADE CS EXT'!B7 -> Echelon | S41: ='GRILLE IADE CS EXT'!C7 -> Durée (en mois) | T41: ='GRILLE IADE CS EXT'!D7 -> Indice Majoré
A43: Pour information, la valeur brute du point d'indice | R43: ='GRILLE IADE CS EXT'!B9 -> 1 | S43: ='GRILLE IADE CS EXT'!C9 -> 24 | T43: ='GRILLE IADE CS EXT'!D9 -> 467
R45: ='GRILLE IADE CS EXT'!B11 -> 2 | S45: ='GRILLE IADE CS EXT'!C11 -> 24 | T45: ='GRILLE IADE CS EXT'!D11 -> 495
A46: est de | C46: =RECAPITULATIF!D13 -> 4.686 € | E46: au | F46: =RECAPITULATIF!D15 -> 2019-01-01
R47: ='GRILLE IADE CS EXT'!B13 -> 3 | S47: ='GRILLE IADE CS EXT'!C13 -> 24 | T47: ='GRILLE IADE CS EXT'!D13 -> 514
A49: Soit un gain net mensuel de : | G49: =I40*C46*0.8315 -> 89.62 € | R49: ='GRILLE IADE CS EXT'!B15 -> 4 | S49: ='GRILLE IADE CS EXT'!C15 -> 36 | T49: ='GRILLE IADE CS EXT'!D15 -> 537
R51: ='GRILLE IADE CS EXT'!B17 -> 5 | S51: ='GRILLE IADE CS EXT'!C17 -> 36 | T51: ='GRILLE IADE CS EXT'!D17 -> 560
R53: ='GRILLE IADE CS EXT'!B19 -> 6 | S53: ='GRILLE IADE CS EXT'!C19 -> 42 | T53: ='GRILLE IADE CS EXT'!D19 -> 579
A54: Vos représentant-e-s SUD Santé Sociaux | I54: =RECAPITULATIF!D21 -> 35 | K54: sont à votre disposition
A55: pour tous renseignements complémentaires au poste : | M55: =RECAPITULATIF!D17 -> 2886 | R55: ='GRILLE IADE CS EXT'!B21 -> 7 | S55: ='GRILLE IADE CS EXT'!C21 -> 0 | T55: ='GRILLE IADE CS EXT'!D21 -> 617
R57: ='GRILLE IADE CS EXT'!B23 -> 0 | S57: ='GRILLE IADE CN EXT'!C23 -> 0
A60: Recevez toutes nos salutations.
A63: =RECAPITULATIF!B5 -> Madame FERET Isabelle, Madame Anne PICHON et Monsieur Patrick GAUTIER
A65: SUD Santé Sociaux | E65: =RECAPITULATIF!D21 -> 35
A70: Tél : | B70: =RECAPITULATIF!D19 -> 02 99 21 28 86
A71: Mél : | C71: =RECAPITULATIF!C23 -> sudsante@ch-stmalo.fr
A72: =RECAPITULATIF!B25 -> Site Départemental Sud | F72: =RECAPITULATIF!D25 -> http://www.sudsantesociaux35.org

Sheet IADE CS EXT Echelon 6
G2: Commission Administrative
G3: Paritaire | M3: =RECAPITULATIF!D7 -> Locale
M9: Mme, Mr :
M11: Grade :
M13: Service :
A16: Votre ou vos représentant-e-s du personnel
A18: =RECAPITULATIF!B5 -> Madame FERET Isabelle, Madame Anne PICHON et Monsieur Patrick GAUTIER
A20: SUD Santé Sociaux | E20: =RECAPITULATIF!D21 -> 35 | F20: du:
A22: =RECAPITULATIF!B2 -> Centre Hospitalier de Saint Malo
A24: siégeant auprès de la CAP | F24: =RECAPITULATIF!D7 -> Locale | J24: du : | K24: =RECAPITULATIF!D11 -> 2019-04-16 | N24: vous informe de votre :
F27: AVANCEMENT D’ECHELON
A33: Vous passez à l’échelon : | F33: ='GRILLE IADE CS EXT'!B19 -> 6 | H33: Indice Majoré : | L33: ='GRILLE IADE CS EXT'!D19 -> 579
A36: Date d'effet : | F36: / | H36: / | I36: =RECAPITULATIF!D9 -> 2019 | R36: ='GRILLE IADE CS EXT'!B2 -> Infirmier Anesthésiste Classe Supérieure Extinction
A40: Ce qui représente un gain mensuel de : | I40: ='GRILLE IADE CS EXT'!D19-'GRILLE IADE CS EXT'!D17 -> 19 | K40: points d'indice.
R41: ='GRILLE IADE CS EXT'!B7 -> Echelon | S41: ='GRILLE IADE CS EXT'!C7 -> Durée (en mois) | T41: ='GRILLE IADE CS EXT'!D7 -> Indice Majoré
A43: Pour information, la valeur brute du point d'indice | R43: ='GRILLE IADE CS EXT'!B9 -> 1 | S43: ='GRILLE IADE CS EXT'!C9 -> 24 | T43: ='GRILLE IADE CS EXT'!D9 -> 467
R45: ='GRILLE IADE CS EXT'!B11 -> 2 | S45: ='GRILLE IADE CS EXT'!C11 -> 24 | T45: ='GRILLE IADE CS EXT'!D11 -> 495
A46: est de | C46: =RECAPITULATIF!D13 -> 4.686 € | E46: au | F46: =RECAPITULATIF!D15 -> 2019-01-01
R47: ='GRILLE IADE CS EXT'!B13 -> 3 | S47: ='GRILLE IADE CS EXT'!C13 -> 24 | T47: ='GRILLE IADE CS EXT'!D13 -> 514
A49: Soit un gain net mensuel de : | G49: =I40*C46*0.8315 -> 74.03 € | R49: ='GRILLE IADE CS EXT'!B15 -> 4 | S49: ='GRILLE IADE CS EXT'!C15 -> 36 | T49: ='GRILLE IADE CS EXT'!D15 -> 537
R51: ='GRILLE IADE CS EXT'!B17 -> 5 | S51: ='GRILLE IADE CS EXT'!C17 -> 36 | T51: ='GRILLE IADE CS EXT'!D17 -> 560
R53: ='GRILLE IADE CS EXT'!B19 -> 6 | S53: ='GRILLE IADE CS EXT'!C19 -> 42 | T53: ='GRILLE IADE CS EXT'!D19 -> 579
A54: Vos représentant-e-s SUD Santé Sociaux | I54: =RECAPITULATIF!D21 -> 35 | K54: sont à votre disposition
A55: pour tous renseignements complémentaires au poste : | M55: =RECAPITULATIF!D17 -> 2886 | R55: ='GRILLE IADE CS EXT'!B21 -> 7 | S55: ='GRILLE IADE CS EXT'!C21 -> 0 | T55: ='GRILLE IADE CS EXT'!D21 -> 617
R57: ='GRILLE IADE CS EXT'!B23 -> 0 | S57: ='GRILLE IADE CN EXT'!C23 -> 0
A60: Recevez toutes nos salutations.
A63: =RECAPITULATIF!B5 -> Madame FERET Isabelle, Madame Anne PICHON et Monsieur Patrick GAUTIER
A65: SUD Santé Sociaux | E65: =RECAPITULATIF!D21 -> 35
A70: Tél : | B70: =RECAPITULATIF!D19 -> 02 99 21 28 86
A71: Mél : | C71: =RECAPITULATIF!C23 -> sudsante@ch-stmalo.fr
A72: =RECAPITULATIF!B25 -> Site Départemental Sud | F72: =RECAPITULATIF!D25 -> http://www.sudsantesociaux35.org

Sheet IADE CS EXT Echelon 7
G2: Commission Administrative
G3: Paritaire | M3: =RECAPITULATIF!D7 -> Locale
M9: Mme, Mr :
M11: Grade :
M13: Service :
A16: Votre ou vos représentant-e-s du personnel
A18: =RECAPITULATIF!B5 -> Madame FERET Isabelle, Madame Anne PICHON et Monsieur Patrick GAUTIER
A20: SUD Santé Sociaux | E20: =RECAPITULATIF!D21 -> 35 | F20: du:
A22: =RECAPITULATIF!B2 -> Centre Hospitalier de Saint Malo
A24: siégeant auprès de la CAP | F24: =RECAPITULATIF!D7 -> Locale | J24: du : | K24: =RECAPITULATIF!D11 -> 2019-04-16 | N24: vous informe de votre :
F27: AVANCEMENT D’ECHELON
A33: Vous passez à l’échelon : | F33: ='GRILLE IADE CS EXT'!B21 -> 7 | H33: Indice Majoré : | L33: ='GRILLE IADE CS EXT'!D21 -> 617
A36: Date d'effet : | F36: / | H36: / | I36: =RECAPITULATIF!D9 -> 2019 | R36: ='GRILLE IADE CS EXT'!B2 -> Infirmier Anesthésiste Classe Supérieure Extinction
A40: Ce qui représente un gain mensuel de : | I40: ='GRILLE IADE CS EXT'!D21-'GRILLE IADE CS EXT'!D19 -> 38 | K40: points d'indice.
R41: ='GRILLE IADE CS EXT'!B7 -> Echelon | S41: ='GRILLE IADE CS EXT'!C7 -> Durée (en mois) | T41: ='GRILLE IADE CS EXT'!D7 -> Indice Majoré
A43: Pour information, la valeur brute du point d'indice | R43: ='GRILLE IADE CS EXT'!B9 -> 1 | S43: ='GRILLE IADE CS EXT'!C9 -> 24 | T43: ='GRILLE IADE CS EXT'!D9 -> 467
R45: ='GRILLE IADE CS EXT'!B11 -> 2 | S45: ='GRILLE IADE CS EXT'!C11 -> 24 | T45: ='GRILLE IADE CS EXT'!D11 -> 495
A46: est de | C46: =RECAPITULATIF!D13 -> 4.686 € | E46: au | F46: =RECAPITULATIF!D15 -> 2019-01-01
R47: ='GRILLE IADE CS EXT'!B13 -> 3 | S47: ='GRILLE IADE CS EXT'!C13 -> 24 | T47: ='GRILLE IADE CS EXT'!D13 -> 514
A49: Soit un gain net mensuel de : | G49: =I40*C46*0.8315 -> 148.06 € | R49: ='GRILLE IADE CS EXT'!B15 -> 4 | S49: ='GRILLE IADE CS EXT'!C15 -> 36 | T49: ='GRILLE IADE CS EXT'!D15 -> 537
R51: ='GRILLE IADE CS EXT'!B17 -> 5 | S51: ='GRILLE IADE CS EXT'!C17 -> 36 | T51: ='GRILLE IADE CS EXT'!D17 -> 560
R53: ='GRILLE IADE CS EXT'!B19 -> 6 | S53: ='GRILLE IADE CS EXT'!C19 -> 42 | T53: ='GRILLE IADE CS EXT'!D19 -> 579
A54: Vos représentant-e-s SUD Santé Sociaux | I54: =RECAPITULATIF!D21 -> 35 | K54: sont à votre disposition
A55: pour tous renseignements complémentaires au poste : | M55: =RECAPITULATIF!D17 -> 2886 | R55: ='GRILLE IADE CS EXT'!B21 -> 7 | S55: ='GRILLE IADE CS EXT'!C21 -> 0 | T55: ='GRILLE IADE CS EXT'!D21 -> 617
R57: ='GRILLE IADE CS EXT'!B23 -> 0 | S57: ='GRILLE IADE CN EXT'!C23 -> 0
A60: Recevez toutes nos salutations.
A63: =RECAPITULATIF!B5 -> Madame FERET Isabelle, Madame Anne PICHON et Monsieur Patrick GAUTIER
A65: SUD Santé Sociaux | E65: =RECAPITULATIF!D21 -> 35
A70: Tél : | B70: =RECAPITULATIF!D19 -> 02 99 21 28 86
A71: Mél : | C71: =RECAPITULATIF!C23 -> sudsante@ch-stmalo.fr
A72: =RECAPITULATIF!B25 -> Site Départemental Sud | F72: =RECAPITULATIF!D25 -> http://www.sudsantesociaux35.org
